Workbook

Sheet Identification
F1: English | O1: Français
B2: =IF(Eng_Fren=1,F2,O2) -> USE THIS PAGE TO IDENTIFY YOUR DIVISION / DISTRICT | F2: USE THIS PAGE TO IDENTIFY YOUR DIVISION / DISTRICT | O2: UTILISER CETTE PAGE POUR INSCRIRE LE NOM DE VOTRE DIVISION SCOLAIRE
B4: =IF(Eng_Fren=1,F4,O4) -> To begin: press the down arrow button and select your Division or District then language. | F4: To begin: press the down arrow button and select your Division or District then language. | O4: Pour commencer, cliquer sur la flèche descendante et sélectionner la division scolaire, puis la langue.
B8: =IF(Eng_Fren=1,F8,O8) -> This will insert your division/district's name at the top of pages for identification. | F8: This will insert your division/district's name at the top of pages for identification. | O8: Cette action inscrira le nom de la division scolaire en haut de chaque page aux fins d'identification.
B11: =IF(Eng_Fren=1,F11,O11) -> When entering amounts on these schedules, do not enter the cents. Round amounts to the nearest dollar. | F11: When entering amounts on these schedules, do not enter the cents. Round amounts to the nearest dollar. | O11: Lors de l'inscription des montants dans les tableaux de ce document, ne pas indiquer les cents. Arrondir au dollar près.
B14: =IF(Eng_Fren=1,F14,O14) -> First Select the paper size then print. (In order to use the buttons you have to enable the macros). | F14: First Select the paper size then print. (In order to use the buttons you have to enable the macros). | O14: Sélectionner le format du papier avant d'imprimer. (Pour utiliser les boutons, il faut activer les macros.)
R17: Grand format
B18: =IF(Eng_Fren=1,F18,O18) -> Select Paper Size | F18: Select Paper Size | O18: Sélectionner le format du papier
R19: Format lettre
C20: =IF(Eng_Fren=1,F20,O20) -> Print All | F20: Print All | O20: Tout imprimer

Sheet CONS Fin Pos
B1: =DIVNAME ->  | H1: =IF(DATE=0,"",DATE) -> 2021-03-18T15:02:31.610
B2: =IF(Eng_Fren=1,"CONSOLIDATED STATEMENT OF FINANCIAL POSITION","ÉTAT CONSOLIDÉ DE LA SITUATION FINANCIÈRE") -> CONSOLIDATED STATEMENT OF FINANCIAL POSITION
B3: =ASAT -> as at March 31, 2021
F5: =YEAR -> 2021 | H5: =YEAR_LY -> 2020
B6: =IF(Eng_Fren=1,K6,N6) -> Financial Assets | K6: Financial Assets | N6: Actif
C7: =IF(Eng_Fren=1,K7,N7) -> Cash and Bank | F7: =IF(OP_CASH+CAP_CASH+SPF_CASH>OP_ODRAFT+CAP_ODRAFT,(OP_CASH+CAP_CASH+SPF_CASH)-(OP_ODRAFT+CAP_ODRAFT),0) -> 0 | H7: =IF(OP_CASHPR+CAP_CASHPR+SPF_CASHPR>OP_ODRAFTPR+CAP_ODRAFTPR,(OP_CASHPR+CAP_CASHPR+SPF_CASHPR)-(OP_ODRAFTPR+CAP_ODRAFTPR),0) -> 0 | K7: Cash and Bank | N7: Encaisse et fonds en banque
C8: =IF(Eng_Fren=1,K8,N8) -> Due from | D8: =IF(Eng_Fren=1,L8,O8) -> - Provincial Government | F8: =OP_ARPROV+CAP_ARPROV -> 0 | H8: =OP_ARPROVPR+CAP_ARPROVPR -> 0 | K8: Due from | L8: - Provincial Government | N8: Sommes recevables | O8: - au gouv. du Manitoba
D9: =IF(Eng_Fren=1,L9,O9) -> - Federal Government | F9: =OP_ARFED+CAP_ARFED+OTHFUNDGST -> 0 | H9: =OP_ARFEDPR+CAP_ARFEDPR+OTHFUNDGSTPR -> 0 | L9: - Federal Government | O9: - au gouv. fédéral
D10: =IF(Eng_Fren=1,L10,O10) -> - Municipal Government | F10: =OP_ARMUN+CAP_ARMUN -> 0 | H10: =OP_ARMUNPR+CAP_ARMUNPR -> 0 | L10: - Municipal Government | O10: - à l'admin. municipale
D11: =IF(Eng_Fren=1,L11,O11) -> - Other School Divisions | F11: =OP_AROSD -> 0 | H11: =OP_AROSDPR -> 0 | L11: - Other School Divisions | O11: - à d'autres divisions scol.
D12: =IF(Eng_Fren=1,L12,O12) -> - First Nations | F12: =OP_ARFNATION+CAP_ARFNATION -> 0 | H12: =OP_ARFNATIONPR+CAP_ARFNATIONPR -> 0 | L12: - First Nations | O12: - aux Premières nations
C13: =IF(Eng_Fren=1,K13,N13) -> Accounts Receivable | F13: =OP_AR+CAP_AR -> 0 | H13: =OP_ARPR+CAP_ARPR -> 0 | K13: Accounts Receivable | N13: Comptes clients
C14: =IF(Eng_Fren=1,K14,N14) -> Accrued Investment Income | F14: =OP_AIR+CAP_AIR+SPF_AIR -> 0 | H14: =OP_AIRPR+CAP_AIRPR+SPF_AIRPR -> 0 | K14: Accrued Investment Income | N14: Revenu de placements à recevoir
C15: =IF(Eng_Fren=1,K15,N15) -> Portfolio Investments | F15: =SPF_OTHINVEST+OP_STI+CAP_STI -> 0 | H15: =SPF_OTHINVESTPR+OP_STIPR+CAP_STIPR -> 0 | K15: Portfolio Investments | N15: Placements de portefeuille
F16: =SUM(F7:F15) -> 0 | H16: =SUM(H7:H15) -> 0
B17: =IF(Eng_Fren=1,K17,N17) -> Liabilities | K17: Liabilities | N17: Passif
C18: =IF(Eng_Fren=1,K18,N18) -> Overdraft | F18: =IF(OP_ODRAFT+CAP_ODRAFT>OP_CASH+CAP_CASH+SPF_CASH,(OP_ODRAFT+CAP_ODRAFT)-(OP_CASH+CAP_CASH+SPF_CASH),0) -> 0 | H18: =IF(OP_ODRAFTPR+CAP_ODRAFTPR>OP_CASHPR+CAP_CASHPR+SPF_CASHPR,(OP_ODRAFTPR+CAP_ODRAFTPR)-(OP_CASHPR+CAP_CASHPR+SPF_CASHPR),0) -> 0 | K18: Overdraft | N18: Découverts
C19: Accounts Payable | F19: =OP_AP+CAP_AP+SPF_AP -> 0 | H19: =OP_APPR+CAP_APPR+SPF_APPR -> 0 | K19: Accounts Payable | N19: Comptes fournisseurs
C20: Accrued Liabilities | F20: =OP_ACCLIAB+CAP_ACCLIAB+SPF_ACCLIAB -> 0 | H20: =OP_ACCLIABPR+CAP_ACCLIABPR+SPF_ACCLIABPR -> 0 | K20: Accrued Liabilities | N20: Charges à payer
C21: Employee Future Benefits | F21: =OP_EMPFUTBEN -> 0 | H21: =OP_EMPFUTBENPR -> 0 | K21: Employee Future Benefits | N21: Avantages sociaux à venir
C22: Accrued Interest Payable | F22: =OP_AIP+CAP_AIP -> 0 | H22: =OP_AIPPR+CAP_AIPPR -> 0 | K22: Accrued Interest Payable | N22: Intérêts courus à payer
C23: Due to | D23: =IF(Eng_Fren=1,L23,O23) -> - Provincial Government | F23: =OP_APPROV+CAP_APPROV -> 0 | H23: =OP_APPROVPR+CAP_APPROVPR -> 0 | K23: Due to | L23: - Provincial Government | N23: Sommes payables | O23: - au gouv. du Manitoba
D24: =IF(Eng_Fren=1,L24,O24) -> - Federal Government | F24: =OP_APFED+CAP_APFED -> 0 | H24: =OP_APFEDPR+CAP_APFEDPR -> 0 | L24: - Federal Government | O24: - au gouv. fédéral
D25: =IF(Eng_Fren=1,L25,O25) -> - Municipal Government | F25: =OP_APMUN+CAP_APMUN -> 0 | H25: =OP_APMUNPR+CAP_APMUNPR -> 0 | L25: - Municipal Government | O25: - à l'admin. municipale
D26: =IF(Eng_Fren=1,L26,O26) -> - Other School Divisions | F26: =OP_APOSD -> 0 | H26: =OP_APOSDPR -> 0 | L26: - Other School Divisions | O26: - à d'autres divisions scol.
D27: =IF(Eng_Fren=1,L27,O27) -> - First Nations | F27: =OP_APFNATION+CAP_APFNATION -> 0 | H27: =OP_APFNATIONPR+CAP_APFNATIONPR -> 0 | L27: - First Nations | O27: - aux Premières nations
C28: =IF(Eng_Fren=1,K28,N28) -> Deferred Revenue | F28: =OP_DEFREV+CAP_DEFREV+SPF_DEFREV -> 0 | H28: =OP_DEFREVPR+CAP_DEFREVPR+SPF_DEFREVPR -> 0 | K28: Deferred Revenue | N28: Revenus reportés
C29: =IF(Eng_Fren=1,K29,N29) -> Borrowings from the Provincial Government | F29: =CAP_DEBDEBT -> 0 | H29: =CAP_DEBDEBTPR -> 0 | K29: Borrowings from the Provincial Government | N29: Emprunts contractés auprès du gouvernement provincial
C30: =IF(Eng_Fren=1,K30,N30) -> Other Borrowings | F30: =OP_OTHBORROW+CAP_OTHBORROW -> 0 | H30: =OP_OTHBORROWPR+CAP_OTHBORROWPR -> 0 | K30: Other Borrowings | N30: Autres emprunts
C31: =IF(Eng_Fren=1,K31,N31) -> School Generated Funds Liability | F31: =SPF_SGFLIAB -> 0 | H31: =SPF_SGFLIABPR -> 0 | K31: School Generated Funds Liability | N31: Passif des fonds générés par les écoles
F32: =SUM(F18:F31) -> 0 | H32: =SUM(H18:H31) -> 0
B33: =IF(Eng_Fren=1,K33,N33) -> Net Debt | F33: =F16-F32 -> 0 | H33: =H16-H32 -> 0 | K33: Net Debt | N33: Dette nette
B34: =IF(Eng_Fren=1,K34,N34) -> Non-Financial Assets | K34: Non-Financial Assets | N34: Actif non financier
C35: =IF(Eng_Fren=1,K35,N35) -> Net Tangible Capital Assets (TCA Schedule) | F35: =CAP_NETTCA -> 0 | H35: =CAP_NETTCAPR -> 0 | K35: Net Tangible Capital Assets (TCA Schedule) | N35: Immobilisations corporelles nettes (État des IC)
C36: =IF(Eng_Fren=1,K36,N36) -> Inventories | F36: =OP_INVENTORY -> 0 | H36: =OP_INVENTORYPR -> 0 | K36: Inventories | N36: Inventaires
C37: =IF(Eng_Fren=1,K37,N37) -> Prepaid Expenses | F37: =OP_PREPAID -> 0 | H37: =OP_PREPAIDPR -> 0 | K37: Prepaid Expenses | N37: Dépenses payées d'avance
F38: =SUM(F35:F37) -> 0 | H38: =SUM(H35:H37) -> 0
B39: =IF(Eng_Fren=1,K39,N39) -> Accumulated Surplus | F39: =SUM(F33,F38) -> 0 | H39: =SUM(H33,H38) -> 0 | K39: Accumulated Surplus | N39: Excédent accumulé
B43: <<<<<<<<<<<< ERROR MESSAGES >>>>>>>>>>>> | K43: <<<<<<<<<<<< ERROR MESSAGES >>>>>>>>>>>> | N43: <<<<<<<<<<<< ERROR MESSAGES >>>>>>>>>>>>
B45: =IF((OP_AROTHER+CAP_AROTHER)=(OP_APCAP+CAP_APOPFUND+SPF_APOTHER),"",TEXT(F5,"0")& " INTERFUNDS DO NOT BALANCE") ->  | E45: =IF(Identification!$A$33=0,"",H5& " INTERFUNDS DO NOT BALANCE") ->  | K45: INTERFUNDS DO NOT BALANCE
B47: =IF(CONSREV_CLOSESURP<>F39,TEXT(F5,"0")&" ACCUMULATED SURPLUS DOES NOT","") ->  | E47: =IF(Identification!$A$32=1,H5&" ACCUMULATED SURPLUS DOES NOT","") -> 
B48: =IF(CONSREV_CLOSESURP<>F39,"EQUAL CLOSING ACCUMULATED SURPLUS","") ->  | E48: =IF(Identification!$A$32=1,"EQUAL CLOSING ACCUMULATED SURPLUS","") -> 
B49: =IF(CONSREV_CLOSESURP<>F39,"FROM THE REVENUE AND EXPENSE STATEMENT","") ->  | E49: =IF(Identification!$A$32=1,"FROM THE REVENUE AND EXPENSE STATEMENT","") -> 
B50: =IF(CONSREV_CLOSESURP<>F39,"Out by:","") ->  | C50: =IF(CONSREV_CLOSESURP<>F39,CONSREV_CLOSESURP-F39,"") -> 
B51: =IF(F39<>(OP_ACCSURP+CAP_ACCSURP+SPF_ACCSURP),TEXT(F5,"0")&" ACCUMULATED SURPLUS DOES NOT EQUAL","") ->  | E51: =IF(Identification!$A$34=1,H5& " ACCUMULATED SURPLUS DOES NOT EQUAL","") -> 
B52: =IF(F39<>(OP_ACCSURP+CAP_ACCSURP+SPF_ACCSURP),"THE SUM OF THE ACCUMULATED SURPLUS","") ->  | E52: =IF(Identification!$A$34=1,"THE SUM OF THE ACCUMULATED SURPLUS","") -> 
B53: =IF(F39<>(OP_ACCSURP+CAP_ACCSURP+SPF_ACCSURP),"BALANCES FROM THE FUND ACCOUNTS","") ->  | E53: =IF(Identification!$A$34=1,"BALANCES FROM THE FUND ACCOUNTS","") -> 
B55: =IF(F35<>TCA_NETTCA,F5& " NET TANGIBLE CAPITAL ASSET BALANCE DOES","") ->  | E55: =IF(Identification!$A$34=1,H5&" NET TANGIBLE CAPITAL ASSET BALANCE DOES","") -> 
B56: =IF(F35<>TCA_NETTCA,"NOT EQUAL NET TANGIBLE CAPITAL ASSET BALANCE","") ->  | E56: =IF(Identification!$A$34=1,"NOT EQUAL NET TANGIBLE CAPITAL ASSET BALANCE","") -> 
B57: =IF(F35<>TCA_NETTCA,"FROM THE TANGIBLE CAPITAL ASSET SCHEDULE","") ->  | E57: =IF(Identification!$A$34=1,"FROM THE TANGIBLE CAPITAL ASSET SCHEDULE","") -> 

Sheet CONS Rev Exp
B1: =DIVNAME ->  | I1: =IF(DATE=0,"",DATE) -> 2021-03-18T15:02:31.610
B2: =IF(Eng_Fren=1,"CONSOLIDATED STATEMENT","ÉTAT CONSOLIDÉ") -> CONSOLIDATED STATEMENT
B3: =IF(Eng_Fren=1,"OF REVENUE, EXPENSES","DES RECETTES, DES DÉPENSES") -> OF REVENUE, EXPENSES
B4: =IF(Eng_Fren=1," AND ACCUMULATED SURPLUS"," ET DE L'EXCÉDENT ACCUMULÉ") -> AND ACCUMULATED SURPLUS
B5: =ForYr -> For the Year Ended March 31, 2021
G7: =YEAR -> 2021 | I7: =YEAR_LY -> 2020
B8: =IF(Eng_Fren=1,N8,P8) -> Revenue | N8: Revenue | P8: Recettes
C9: =IF(Eng_Fren=1,N9,P9) -> Provincial Government | G9: =OPREV_PROVTOTAL+CAPREV_PROVTOTAL -> 0 | I9: =OPREV_PROVTOTALPR+CAPREV_PROVTOTALPR -> 0 | N9: Provincial Government | P9: Gouvernement du Manitoba
C10: Federal Government | G10: =OPREV_FED+CAPREV_FED -> 0 | I10: =OPREV_FEDPR+CAPREV_FEDPR -> 0 | N10: Federal Government | P10: Gouvernement fédéral
C11: Municipal Government | G11: =OPREV_MUN+CAPREV_MUN -> 0 | I11: =OPREV_MUNPR+CAPREV_MUNPR -> 0 | N11: Municipal Government | P11: Administration municipale
C12: Other School Divisions | G12: =OPREV_OSD -> 0 | I12: =OPREV_OSDPR -> 0 | N12: Other School Divisions | P12: Autres divisions scolaires
C13: First Nations | G13: =OPREV_FNATION -> 0 | I13: =OPREV_FNATIONPR -> 0 | N13: First Nations | P13: Premières nations
C14: Private Organizations and Individuals | G14: =OPREV_POI -> 0 | I14: =OPREV_POIPR -> 0 | N14: Private Organizations and Individuals | P14: Organismes privés et particuliers
C15: Other Sources | G15: =OPREV_OTH+CAPREV_INVEST+CAPREV_DON+CAPREV_OTHER+CAPREV_ASSETDISP+GAINMODCLASS -> 0 | I15: =OPREV_OTHPR+CAPREV_INVESTPR+CAPREV_DONPR+CAPREV_OTHERPR+CAPREV_ASSETDISPPR+GAINMODCLASSPR -> 0 | N15: Other Sources | P15: Autres sources
C16: School Generated Funds | G16: =SPFREV_SGF -> 0 | I16: =SPFREV_SGFPR -> 0 | N16: School Generated Funds | P16: Fonds générés par les écoles
C17: Other Special Purpose Funds | G17: =SPFREV_OTHREV1+SPFREV_OTHREV2 -> 0 | I17: =SPFREV_OTHREV1PR+SPFREV_OTHREV2PR -> 0 | N17: Other Special Purpose Funds | P17: Autres fonds à fins spéciales
G18: =SUM(G9:G17) -> 0 | I18: =SUM(I9:I17) -> 0
B19: =IF(Eng_Fren=1,N19,P19) -> Expenses | N19: Expenses | P19: Dépenses
C20: =IF(Eng_Fren=1,O20,Q20) -> Salaries | G20: =OPEXP_300SAL -> 0 | I20: =OPEXP_300SALPR -> 0 | O20: Salaries | Q20: Salaires
C21: Employees Benefits and Allowances | G21: =OPEXP_400BEN -> 0 | I21: =OPEXP_400BENPR -> 0 | O21: Employees Benefits and Allowances | Q21: Avantages sociaux et indemnités des employés
C22: Services | G22: =SUM('OP Rev Exp'!J30:J44) -> 0 | I22: =SUM('OP Rev Exp'!L30:L44) -> 0 | O22: Services | Q22: Services
C23: Supplies, Materials and Minor Equipment | G23: =SUM('OP Rev Exp'!J45:J48) -> 0 | I23: =SUM('OP Rev Exp'!L45:L48) -> 0 | O23: Supplies, Materials and Minor Equipment | Q23: Fournitures, matériel et petit équipement
C24: Interest, Bank Charges and Bad Debt Expense | G24: =OPEXP_910+OPEXP_950+CAPEXP_DDI+CAPEXP_OTHERINT -> 0 | I24: =OPEXP_910PR+OPEXP_950PR+CAPEXP_DDIPR+CAPEXP_OTHERINTPR -> 0 | O24: Interest, Bank Charges and Bad Debt Expense | Q24: Intérêts et frais bancaires
C25: Transfers | G25: =SUM('OP Rev Exp'!J51:J53) -> 0 | I25: =SUM('OP Rev Exp'!L51:L53) -> 0 | O25: Transfers | Q25: Transferts
C26: Amortization | G26: =CAPEXP_AMORT -> 0 | I26: =CAPEXP_AMORTPR -> 0 | O26: Amortization | Q26: Amortissement
C27: Other Capital Items | G27: =CAPEXP_OTHER1+CAPEXP_OTHER2 -> 0 | I27: =CAPEXP_OTHER1PR+CAPEXP_OTHER2PR -> 0 | O27: Other Capital Items | Q27: Autres dépenses de capital
C28: School Generated Funds | G28: =SPFEXP_SGF -> 0 | I28: =SPFEXP_SGFPR -> 0 | O28: School Generated Funds | Q28: Fonds générés par les écoles
C29: Other Special Purpose Funds | G29: =SPFEXP_OTHEXP1+SPFEXP_OTHEXP2 -> 0 | I29: =SPFEXP_OTHEXP1PR+SPFEXP_OTHEXP2PR -> 0 | O29: Other Special Purpose Funds | Q29: Autres fonds à fins spéciales
G30: =SUM(G20:G29) -> 0 | I30: =SUM(I20:I29) -> 0
B31: =IF(Eng_Fren=1,N31,P31) -> Current Year Surplus (Deficit) before Non-vested Sick Leave | G31: =CONSREV_TOTAL-CONSEXP_TOTAL -> 0 | I31: =CONSREV_TOTALPR-CONSEXP_TOTALPR -> 0 | N31: Current Year Surplus (Deficit) before Non-vested Sick Leave | P31: Excédent (Déficit) de l'exercice en cours
B32: Less: Non-vested Sick Leave Expense (Recovery) | G32: =+'OP Rev Exp'!J56 -> 0 | I32: =+'OP Rev Exp'!L56 -> 0 | N32: Less: Non-vested Sick Leave Expense (Recovery) | P32: Moins : Congé de maladie en surplus (Recouvrement)
B33: Net Current Year Surplus (Deficit) | G33: =+CONSREV_CURSURP-G32 -> 0 | I33: =+CONSREV_CURSURPPR-I32 -> 0 | N33: Net Current Year Surplus (Deficit) | P33: Excédent (Déficit) net de l'exercice en cours
B34: Opening Accumulated Surplus | G34: =OPREV_OPENSURP+CAPREV_OPENSURP+SPFREV_OPENSURP -> 0 | I34: =OPREV_OPENSURPPR+CAPREV_OPENSURPPR+SPFREV_OPENSURPPR -> 0 | N34: Opening Accumulated Surplus | P34: Excédent accumulé d'ouverture
B35: Adjustments to Opening Accumulated Surplus | G35: =OPREV_EQUADJ1+OPREV_EQUADJ2+CAPREV_EQUADJ1+CAPREV_EQUADJ2+SPFREV_EQUADJ1+SPFREV_EQUADJ2 -> 0 | I35: =OPREV_EQUADJ1PR+OPREV_EQUADJ2PR+CAPREV_EQUADJ1PR+CAPREV_EQUADJ2PR+SPFREV_EQUADJ1PR+SPFREV_EQUADJ2PR -> 0 | N35: Adjustments to Opening Accumulated Surplus | P35: Redressements à l'excédent accumulé d'ouverture
B36: Opening Accumulated Surplus, as restated | G36: =CONSREV_OPENSURP+CONSREV_EQUADJ -> 0 | I36: =CONSREV_OPENSURPPR+CONSREV_EQUADJPR -> 0 | N36: Opening Accumulated Surplus, as restated | P36: Excédent accumulé d'ouverture, réévalué
B37: Closing Accumulated Surplus | G37: =+G33+CONSREV_OPENSURPREST -> 0 | I37: =+I33+CONSREV_OPENSURPRESTPR -> 0 | N37: Closing Accumulated Surplus | P37: Excédent accumulé de clôture
B40: <<<<<<<<<<<< ERROR MESSAGES >>>>>>>>>>>>
B42: =IF([1]Identification!$A$38=1,G7&" OPENING ACCUMULATED SURPLUS BALANCE DOES NOT","") -> 
B43: =IF([1]Identification!$A$38=1,"EQUAL " &I7&" CLOSING ACCUMULATED SURPLUS BALANCE","") -> 
B45: =IF([1]Identification!$A$39=1,G7& " ACCUMULATED SURPLUS DOES NOT EQUAL","") -> 
B46: =IF([1]Identification!$A$39=1,"THE SUM OF THE ACCUMULATED SURPLUS","") -> 
B47: =IF([1]Identification!$A$39=1,"BALANCES FROM THE FUND ACCOUNTS","") -> 

Sheet OP Fin Pos
B1: =DIVNAME ->  | H1: =IF(DATE=0,"",DATE) -> 2021-03-18T15:02:31.610
B2: =IF(Eng_Fren=1,L2,O2) -> OPERATING FUND | L2: OPERATING FUND | O2: FONDS DE FONCTIONNEMENT
B3: =IF(Eng_Fren=1,L3,O3) -> STATEMENT OF FINANCIAL POSITION | L3: STATEMENT OF FINANCIAL POSITION | O3: ÉTAT DE LA SITUATION FINANCIÈRE
B4: =ASAT -> as at March 31, 2021
F6: =YEAR -> 2021 | H6: =YEAR_LY -> 2020
B7: =IF(Eng_Fren=1,K7,O7) -> Financial Assets | K7: Financial Assets | O7: Actif
C8: =IF(Eng_Fren=1,L8,O8) -> Cash and Bank | F8: 0 | H8: =Code!I144 -> 0 | L8: Cash and Bank | O8: Encaisse et fonds en banque
C9: =IF(Eng_Fren=1,L9,O9) -> Due from | D9: =IF(Eng_Fren=1,M9,P9) -> - Provincial Government | F9: 0 | H9: =Code!I145 -> 0 | L9: Due from | M9: - Provincial Government | O9: Sommes recevables | P9: - du gouvernement du Manitoba
D10: - Federal Government | F10: 0 | H10: =Code!I146 -> 0 | M10: - Federal Government | P10: - du gouvernement fédéral
D11: - Municipal Government | F11: 0 | H11: =Code!I147 -> 0 | M11: - Municipal Government | P11: - de l'administration municipale
D12: - Other School Divisions | F12: 0 | H12: =Code!I148 -> 0 | M12: - Other School Divisions | P12: - d'autres divisions scolaires
D13: - First Nations | F13: 0 | H13: =Code!I149 -> 0 | M13: - First Nations | P13: - des Premières Nations
D14: - Capital and Special Purpose Fund | F14: 0 | H14: =Code!I150 -> 0 | M14: - Capital and Special Purpose Fund | P14: - du fonds de cap. et d'empr. et du fonds à des fins spéc.
C15: =IF(Eng_Fren=1,L15,O15) -> Accounts Receivable | F15: 0 | H15: =Code!I151 -> 0 | L15: Accounts Receivable | O15: Comptes clients
C16: =IF(Eng_Fren=1,L16,O16) -> Accrued Investment Income | F16: 0 | H16: =Code!I152 -> 0 | L16: Accrued Investment Income | O16: Revenu de placements à recevoir
C17: =IF(Eng_Fren=1,L17,O17) -> Portfolio Investments | F17: 0 | H17: =Code!I153 -> 0 | L17: Portfolio Investments | O17: Placements de portefeuille
F18: =SUM(F8:F17) -> 0 | H18: =SUM(H8:H17) -> 0
B19: =IF(Eng_Fren=1,K19,O19) -> Liabilities | K19: Liabilities | O19: Passif
C20: =IF(Eng_Fren=1,L20,O20) -> Overdraft | F20: 0 | H20: =Code!I156 -> 0 | L20: Overdraft | O20: Découverts
C21: Accounts Payable | F21: 0 | H21: =Code!I157 -> 0 | L21: Accounts Payable | O21: Comptes fournisseurs
C22: Accrued Liabilities | F22: 0 | H22: =Code!I158 -> 0 | L22: Accrued Liabilities | O22: Charges à payer
C23: Employee Future Benefits | F23: 0 | H23: =Code!I159 -> 0 | L23: Employee Future Benefits | O23: Avantages sociaux à venir
C24: Accrued Interest Payable | F24: 0 | H24: =Code!I160 -> 0 | L24: Accrued Interest Payable | O24: Intérêts courus à payer
C25: Due to | D25: =IF(Eng_Fren=1,M25,P25) -> - Provincial Government | F25: 0 | H25: =Code!I161 -> 0 | L25: Due to | M25: - Provincial Government | O25: Sommes payables | P25: - au gouvernement du Manitoba
D26: - Federal Government | F26: 0 | H26: =Code!I162 -> 0 | M26: - Federal Government | P26: - au gouvernement fédéral
D27: - Municipal Government | F27: 0 | H27: =Code!I163 -> 0 | M27: - Municipal Government | P27: - à l'administration municipale
D28: - Other School Divisions | F28: 0 | H28: =Code!I164 -> 0 | M28: - Other School Divisions | P28: - à d'autres divisions scolaires
D29: - First Nations | F29: 0 | H29: =Code!I165 -> 0 | M29: - First Nations | P29: - aux Premières Nations
D30: - Capital and Special Purpose Fund | F30: 0 | H30: =Code!I166 -> 0 | M30: - Capital and Special Purpose Fund | P30: - au fonds de cap. et d'empr. et au fonds à des fins spéc.
C31: =IF(Eng_Fren=1,L31,O31) -> Deferred Revenue | F31: 0 | H31: =Code!I167 -> 0 | L31: Deferred Revenue | O31: Revenus reportés
C32: =IF(Eng_Fren=1,L32,O32) -> Other Borrowings | F32: 0 | H32: =Code!I168 -> 0 | L32: Other Borrowings | O32: Autres emprunts
F33: =SUM(F20:F32) -> 0 | H33: =SUM(H20:H32) -> 0
B34: =IF(Eng_Fren=1,K34,O34) -> Net Financial Assets (Net Debt) | F34: =F18-F33 -> 0 | H34: =H18-H33 -> 0 | K34: Net Financial Assets (Net Debt) | O34: Actif (Passif) net
B35: =IF(Eng_Fren=1,K35,O35) -> Non-Financial Assets | K35: Non-Financial Assets | O35: Actif non financier
C36: =IF(Eng_Fren=1,L36,O36) -> Inventories | F36: 0 | H36: =Code!I172 -> 0 | L36: Inventories | O36: Inventaires
C37: =IF(Eng_Fren=1,L37,O37) -> Prepaid Expenses | F37: 0 | H37: =Code!I173 -> 0 | L37: Prepaid Expenses | O37: Dépenses payées d'avance
F38: =SUM(F36:F37) -> 0 | H38: =SUM(H36:H37) -> 0
B39: =IF(Eng_Fren=1,K39,O39) -> Accumulated Surplus (Deficit) | F39: =SUM(F34,F38) -> 0 | H39: =SUM(H34,H38) -> 0 | K39: Accumulated Surplus (Deficit) | O39: Excédent (Déficit) accumulé
B42: <<<<<<<<<<<< ERROR MESSAGES >>>>>>>>>>>> | L42: <<<<<<<<<<<< ERROR MESSAGES >>>>>>>>>>>> | O42: <<<<<<<<<<<< MESSAGES D'ERREUR >>>>>>>>>>>>
B44: =IF(OPREV_CLOSESURP<>F39,IF(Eng_Fren=1,L44,O44),"") ->  | E44: =IF(Identification!$A$42=1,H6&" ACCUMULATED SURPLUS DOES NOT","") ->  | L44: =TEXT(F6,"0")&" ACCUMULATED SURPLUS DOES NOT" -> 2021 ACCUMULATED SURPLUS DOES NOT | O44: ="'L'EXCÉDENT ACCUMULÉ DE "&TEXT(F6,"0")&" N'EST PAS" -> 'L'EXCÉDENT ACCUMULÉ DE 2021 N'EST PAS
B45: =IF(OPREV_CLOSESURP<>F39,IF(Eng_Fren=1,L45,O45),"") ->  | E45: =IF(Identification!$A$42=1,"EQUAL "& H6&" CLOSING ACCUMULATED SURPLUS","") ->  | L45: ="EQUAL "&TEXT(F6,"0")&" CLOSING ACCUMULATED SURPLUS" -> EQUAL 2021 CLOSING ACCUMULATED SURPLUS | O45: ÉGAL À L'EXCÉDENT ACCUMULÉ DE CLÔTURE DE
B46: =IF(OPREV_CLOSESURP<>F39,IF(Eng_Fren=1,L46,O46),"") ->  | E46: =IF(Identification!$A$42=1,"FROM THE REVENUE AND EXPENSE STATEMENT","") ->  | L46: FROM THE REVENUE AND EXPENSE STATEMENT | O46: ="'L'ÉTAT DES RECETTES ET DES DÉPENSES DE "&TEXT(F6,"0") -> 'L'ÉTAT DES RECETTES ET DES DÉPENSES DE 2021
B47: =IF(OPREV_CLOSESURP<>F39,IF(Eng_Fren=1,L47,O47),"") ->  | C47: =IF(OPREV_CLOSESURP<>F39,OPREV_CLOSESURP-F39,"") ->  | L47: Out by: | O47: Différence :

Sheet OP Rev Exp
B1: =DIVNAME ->  | L1: =IF(DATE=0,"",DATE) -> 2021-03-18T15:02:31.610
B2: =IF(Eng_Fren=1,"OPERATING FUND","FONDS D'ADMINISTRATION GÉNÉRALE") -> OPERATING FUND
B3: =IF(Eng_Fren=1,"SCHEDULE OF REVENUE, EXPENSES","ÉTAT DES RECETTES, DES DÉPENSES") -> SCHEDULE OF REVENUE, EXPENSES
B4: =IF(Eng_Fren=1," AND ACCUMULATED SURPLUS","ET DE L'EXCÉDENT ACCUMULÉ") -> AND ACCUMULATED SURPLUS
B5: =FOR -> For the Year Ended March 31, 2021
F7: ="April-June "&L7 -> April-June 2020 | H7: ="July-March "&J7 -> July-March 2021 | J7: =TEXT(YEAR,"0") -> 2021 | L7: =TEXT(YEAR_LY,"0") -> 2020 | O7: English | S7: French
B8: =IF(Eng_Fren=1,O8,S8) -> Revenue | O8: Revenue | S8: Recettes
C9: =IF(Eng_Fren=1,P9,T9) -> Provincial Government | P9: Provincial Government | T9: Gouvernement du Manitoba
C10: Department of Education | P10: Department of Education | T10: Ministère de l’Éducation
C11: Funding of Schools Program | F11: 0 | H11: 0 | J11: =F11+H11 -> 0 | L11: =Code!I192 -> 0 | P11: Funding of Schools Program | T11: Programme de financement des écoles
C12: Education Property Tax Credit | F12: 0 | H12: 0 | J12: =F12+H12 -> 0 | L12: =Code!I193 -> 0 | P12: Education Property Tax Credit | T12: Crédit d'impôt foncier en matière d'éducation
C13: Tax Incentive Grant | F13: 0 | H13: 0 | J13: 0 | L13: =Code!I194 -> 0 | P13: Tax Incentive Grant | T13: Incitatif fiscal
C14: General Support Grant | F14: 0 | H14: 0 | J14: 0 | L14: =Code!I195 -> 0 | P14: General Support Grant | T14: Subventions d'aide générale
C15: Other Funding | F15: 0 | H15: 0 | J15: 0 | L15: =Code!I196 -> 0 | P15: Other Funding | T15: Autres sources
C16: All Other Provincial Government Departments (Core Gov't) | F16: 0 | H16: 0 | J16: 0 | L16: =Code!I197 -> 0 | P16: All Other Provincial Government Departments (Core Gov't) | T16: Autres ministères du gouvernement du Manitoba (opér. fond. du gouv.)
C17: Other Government Reporting Entities (except School Divisions) | F17: 0 | H17: 0 | J17: 0 | L17: =Code!I198 -> 0 | P17: Other Government Reporting Entities (except School Divisions) | T17: Reste du périmètre comptable du gouvernement (sauf les div. scol.)
C18: Total Provincial Government | F18: =SUM(F11:F17) -> 0 | H18: =SUM(H11:H17) -> 0 | J18: =SUM(J11:J17) -> 0 | L18: =SUM(L11:L17) -> 0 | P18: Total Provincial Government | T18: Total des recettes du gouvernement du Manitoba
C20: =IF(Eng_Fren=1,P20,T20) -> Federal Government | J20: =OPREVDET_TOTFED -> 0 | L20: =OPREVDET_TOTFEDPR -> 0 | P20: Federal Government | T20: Gouvernement fédéral
C21: Municipal Government | J21: =OPREVDET_TOTMUN -> 0 | L21: =OPREVDET_TOTMUNPR -> 0 | P21: Municipal Government | T21: Administration municipale
C22: Other School Divisions | J22: =OPREVDET_TOTOSD -> 0 | L22: =OPREVDET_TOTOSDPR -> 0 | P22: Other School Divisions | T22: Autres divisions scolaires
C23: First Nations | J23: =OPREVDET_TOTFN -> 0 | L23: =OPREVDET_TOTFNPR -> 0 | P23: First Nations | T23: Premières Nations
C24: Private Organizations & Individuals (incl GBE's) | J24: =OPREVDET_TOTPOI -> 0 | L24: =OPREVDET_TOTPOIPR -> 0 | P24: Private Organizations & Individuals (incl GBE's) | T24: Organismes privés et particuliers (y inclus les entreprises publiques)
C25: Other Sources | J25: =OPREVDET_TOTOTH -> 0 | L25: =OPREVDET_TOTOTHPR -> 0 | P25: Other Sources | T25: Autres sources
D26: =IF(Eng_Fren=1,Q26,U26) -> Total Revenue | J26: =SUM(J18:J25) -> 0 | L26: =SUM(L18:L25) -> 0 | Q26: Total Revenue | U26: Total des recettes
B27: =IF(Eng_Fren=1,O27,S27) -> Expenses | O27: Expenses | S27: Dépenses
C28: =IF(Eng_Fren=1,P28,T28) -> 300 Salaries | F28: 0 | H28: 0 | J28: =F28+H28 -> 0 | L28: =Code!I209 -> 0 | P28: 300 Salaries | T28: 300 Salaires
C29: 400 Employee Benefits And Allowances | F29: 0 | H29: 0 | J29: =F29+H29 -> 0 | L29: =Code!I210 -> 0 | P29: 400 Employee Benefits And Allowances | T29: 400 Avantages sociaux et indemnités des employés
C30: 510 Professional, Technical and Specialized | F30: 0 | H30: 0 | J30: 0 | L30: =Code!I211 -> 0 | P30: 510 Professional, Technical and Specialized | T30: 510 Services professionnels, techniques et spécialisés
C31: 520 Communications | F31: 0 | H31: 0 | J31: 0 | L31: =Code!I212 -> 0 | P31: 520 Communications | T31: 520 Communications
C32: 530 Utility Services | F32: 0 | H32: 0 | J32: 0 | L32: =Code!I213 -> 0 | P32: 530 Utility Services | T32: 530 Services publics
C33: 540 Travel and Meetings | F33: 0 | H33: 0 | J33: 0 | L33: =Code!I214 -> 0 | P33: 540 Travel and Meetings | T33: 540 Déplacements et réunions
C34: 550 Transportation of Pupils | F34: 0 | H34: 0 | J34: 0 | L34: =Code!I215 -> 0 | P34: 550 Transportation of Pupils | T34: 550 Transport des élèves
C35: 560 Tuition | F35: 0 | H35: 0 | J35: 0 | L35: =Code!I216 -> 0 | P35: 560 Tuition | T35: 560 Frais de scolarité
C36: 570 Printing and Binding | F36: 0 | H36: 0 | J36: 0 | L36: =Code!I217 -> 0 | P36: 570 Printing and Binding | T36: 570 Impression et reliure
C37: 580 Insurance and Bond Premiums | F37: 0 | H37: 0 | J37: 0 | L37: =Code!I218 -> 0 | P37: 580 Insurance and Bond Premiums | T37: 580 Primes d'assurance et d'émission d'obligations
C38: 590 Maintenance and Repair Services | F38: 0 | H38: 0 | J38: 0 | L38: =Code!I219 -> 0 | P38: 590 Maintenance and Repair Services | T38: 590 Services d'entretien et de réparation
C39: 610 Rentals | F39: 0 | H39: 0 | J39: 0 | L39: =Code!I220 -> 0 | P39: 610 Rentals | T39: 610 Locations
C40: 620 Property Taxes | F40: 0 | H40: 0 | J40: 0 | L40: =Code!I221 -> 0 | P40: 620 Property Taxes | T40: 620 Impôt foncier
C41: 630 Advertising | F41: 0 | H41: 0 | J41: 0 | L41: =Code!I222 -> 0 | P41: 630 Advertising | T41: 630 Publicité
C42: 640 Dues and Fees | F42: 0 | H42: 0 | J42: 0 | L42: =Code!I223 -> 0 | P42: 640 Dues and Fees | T42: 640 Cotisations et frais
C43: 650 Professional and Staff Development | F43: 0 | H43: 0 | J43: 0 | L43: =Code!I224 -> 0 | P43: 650 Professional and Staff Development | T43: 650 Perfectionnement professionnel et du personnel
C44: 680 Information Technology Services | F44: 0 | H44: 0 | J44: 0 | L44: =Code!I225 -> 0 | P44: 680 Information Technology Services | T44: 680 Services d'informatique
C45: 710 Supplies | F45: 0 | H45: 0 | J45: 0 | L45: =Code!I226 -> 0 | P45: 710 Supplies | T45: 710 Fournitures
C46: 740 Curricular and Media Materials | F46: 0 | H46: 0 | J46: 0 | L46: =Code!I227 -> 0 | P46: 740 Curricular and Media Materials | T46: 740 Matériels pédagogiques et médiatiques
C47: 760 Minor Equipment | F47: 0 | H47: 0 | J47: 0 | L47: =Code!I228 -> 0 | P47: 760 Minor Equipment | T47: 760 Petit équipement
C48: 780 Information Technology Equipment | F48: 0 | H48: 0 | J48: 0 | L48: =Code!I229 -> 0 | P48: 780 Information Technology Equipment | T48: 780 Matériel informatique
C49: 910 Loan Interest and Bank Charges | F49: 0 | H49: 0 | J49: 0 | L49: =Code!I230 -> 0 | P49: 910 Loan Interest and Bank Charges | T49: 910 Intérêts des emprunts et frais bancaires
C50: 950 Bad Debt Expense | F50: 0 | H50: 0 | J50: 0 | L50: =Code!I231 -> 0 | P50: 950 Bad Debt Expense | T50: 950 Créances douteuses
C51: 960 School Divisions | F51: 0 | H51: 0 | J51: 0 | L51: =Code!I232 -> 0 | P51: 960 School Divisions | T51: 960 Divisions scolaires
C52: 970 Payroll Tax | F52: 0 | H52: 0 | J52: 0 | L52: =Code!I233 -> 0 | P52: 970 Payroll Tax | T52: 970 Impôt sur la paye
C53: 980 Organizations, Individuals and Other Entities | F53: 0 | H53: 0 | J53: 0 | L53: =Code!I234 -> 0 | P53: 980 Organizations, Individuals and Other Entities | T53: 980 Organismes, particuliers et entités distinctes
D54: =IF(Eng_Fren=1,Q54,U54) -> Total Expenses | F54: =SUM(F28:F53) -> 0 | H54: =SUM(H28:H53) -> 0 | J54: =SUM(J28:J53) -> 0 | L54: =SUM(L28:L53) -> 0 | Q54: Total Expenses | U54: Total des dépenses
B55: =IF(Eng_Fren=1,O55,S55) -> Current Year Surplus (Deficit) before Non-vested Sick Leave | J55: =J26-J54 -> 0 | L55: =L26-L54 -> 0 | O55: Current Year Surplus (Deficit) before Non-vested Sick Leave | S55: Excédent (Déficit) de l'exercice en cours avant congé de maladie en surplus
B56: Less: Non-vested Sick Leave Expense (Recovery) | J56: 0 | L56: =Code!I237 -> 0 | O56: Less: Non-vested Sick Leave Expense (Recovery) | S56: Moins : Congé de maladie en surplus (recouvrement)
B57: Current Year Surplus (Deficit) | J57: =J55-J56 -> 0 | L57: =L55-L56 -> 0 | O57: Current Year Surplus (Deficit) | S57: Excédent (Déficit) net de l'exercice en cours
B58: Transfers from (to) Capital Fund | J58: 0 | L58: =Code!I239 -> 0 | O58: Transfers from (to) Capital Fund | S58: Transferts du (au) fonds de capital et d'emprunt
B59: Transfers from (to) Special Purpose Funds | J59: =-SPFREV_TRANSOP -> 0 | L59: =-SPFREV_TRANSOPPR -> 0 | O59: Transfers from (to) Special Purpose Funds | S59: Transferts des (aux) fonds à fins spéciales
B60: Net Current Year Surplus (Deficit) | J60: =SUM(J57:J59) -> 0 | L60: =SUM(L57:L59) -> 0 | O60: Net Current Year Surplus (Deficit) | S60: Excédent (Déficit) net de l'exercice en cours
B61: Opening Accumulated Surplus (Deficit) | J61: =L65 -> 0 | L61: =Code!I242 -> 0 | O61: Opening Accumulated Surplus (Deficit) | S61: Excédent (Déficit) accumulé d'ouverture
B62: Adjustments: | J62: 0 | L62: =Code!I243 -> 0 | O62: Adjustments: | S62: Redressements :
J63: 0 | L63: =Code!I244 -> 0
B64: =IF(Eng_Fren=1,O64,S64) -> Opening Accumulated Surplus (Deficit), as adjusted | J64: =SUM(J61:J63) -> 0 | L64: =SUM(L61:L63) -> 0 | O64: Opening Accumulated Surplus (Deficit), as adjusted | S64: Excédent (Déficit) accumulé d'ouverture, réévalué
B65: =IF(Eng_Fren=1,O65,S65) -> Closing Accumulated Surplus (Deficit) | J65: =SUM(J60,J64) -> 0 | L65: =SUM(L60,L64) -> 0 | O65: Closing Accumulated Surplus (Deficit) | S65: Excédent (Déficit) accumulé de clôture
B68: <<<<<<<<<<<< ERROR MESSAGES >>>>>>>>>>>>
B70: =IF(Identification!$A$45=1,J7&" OPENING ACCUMULATED SURPLUS BALANCE DOES NOT","") -> 
B71: =IF(Identification!$A$45=1,"EQUAL "&L7&" CLOSING ACCUMULATED SURPLUS BALANCE","") -> 

Sheet OP Oth Rev
B1: =DIVNAME ->  | L1: =IF(DATE=0,"",DATE) -> 2021-03-18T15:02:31.610
B2: =IF(Eng_Fren=1,"OPERATING FUND - REVENUE DETAIL","FONDS D'ADMINISTRATION GÉNÉRALE – ÉTAT DÉTAILLÉ DES RECETTES") -> OPERATING FUND - REVENUE DETAIL
B3: =IF(Eng_Fren=1,"NON-PROVINCIAL GOVERNMENT SOURCES","DE SOURCES AUTRES QUE LE GOUVERNEMENT DU MANITOBA") -> NON-PROVINCIAL GOVERNMENT SOURCES
B4: =FOR -> For the Year Ended March 31, 2021
F6: =+'OP Rev Exp'!F7 -> April-June 2020 | H6: =+'OP Rev Exp'!H7 -> July-March 2021 | J6: =YEAR -> 2021 | L6: =YEAR_LY -> 2020
C8: =IF(Eng_Fren=1,P8,U8) -> Federal Government | P8: Federal Government | U8: Gouvernement fédéral
D9: =IF(Eng_Fren=1,Q9,U9) -> Tuition Fees | F9: 0 | H9: 0 | J9: =+F9+H9 -> 0 | L9: =+Code!I258 -> 0 | Q9: Tuition Fees | U9: Droits de scolarité
D10: =IF(Eng_Fren=1,Q10,U10) -> Transportation of Pupils | F10: 0 | H10: 0 | J10: =+F10+H10 -> 0 | L10: =+Code!I259 -> 0 | Q10: Transportation of Pupils | U10: Transport des élèves
D11: =IF(Eng_Fren=1,Q11,U11) -> French Language Monitor | F11: 0 | H11: 0 | J11: 0 | L11: =+Code!I260 -> 0 | Q11: French Language Monitor | U11: Moniteur de langue française
D12: =IF(Eng_Fren=1,Q12,U12) -> English as an Additional Language (Adults) | F12: 0 | H12: 0 | J12: 0 | L12: =+Code!I261 -> 0 | Q12: English as an Additional Language (Adults) | U12: Anglais langue additionnelle (pour adultes)
D13: =IF(Eng_Fren=1,Q13,U13) -> Other: | F13: 0 | H13: 0 | J13: 0 | L13: =+Code!I262 -> 0 | Q13: Other: | U13: Autres :
F14: =SUM(F9:F13) -> 0 | H14: =SUM(H9:H13) -> 0 | J14: =SUM(J9:J13) -> 0 | L14: =SUM(L9:L13) -> 0
C17: =IF(Eng_Fren=1,P17,U17) -> Municipal Government | P17: Municipal Government | U17: Administration municipale
D18: =IF(Eng_Fren=1,Q18,U18) -> Special Requirement | F18: 0 | H18: 0 | J18: =+F18+H18 -> 0 | L18: =+Code!I267 -> 0 | Q18: Special Requirement | U18: Fonds spéciaux
D19: =IF(Eng_Fren=1,Q19,U19) -> Less: Education Property Tax Credit | J19: =-OPREV_PROVECYEPTC -> 0 | L19: =-OPREV_PROVECYEPTCPR -> 0 | Q19: Less: Education Property Tax Credit | U19: Moins : Crédit d'impôt foncier du Man. en matière d'éducation
D20: =IF(Eng_Fren=1,Q20,U20) -> Less: Tax Incentive Grant | J20: =-OPREV_PROVECYTIG -> 0 | L20: =-OPREV_PROVECYTIGPR -> 0 | Q20: Less: Tax Incentive Grant | U20: Moins : Incitatif fiscal
D21: =IF(Eng_Fren=1,Q21,U21) -> All other: | F21: 0 | H21: 0 | J21: =+F21+H21 -> 0 | L21: =+Code!I270 -> 0 | Q21: All other: | U21: Autres :
J22: =SUM(J18:J21) -> 0 | L22: =SUM(L18:L21) -> 0
C25: =IF(Eng_Fren=1,P25,U25) -> Other School Divisions | P25: Other School Divisions | U25: Autres divisions scolaires
D26: =IF(Eng_Fren=1,Q26,U26) -> Tuition Fees | F26: 0 | H26: 0 | J26: =+F26+H26 -> 0 | L26: =+Code!I275 -> 0 | Q26: Tuition Fees | U26: Droits de scolarité
D27: =IF(Eng_Fren=1,Q27,U27) -> Transfer Fees | F27: 0 | H27: 0 | J27: 0 | L27: =+Code!I276 -> 0 | Q27: Transfer Fees | U27: Frais de transfert
D28: =IF(Eng_Fren=1,Q28,U28) -> Residual Fees | F28: 0 | H28: 0 | J28: =+F28+H28 -> 0 | L28: =+Code!I277 -> 0 | Q28: Residual Fees | U28: Frais supplémentaires
D29: =IF(Eng_Fren=1,Q29,U29) -> Transportation of Pupils | F29: 0 | H29: 0 | J29: 0 | L29: =+Code!I278 -> 0 | Q29: Transportation of Pupils | U29: Transport des élèves
D30: =IF(Eng_Fren=1,Q30,U30) -> All other: | F30: 0 | H30: 0 | J30: 0 | L30: =+Code!I279 -> 0 | Q30: All other: | U30: Autres :
F31: =SUM(F26:F30) -> 0 | H31: =SUM(H26:H30) -> 0 | J31: =SUM(J26:J30) -> 0 | L31: =SUM(L26:L30) -> 0
C34: =IF(Eng_Fren=1,P34,U34) -> First Nations | P34: First Nations | U34: Premières nations
D35: =IF(Eng_Fren=1,Q35,U35) -> Tuition Fees | F35: 0 | H35: 0 | J35: =+F35+H35 -> 0 | L35: =+Code!I283 -> 0 | Q35: Tuition Fees | U35: Droits de scolarité
D36: =IF(Eng_Fren=1,Q36,U36) -> Transportation of Pupils | F36: 0 | H36: 0 | J36: 0 | L36: =+Code!I284 -> 0 | Q36: Transportation of Pupils | U36: Transport des élèves
D37: =IF(Eng_Fren=1,Q37,U37) -> All other: | F37: 0 | H37: 0 | J37: 0 | L37: =+Code!I285 -> 0 | Q37: All other: | U37: Autres :
F38: =SUM(F35:F37) -> 0 | H38: =SUM(H35:H37) -> 0 | J38: =SUM(J35:J37) -> 0 | L38: =SUM(L35:L37) -> 0
C41: =IF(Eng_Fren=1,P41,U41) -> Private Organizations and Individuals | P41: Private Organizations and Individuals | U41: Particuliers et organismes privés privés (incluant les entreprises publiques)
D42: =IF(Eng_Fren=1,Q42,U42) -> Regular Tuition | F42: 0 | H42: 0 | J42: =+F42+H42 -> 0 | L42: =+Code!I290 -> 0 | Q42: Regular Tuition | U42: Droits de scolarité ordinaires
D43: International Tuition | F43: 0 | H43: 0 | J43: 0 | L43: =+Code!I291 -> 0 | Q43: International Tuition | U43: Frais de scolarité applicables aux étudiants étrangers
D44: Continuing Education | F44: 0 | H44: 0 | J44: 0 | L44: =+Code!I292 -> 0 | Q44: Continuing Education | U44: Éducation permanente
D45: Other Tuition: | F45: 0 | H45: 0 | J45: 0 | L45: =+Code!I293 -> 0 | Q45: Other Tuition: | U45: Autres droits de scolarité
D46: Government Business Enterprises (GBE's) | F46: 0 | H46: 0 | J46: 0 | L46: =+Code!I294 -> 0 | Q46: Government Business Enterprises (GBE's) | U46: Entreprises publiques
D47: All other: | F47: 0 | H47: 0 | J47: 0 | L47: =+Code!I295 -> 0 | Q47: All other: | U47: Autres :
F48: =SUM(F42:F47) -> 0 | H48: =SUM(H42:H47) -> 0 | J48: =SUM(J42:J47) -> 0 | L48: =SUM(L42:L47) -> 0
C51: =IF(Eng_Fren=1,P51,U51) -> Other Sources | P51: Other Sources | U51: Autres sources
D52: =IF(Eng_Fren=1,Q52,U52) -> Interest | F52: 0 | H52: 0 | J52: =+F52+H52 -> 0 | L52: =+Code!I300 -> 0 | Q52: Interest | U52: Intérêts
D53: =IF(Eng_Fren=1,Q53,U53) -> All other: | F53: 0 | H53: 0 | J53: 0 | L53: =+Code!I301 -> 0 | Q53: All other: | U53: Autres :
F54: =SUM(F52:F53) -> 0 | H54: =SUM(H52:H53) -> 0 | J54: =SUM(J52:J53) -> 0 | L54: =SUM(L52:L53) -> 0
C57: =IF(Eng_Fren=1,P57,U57) -> TOTAL NON-PROVINCIAL GOVERNMENT REVENUE | F57: =SUM(F14,F22,F31,F38,F48,F54) -> 0 | H57: =SUM(H14,H22,H31,H38,H48,H54) -> 0 | J57: =SUM(J14,J22,J31,J38,J48,J54) -> 0 | L57: =SUM(L14,L22,L31,L38,L48,L54) -> 0 | P57: TOTAL NON-PROVINCIAL GOVERNMENT REVENUE | U57: TOTAL – RECETTES DE SOURCES AUTRES QUE LE GOUV. DU MANITOBA

Sheet CAP Fin Pos
B1: =DIVNAME ->  | H1: =IF(DATE=0,"",DATE) -> 2021-03-18T15:02:31.610
B2: =IF(Eng_Fren=1,L2,N2) -> CAPITAL FUND | L2: CAPITAL FUND | N2: FONDS DE CAPITAL ET D'EMPRUNT
B3: =IF(Eng_Fren=1,L3,N3) -> STATEMENT OF FINANCIAL POSITION | L3: STATEMENT OF FINANCIAL POSITION | N3: ÉTAT DE LA SITUATION FINANCIÈRE
B4: =ASAT -> as at March 31, 2021
F6: =YEAR -> 2021 | H6: =YEAR_LY -> 2020
B7: =IF(Eng_Fren=1,L7,N7) -> Financial Assets | L7: Financial Assets | N7: Actif financier
C8: =IF(Eng_Fren=1,L8,N8) -> Cash and Bank | F8: 0 | H8: =Code!I318 -> 0 | L8: Cash and Bank | N8: Encaisse et fonds en banque
C9: =IF(Eng_Fren=1,L9,N9) -> Due from | D9: =IF(Eng_Fren=1,M9,O9) -> - Provincial Government | F9: 0 | H9: =Code!I319 -> 0 | L9: Due from | M9: - Provincial Government | N9: Sommes recevables | O9: - du gouv. du Manitoba
D10: =IF(Eng_Fren=1,M10,O10) -> - Federal Government | F10: 0 | H10: =Code!I320 -> 0 | M10: - Federal Government | O10: - du gouv. fédéral
D11: =IF(Eng_Fren=1,M11,O11) -> - Municipal Government | F11: 0 | H11: =Code!I321 -> 0 | M11: - Municipal Government | O11: - de l'admin. municipale
D12: =IF(Eng_Fren=1,M12,O12) -> - First Nations | F12: 0 | H12: =Code!I322 -> 0 | M12: - First Nations | O12: - des Premières Nations
D13: - Operating and Special Purpose Funds | F13: 0 | H13: =Code!I323 -> 0 | M13: - Operating and Special Purpose Funds | O13: - du fonds de fonc. et du fonds à des fins spéc.
C14: =IF(Eng_Fren=1,L14,N14) -> Accounts Receivable | F14: 0 | H14: =Code!I324 -> 0 | L14: Accounts Receivable | N14: Comptes clients
C15: =IF(Eng_Fren=1,L15,N15) -> Accrued Investment Income | F15: 0 | H15: =Code!I325 -> 0 | L15: Accrued Investment Income | N15: Revenu de placements à recevoir
C16: =IF(Eng_Fren=1,L16,N16) -> Portfolio Investments | F16: 0 | H16: =Code!I326 -> 0 | L16: Portfolio Investments | N16: Placements de portefeuille
F17: =SUM(F8:F16) -> 0 | H17: =SUM(H8:H16) -> 0
B18: =IF(Eng_Fren=1,L18,N18) -> Liabilities | L18: Liabilities | N18: Passif
C19: =IF(Eng_Fren=1,L19,N19) -> Overdraft | F19: 0 | H19: =Code!I329 -> 0 | L19: Overdraft | N19: Découverts
C20: =IF(Eng_Fren=1,L20,N20) -> Accounts Payable | F20: 0 | H20: =Code!I330 -> 0 | L20: Accounts Payable | N20: Comptes fournisseurs
C21: =IF(Eng_Fren=1,L21,N21) -> Accrued Liabilities | F21: 0 | H21: =Code!I331 -> 0 | L21: Accrued Liabilities | N21: Charges à payer
C22: =IF(Eng_Fren=1,L22,N22) -> Accrued Interest Payable | F22: 0 | H22: =Code!I332 -> 0 | L22: Accrued Interest Payable | N22: Intérêts courus à payer
C23: =IF(Eng_Fren=1,L23,N23) -> Due to | D23: =D9 -> - Provincial Government | F23: 0 | H23: =Code!I333 -> 0 | L23: Due to | M23: - Provincial Government | N23: Sommes payables | O23: - au gouv. du Manitoba
D24: =D10 -> - Federal Government | F24: 0 | H24: =Code!I334 -> 0 | M24: - Federal Government | O24: - au gouv. fédéral
D25: =D11 -> - Municipal Government | F25: 0 | H25: =Code!I335 -> 0 | M25: - Municipal Government | O25: - à l'admin. municipale
D26: =D12 -> - First Nations | F26: 0 | H26: =Code!I336 -> 0 | M26: - First Nations | O26: - aux Premières Nations
D27: =D13 -> - Operating and Special Purpose Funds | F27: 0 | H27: =Code!I337 -> 0 | M27: - Operating and Special Purpose Funds | O27: - au fonds de fonc. et au fonds à des fins spéc.
C28: =IF(Eng_Fren=1,L28,N28) -> Deferred Revenue | F28: 0 | H28: =Code!I338 -> 0 | L28: Deferred Revenue | N28: Revenus reportés
C29: =IF(Eng_Fren=1,L29,N29) -> Borrowings from the Provincial Government | F29: 0 | H29: =Code!I339 -> 0 | L29: Borrowings from the Provincial Government | N29: Emprunts contractés auprès du gouvernement provincial
C30: =IF(Eng_Fren=1,L30,N30) -> Other Borrowings | F30: 0 | H30: =Code!I340 -> 0 | L30: Other Borrowings | N30: Autres emprunts
F31: =SUM(F19:F30) -> 0 | H31: =SUM(H19:H30) -> 0
B32: =IF(Eng_Fren=1,L32,N32) -> Net Debt | F32: =F17-F31 -> 0 | H32: =H17-H31 -> 0 | L32: Net Debt | N32: Dette nette
B33: =IF(Eng_Fren=1,L33,N33) -> Non-Financial Assets | L33: Non-Financial Assets | N33: Actif non financier
C34: =IF(Eng_Fren=1,L34,N34) -> Net Tangible Capital Assets | F34: =TCA_NETTCA -> 0 | H34: =Code!I344 -> 0 | L34: Net Tangible Capital Assets | N34: Immobilisations corporelles nettes
B35: =IF(Eng_Fren=1,L35,N35) -> Accumulated Surplus / Equity | F35: =F32+F34 -> 0 | H35: =H32+H34 -> 0 | L35: Accumulated Surplus / Equity | N35: Excédent accumulé / Avoir propre *
B38: <<<<<<<<<<<< ERROR MESSAGES >>>>>>>>>>>>
B40: =IF(CAPREV_CLOSESURP<>F35,TEXT(F6,"0")&" ACCUMULATED SURPLUS DOES NOT","") ->  | E40: =IF(Identification!$A$48=1,H6&" ACCUMULATED SURPLUS DOES NOT","") -> 
B41: =IF(CAPREV_CLOSESURP<>F35,"EQUAL CLOSING "&TEXT(F6,"0")&" ACCUMULATED SURPLUS","") ->  | E41: =IF(Identification!$A$48=1,"EQUAL "&H6&" CLOSING ACCUMULATED SURPLUS","") -> 
B42: =IF(CAPREV_CLOSESURP<>F35,"FROM REVENUE AND EXPENSE STATEMENT","") ->  | E42: =IF(Identification!$A$48=1,"FROM REVENUE AND EXPENSE STATEMENT","") -> 
B43: =IF(CAPREV_CLOSESURP<>F35,"Out by:","") ->  | C43: =IF(CAPREV_CLOSESURP<>F35,CAPREV_CLOSESURP-F35,"") -> 

Sheet CAP Rev Exp
B1: =DIVNAME ->  | H1: =IF(DATE=0,"",DATE) -> 2021-03-18T15:02:31.610
B2: =IF(Eng_Fren=1,M2,O2) -> CAPITAL FUND | M2: CAPITAL FUND | O2: FONDS DE CAPITAL ET D'EMPRUNT
B3: =IF(Eng_Fren=1,M3,O3) -> SCHEDULE OF REVENUE, EXPENSES | M3: SCHEDULE OF REVENUE, EXPENSES | O3: ÉTAT DES RECETTES, DES DÉPENSES
B4: =IF(Eng_Fren=1,M4,O4) -> AND ACCUMULATED SURPLUS | M4: AND ACCUMULATED SURPLUS | O4: ET DE L'EXCÉDENT ACCUMULÉ
B5: =FOR -> For the Year Ended March 31, 2021
F7: =YEAR -> 2021 | H7: =YEAR_LY -> 2020
B8: =IF(Eng_Fren=1,M8,O8) -> Revenue | M8: Revenue | O8: Recettes
B9: =IF(Eng_Fren=1,M9,O9) -> Provincial Government | M9: Provincial Government | O9: Gouvernement du Manitoba
B10: =IF(Eng_Fren=1,M10,O10) -> Grants | F10: 0 | H10: =Code!I360 -> 0 | M10: Grants | O10: Subventions
B11: =IF(Eng_Fren=1,M11,O11) -> Debt Servicing | D11: =IF(Eng_Fren=1,N11,P11) -> - Principal | F11: 0 | H11: =Code!I361 -> 0 | M11: Debt Servicing | N11: - Principal | O11: Serv. de la dette | P11: - Principal
D12: =IF(Eng_Fren=1,N12,P12) -> - Interest | F12: 0 | H12: =Code!I362 -> 0 | N12: - Interest | P12: - Intérêts
C13: =IF(Eng_Fren=1,M13,O13) -> Total Provincial Government Revenue | F13: =SUM(F10:F12) -> 0 | H13: =SUM(H10:H12) -> 0 | M13: Total Provincial Government Revenue | O13: Total des recettes du gouvernement du Manitoba
B15: =IF(Eng_Fren=1,M15,O15) -> Federal Government | F15: 0 | H15: =Code!I365 -> 0 | M15: Federal Government | O15: Gouvernement fédéral
B16: =IF(Eng_Fren=1,M16,O16) -> Municipal Government | F16: 0 | H16: =Code!I366 -> 0 | M16: Municipal Government | O16: Administration municipale
B17: =IF(Eng_Fren=1,M17,O17) -> Other Sources: | M17: Other Sources: | O17: Autres sources :
C18: =IF(Eng_Fren=1,N18,P18) -> Investment Income | F18: 0 | H18: =Code!I368 -> 0 | N18: Investment Income | P18: Revenus de placement
C19: =IF(Eng_Fren=1,N19,P19) -> Donations | F19: 0 | H19: =Code!I369 -> 0 | N19: Donations | P19: Dons
F20: 0 | H20: =Code!I370 -> 0
C21: =IF(Eng_Fren=1,M21,O21) -> Gain / (Loss) on Disposal of Capital Assets | F21: =-TCA_ASSETDISP+TCA_AMORTDISP+TCA_PROCEEDS -> 0 | H21: =-TCA_ASSETDISPPR+TCA_AMORTDISPPR+TCA_PROCEEDSPR -> 0 | M21: Gain / (Loss) on Disposal of Capital Assets | O21: Gain (Perte) à l'aliénation des immobilisations
C22: =IF(Eng_Fren=1,M22,O22) -> Gain on receipt of Modular classroom | F22: 0 | H22: =Code!I372 -> 0 | M22: Gain on receipt of Modular classroom | O22: Gain à la réception de salles de classe modulaires
D23: =IF(Eng_Fren=1,M23,O23) -> Total Revenue | F23: =SUM(F13:F22) -> 0 | H23: =SUM(H13:H22) -> 0 | M23: Total Revenue | O23: Total des recettes
B24: =IF(Eng_Fren=1,M24,O24) -> Expenses | M24: Expenses | O24: Dépenses
B25: =IF(Eng_Fren=1,M25,O25) -> Amortization | F25: =TCA_AMORTADD -> 0 | H25: =TCA_AMORTADDPR -> 0 | M25: Amortization | O25: Amortissements
B26: =IF(Eng_Fren=1,M26,O26) -> Interest on Borrowings from the Provincial Government | F26: 0 | H26: =Code!I376 -> 0 | M26: Interest on Borrowings from the Provincial Government | O26: Intérêts sur les emprunts contractés auprès du gouvernement provincial
B27: =IF(Eng_Fren=1,M27,O27) -> Other Interest | F27: 0 | H27: =Code!I377 -> 0 | M27: Other Interest | O27: Autres intérêts
B28: =IF(Eng_Fren=1,M28,O28) -> Other | F28: 0 | H28: =Code!I378 -> 0 | M28: Other | O28: Autres
F29: 0 | H29: =Code!I379 -> 0
D30: =IF(Eng_Fren=1,M30,O30) -> Total Expenses | F30: =SUM(F25:F29) -> 0 | H30: =SUM(H25:H29) -> 0 | M30: Total Expenses | O30: Total des dépenses
B31: =IF(Eng_Fren=1,M31,O31) -> Current Year Surplus / (Deficit) | F31: =F23-F30 -> 0 | H31: =H23-H30 -> 0 | M31: Current Year Surplus / (Deficit) | O31: Excédent (Déficit) de l'exercice en cours
B32: =IF(Eng_Fren=1,M32,O32) -> Net Transfers from (to) Operating Fund | F32: =-OPREV_TRANSCAP -> 0 | H32: =-OPREV_TRANSCAPPR -> 0 | M32: Net Transfers from (to) Operating Fund | O32: Transferts nets du (au) fonds de fonctionnement
B33: =IF(Eng_Fren=1,M33,O33) -> Transfers from (to) Special Purpose Fund | F33: =-SPFREV_TRANSCAP -> 0 | H33: =-SPFREV_TRANSCAPPR -> 0 | M33: Transfers from (to) Special Purpose Fund | O33: Transferts du (au) fonds à des fins spéciales
B34: =IF(Eng_Fren=1,M34,O34) -> Net Current Year Surplus (Deficit) | F34: =SUM(F31:F33) -> 0 | H34: =SUM(H31:H33) -> 0 | M34: Net Current Year Surplus (Deficit) | O34: Excédent (Déficit) net de l'exercice en cours
B36: =IF(Eng_Fren=1,M36,O36) -> Opening Accumulated Surplus / Equity | F36: =H40 -> 0 | H36: =Code!I386 -> 0 | M36: Opening Accumulated Surplus / Equity | O36: Excédent / Avoir propre accumulé d'ouverture
B37: =IF(Eng_Fren=1,M37,O37) -> Adjustments: | C37: =IF(Eng_Fren=1,N37,P37) -> Tangible Cap. Assets and Accum. Amort. | F37: =NETTANCAPADJ-ACCAMORADJ -> 0 | H37: =Code!I387 -> 0 | M37: Adjustments: | N37: Tangible Cap. Assets and Accum. Amort. | O37: Redressements : | P37: Immobilisations corp. et amortissements cum.
F38: 0 | H38: =Code!I388 -> 0
B39: =IF(Eng_Fren=1,M39,O39) -> Opening Accumulated Surplus / Equity as adjusted | F39: =SUM(F36:F38) -> 0 | H39: =SUM(H36:H38) -> 0 | M39: Opening Accumulated Surplus / Equity as adjusted | O39: Excédent / Avoir propre accumulé d'ouverture, réévalué
B40: =IF(Eng_Fren=1,M40,O40) -> Closing Accumulated Surplus / Equity | F40: =SUM(F34,F39) -> 0 | H40: =SUM(H34,H39) -> 0 | M40: Closing Accumulated Surplus / Equity | O40: Excédent / Avoir propre accumulé de clôture
B43: <<<<<<<<<<<< ERROR MESSAGES >>>>>>>>>>>>
B45: =IF(Identification!$A$51=1,F7&" OPENING ACCUMULATED SURPLUS BALANCE DOES NOT","") -> 
B46: =IF(Identification!$A$51=1,"EQUAL "&H7&" CLOSING ACCUMULATED SURPLUS BALANCE","") -> 

Sheet TCA Schedule
B1: =DIVNAME ->  | C1: =IF(Eng_Fren=1,"SCHEDULE OF TANGIBLE CAPITAL ASSETS","ÉTAT DES IMMOBILISATIONS CORPORELLES") -> SCHEDULE OF TANGIBLE CAPITAL ASSETS | M1: =IF(DATE=0,"",DATE) -> 2021-03-18T15:02:31.610
C2: =ATJUN2 -> at March 31, 2021
C4: =IF(Eng_Fren=1,R6,R9) -> Buildings and Leasehold Improvements | F4: =IF(Eng_Fren=1,U5,U8) ->  | G4: Furniture / | H4: Computer | K4: =IF(Eng_Fren=1,Z5,Z8) -> Assets | L4: =YREND -> 2021 | M4: =+L4-1 -> 2020
E5: =IF(Eng_Fren=1,T6,T9) -> School | F5: Other | G5: Fixtures & | H5: Hardware & | J5: =IF(Eng_Fren=1,Y6,Y9) -> Land | K5: =IF(Eng_Fren=1,Z6,Z9) -> Under | V5: Furniture / | W5: Computer | Z5: Assets
C6: =IF(Eng_Fren=1,R7,Y10) -> School | D6: =IF(Eng_Fren=1,S7,S10) -> Non-School | E6: =IF(Eng_Fren=1,T7,T10) -> Buses | F6: Vehicles | G6: Equipment | H6: Software * | I6: =IF(Eng_Fren=1,X7,X10) -> Land | J6: =IF(Eng_Fren=1,Y7,Y10) -> Improvements | K6: =IF(Eng_Fren=1,Z7,Z10) -> Construction | L6: =IF(Eng_Fren=1,"Totals","Totaux") -> Totals | M6: =+L6 -> Totals | R6: Buildings and Leasehold Improvements | T6: School | U6: Other | V6: Fixtures & | W6: Hardware & | Y6: Land | Z6: Under
B7: =IF(Eng_Fren=1,P7,Q7) -> Tangible Capital Asset Cost | P7: Tangible Capital Asset Cost | Q7: Coût des immobilisations corp. | R7: School | S7: Non-School | T7: Buses | U7: Vehicles | V7: Equipment | W7: Software * | X7: Land | Y7: Improvements | Z7: Construction
B8: =IF(Eng_Fren=1," Opening Cost March 31, "&M4," Coût d'ouv. Mars 31 "&M4) -> Opening Cost March 31, 2020 | C8: =+Code!M489 -> 0 | D8: =+Code!N489 -> 0 | E8: =+Code!O489 -> 0 | F8: =+Code!P489 -> 0 | G8: =+Code!Q489 -> 0 | H8: =+Code!R489 -> 0 | I8: =+Code!S489 -> 0 | J8: =+Code!T489 -> 0 | K8: =+Code!U489 -> 0 | L8: =SUM(C8:K8) -> 0 | M8: =+Code!I459 -> 0 | P8: Opening Cost, as previously reported | Q8: Coût d'ouv., signalé antérieurement | V8: Mobilier / | W8: Matériel | Z8: Immeubles
B9: =IF(Eng_Fren=1,P9,Q9) -> Opening Cost adjusted | C9: 0 | D9: 0 | E9: 0 | F9: 0 | G9: 0 | H9: 0 | I9: 0 | J9: 0 | K9: 0 | L9: =SUM(C9:K9) -> 0 | M9: =+Code!I460 -> 0 | P9: Opening Cost adjusted | Q9: Coût d'ouverture, réévalué | R9: Immeubles et améliorations locatives | T9: Autobus | U9: Autres | V9: Accessoires et | W9: informatique et | Y9: Améliorations | Z9: en
B10: Add: | P10: Add: | Q10: Plus : | R10: Écoles | S10: Autres | T10: scolaires | U10: véhicules | V10: équipement | W10: logiciels* | X10: Terrains | Y10: foncières | Z10: construction
B11: Additions during the year | D11: 0 | E11: 0 | F11: 0 | G11: 0 | H11: 0 | I11: 0 | J11: 0 | K11: 0 | L11: =SUM(C11:K11) -> 0 | M11: =+Code!I462 -> 0 | P11: Additions during the year | Q11: Ajouts faits durant l'exercice
B12: Less: | P12: Less: | Q12: Moins :
B13: Disposals and write downs | D13: 0 | E13: 0 | F13: 0 | G13: 0 | H13: 0 | I13: 0 | J13: 0 | K13: 0 | L13: =SUM(C13:K13) -> 0 | M13: =+Code!I464 -> 0 | P13: Disposals and write downs | Q13: Liquidations et radiations
B14: Closing Cost | C14: =C8+C9+C11-C13 -> 0 | D14: =D8+D9+D11-D13 -> 0 | E14: 0 | F14: 0 | G14: 0 | H14: 0 | I14: 0 | J14: 0 | K14: 0 | L14: 0 | M14: 0 | P14: Closing Cost | Q14: Coût de clôture
B15: Accumulated Amortization | P15: Accumulated Amortization | Q15: Amortissements cumulés
B16: =IF(Eng_Fren=1," Opening Balance March 31, "&M4," Valeur d'ouv. Mars 31 "&M4) -> Opening Balance March 31, 2020 | C16: =+Code!M491 -> 0 | D16: =+Code!N491 -> 0 | E16: =+Code!O491 -> 0 | F16: =+Code!P491 -> 0 | G16: =+Code!Q491 -> 0 | H16: =+Code!R491 -> 0 | I16: =+Code!S491 -> 0 | J16: =+Code!T491 -> 0 | K16: =+Code!U491 -> 0 | L16: =SUM(C16:K16) -> 0 | M16: =+Code!I467 -> 0 | P16: Opening, as previously reported | Q16: Valeur d'ouv., signalée antérieurement
B17: =IF(Eng_Fren=1,P17,Q17) -> Adjustments | C17: 0 | D17: 0 | E17: 0 | F17: 0 | G17: 0 | H17: 0 | I17: 0 | J17: 0 | K17: 0 | L17: =SUM(C17:K17) -> 0 | M17: =+Code!I468 -> 0 | P17: Adjustments | Q17: Redressements :
B18: Add: | P18: Add: | Q18: Plus :
B19: Current period Amortization | D19: 0 | E19: 0 | F19: 0 | G19: 0 | H19: 0 | I19: 0 | J19: 0 | K19: 0 | L19: =SUM(C19:K19) -> 0 | M19: =+Code!I470 -> 0 | P19: Current period Amortization | Q19: Amortissements : pér. courante
B20: Less: | P20: Less: | Q20: Moins :
B21: Accumulated Amortization | P21: Accumulated Amortization | Q21: Amortissements cumulés sur les
B22: on Disposals and Writedowns | D22: 0 | E22: 0 | F22: 0 | G22: 0 | H22: 0 | I22: 0 | J22: 0 | K22: 0 | L22: =SUM(C22:K22) -> 0 | M22: =+Code!I473 -> 0 | P22: on Disposals and Writedowns | Q22: liquidations et les radiations
B23: Closing Accumulated Amortization | C23: =C16+C17+C19-C22 -> 0 | D23: =D16+D17+D19-D22 -> 0 | E23: =E16+E17+E19-E22 -> 0 | F23: 0 | G23: 0 | H23: 0 | I23: 0 | J23: 0 | K23: 0 | L23: 0 | M23: 0 | P23: Closing Accumulated Amortization | Q23: Amortissements cumulés de clôture
B24: Net Tangible Capital Asset | C24: =C14-C23 -> 0 | D24: =D14-D23 -> 0 | E24: 0 | F24: 0 | G24: 0 | H24: 0 | I24: 0 | J24: 0 | K24: 0 | L24: =L14-L23 -> 0 | M24: 0 | P24: Net Tangible Capital Asset | Q24: Immobilisations corporelles nettes
B25: Proceeds from Disposal of Capital Assets | C25: 0 | D25: 0 | E25: 0 | F25: 0 | G25: 0 | H25: 0 | I25: 0 | L25: =SUM(C25:I25) -> 0 | M25: =+Code!I476 -> 0 | P25: Proceeds from Disposal of Capital Assets | Q25: Produit de la liquidation des immobilisations
B27: =IF(Eng_Fren=1,P27,Q27) -> * Includes network infrastructure. | P27: * Includes network infrastructure. | Q27: *Comprend l'infrastructure du réseau.
I29: <<<<<<<<<<<<< ERROR MESSAGES >>>>>>>>>>>>>
I31: =IF(TCA_ASSETOPEN<>TCA_ASSETCLOSEPR,L4&" TANGIBLE CAPITAL ASSET OPENING COST DOES","") -> 
I32: =IF(TCA_ASSETOPEN<>TCA_ASSETCLOSEPR,"NOT MATCH "&M4&" TANGIBLE CAPITAL ASSET CLOSING COST.","") -> 
I34: =IF(TCA_AMORTOPEN<>TCA_AMORTCLOSEPR,L4&" ACCUMULATED AMORTIZATION OPENING BALANCE DOES","") -> 
I35: =IF(TCA_AMORTOPEN<>TCA_AMORTCLOSEPR,"NOT MATCH "&M4&" ACCUMULATED AMORTIZATION CLOSING BALANCE.","") -> 

Sheet SPF Fin Pos
B1: =DIVNAME ->  | H1: =IF(DATE=0,"",DATE) -> 2021-03-18T15:02:31.610
B2: =IF(Eng_Fren=1,M2,N2) -> SPECIAL PURPOSE FUND | M2: SPECIAL PURPOSE FUND | N2: FONDS À DES FINS SPÉCIALES
B3: =IF(Eng_Fren=1,M3,N3) -> STATEMENT OF FINANCIAL POSITION | M3: STATEMENT OF FINANCIAL POSITION | N3: ÉTAT DE LA SITUATION FINANCIÈRE
B4: =ASAT -> as at March 31, 2021
F6: =YEAR -> 2021 | H6: =YEAR_LY -> 2020
B7: =IF(Eng_Fren=1,M7,N7) -> Financial Assets | M7: Financial Assets | N7: Actif financier
C8: =IF(Eng_Fren=1,M8,N8) -> Cash and Bank | F8: 0 | H8: =+Code!I403 -> 0 | M8: Cash and Bank | N8: Encaisse et fonds en banque
C9: =IF(Eng_Fren=1,M9,N9) -> GST Receivable | F9: 0 | H9: =+Code!I404 -> 0 | M9: GST Receivable | N9: TPS à recouvrer
C10: =IF(Eng_Fren=1,M10,N10) -> Accrued Investment Income | F10: 0 | H10: =+Code!I405 -> 0 | M10: Accrued Investment Income | N10: Revenu de placements à recevoir
C11: =IF(Eng_Fren=1,M11,N11) -> Portfolio Investments | F11: 0 | H11: =+Code!I406 -> 0 | M11: Portfolio Investments | N11: Placements de portefeuille
F12: =SUM(F8:F11) -> 0 | H12: =SUM(H8:H11) -> 0
B13: =IF(Eng_Fren=1,M13,N13) -> Liabilities | M13: Liabilities | N13: Passif
C14: =IF(Eng_Fren=1,M14,N14) -> Accounts Payable | F14: 0 | H14: =+Code!I409 -> 0 | M14: Accounts Payable | N14: Comptes fournisseurs
C15: =IF(Eng_Fren=1,M15,N15) -> Accrued Liabilities | F15: 0 | H15: =+Code!I410 -> 0 | M15: Accrued Liabilities | N15: Charges à payer
C16: =IF(Eng_Fren=1,M16,N16) -> Due to Other Funds | F16: 0 | H16: =+Code!I411 -> 0 | M16: Due to Other Funds | N16: Sommes payables à d'autres fonds
C17: =IF(Eng_Fren=1,M17,N17) -> Deferred Revenue | F17: 0 | H17: =+Code!I412 -> 0 | M17: Deferred Revenue | N17: Revenu reporté
C18: =IF(Eng_Fren=1,M18,N18) -> School Generated Funds Liability | F18: 0 | H18: =+Code!I413 -> 0 | M18: School Generated Funds Liability | N18: Passif des fonds générés par les écoles
F19: =SUM(F14:F18) -> 0 | H19: =SUM(H14:H18) -> 0
B20: =IF(Eng_Fren=1,M20,N20) -> Accumulated Surplus | F20: =SPF_TOTALASSET-SPF_TOTALLIAB -> 0 | H20: =SPF_TOTALASSETPR-SPF_TOTALLIABPR -> 0 | M20: Accumulated Surplus | N20: Excédent accumulé
M21: * Comprised of: | N21: * Comprend :
M22: School Generated Funds Accumulated Surplus | N22: Excédent accumulé des fonds générés par les écoles
B23: <<<<<<<<<<<< ERROR MESSAGES >>>>>>>>>>>> | M23: Other Funds Accumulated Surplus | N23: Excédent accumulé d'autres fonds
M24: Accumulated Surplus * | N24: Excédent accumulé *
B26: =IF(SPFREV_CLOSESURP<>SPF_ACCSURP,F6&" ACCUMULATED SURPLUS DOES NOT","") ->  | E26: =IF(Identification!$A$54=1,H6&" ACCUMULATED SURPLUS DOES NOT","") -> 
B27: =IF(SPFREV_CLOSESURP<>SPF_ACCSURP,"EQUAL "&F6&" CLOSING ACCUMULATED SURPLUS","") ->  | E27: =IF(Identification!$A$54=1,"EQUAL "&H6&" CLOSING ACCUMULATED SURPLUS","") -> 
B28: =IF(SPFREV_CLOSESURP<>SPF_ACCSURP,"FROM REVENUE AND EXPENSE STATEMENT.","") ->  | E28: =IF(Identification!$A$54=1,"FROM REVENUE AND EXPENSE STATEMENT.","") -> 
B29: =IF(SPFREV_CLOSESURP<>SPF_ACCSURP,"Out by:","") ->  | C29: =IF(SPFREV_CLOSESURP<>SPF_ACCSURP,SPFREV_CLOSESURP-SPF_ACCSURP,"") -> 

Sheet SPF Rev Exp
B1: =DIVNAME ->  | H1: =IF(DATE=0,"",DATE) -> 2021-03-18T15:02:31.610
B2: =IF(Eng_Fren=1,L2,N2) -> SPECIAL PURPOSE FUND | L2: SPECIAL PURPOSE FUND | N2: FONDS À FINS SPÉCIALES
B3: =IF(Eng_Fren=1,L3,N3) -> SCHEDULE OF REVENUE, EXPENSES | L3: SCHEDULE OF REVENUE, EXPENSES | N3: ÉTAT DES RECETTES, DES DÉPENSES
B4: =IF(Eng_Fren=1,L4,N4) -> AND ACCUMULATED SURPLUS | L4: AND ACCUMULATED SURPLUS | N4: ET DE L'EXCÉDENT ACCUMULÉ
B5: =FOR -> For the Year Ended March 31, 2021
F7: =YEAR -> 2021 | H7: =YEAR_LY -> 2020
B8: =IF(Eng_Fren=1,L8,N8) -> Revenue | L8: Revenue | N8: Recettes
C9: =IF(Eng_Fren=1,L9,N9) -> School Generated Funds | F9: 0 | H9: =+Code!I429 -> 0 | L9: School Generated Funds | N9: Fonds générés par les écoles
C10: =IF(Eng_Fren=1,L10,N10) -> Other Funds | F10: 0 | H10: =+Code!I430 -> 0 | L10: Other Funds | N10: Autres fonds
F11: 0 | H11: =+Code!I431 -> 0
F12: =SUM(F9:F11) -> 0 | H12: =SUM(H9:H11) -> 0
B13: =IF(Eng_Fren=1,L13,N13) -> Expenses | L13: Expenses | N13: Dépenses
C14: =IF(Eng_Fren=1,L14,N14) -> School Generated Funds | F14: 0 | H14: =+Code!I434 -> 0 | L14: School Generated Funds | N14: Fonds générés par les écoles
C15: =IF(Eng_Fren=1,L15,N15) -> Other Funds | F15: 0 | H15: =+Code!I435 -> 0 | L15: Other Funds | N15: Autres fonds
F16: 0 | H16: =+Code!I436 -> 0
F17: =SUM(F14:F16) -> 0 | H17: =SUM(H14:H16) -> 0
B18: =IF(Eng_Fren=1,L18,N18) -> Current Year Surplus (Deficit) | F18: =SPFREV_TOTALREV-SPFEXP_TOTALEXP -> 0 | H18: =SPFREV_TOTALREVPR-SPFEXP_TOTALEXPPR -> 0 | L18: Current Year Surplus (Deficit) | N18: Excédent (Déficit) de l'exercice en cours
B19: Transfers (to) Operating Fund | F19: 0 | H19: =+Code!I439 -> 0 | L19: Transfers (to) Operating Fund | N19: Transferts (au) fonds d'administration générale
B20: Transfers (to) Capital Fund | F20: 0 | H20: =+Code!I440 -> 0 | L20: Transfers (to) Capital Fund | N20: Transferts (au) fonds de capital et d'emprunt
B21: Net Current Year Surplus (Deficit) | F21: =SUM(F18:F20) -> 0 | H21: =SUM(H18:H20) -> 0 | L21: Net Current Year Surplus (Deficit) | N21: Excédent (Déficit) de l'exercice en cours
B22: Opening Accumulated Surplus | F22: =SPFREV_CLOSESURPPR -> 0 | H22: =+Code!I442 -> 0 | L22: Opening Accumulated Surplus | N22: Excédent accumulé d'ouverture
B23: Adjustments: | F23: 0 | H23: =+Code!I443 -> 0 | L23: Adjustments: | N23: Redressements :
F24: 0 | H24: =+Code!I444 -> 0
B25: =IF(Eng_Fren=1,L25,N25) -> Opening Accumulated Surplus as adjusted | F25: =SUM(F22:F24) -> 0 | H25: =SUM(H22:H24) -> 0 | L25: Opening Accumulated Surplus as adjusted | N25: Excédent accumulé d'ouverture, réévalué
B26: =IF(Eng_Fren=1,L26,N26) -> Closing Accumulated Surplus | F26: =SPFREV_NETCURSURP+SPFREV_OPENSURPREST -> 0 | H26: =SPFREV_NETACCSURPPR+SPFREV_OPENSURPRESTPR -> 0 | L26: Closing Accumulated Surplus | N26: Excédent accumulé de clôture
B30: <<<<<<<<<<<< ERROR MESSAGES >>>>>>>>>>>>
B32: =IF(Identification!$A$58=1,F7&" OPENING ACCUMULATED SURPLUS BALANCE DOES NOT","") -> 
B33: =IF(Identification!$A$58=1,"EQUAL "&H7&" CLOSING ACCUMULATED SURPLUS BALANCE.","") -> 

Sheet Code (hidden)
N1: =SUM(N5:N42) -> -0.4137820983 | R1: =SUM(R5:R42) -> -1.999819098 | V1: =SUM(V5:V42) -> -2.653962967 | Y1: =SUM(Y5:Y42) -> 1.69 | AB1: =SUM(AB5:AB42) -> 0
K2: Cons Fin Pos | L2: Cons Rev Exp | M2: Opening Accumulated Surplus | N2: Variance | O2: Op. Fin Pos | P2: Op. Rev Exp | Q2: Opening Accumulated Surplus | R2: Variance | S2: Cap Fin Pos | T2: Cap Rev Exp | U2: Opening Accumulated Surplus | V2: Variance | W2: SFP Fin Pos | X2: SPF Rev Exp | Y2: Variance | Z2: SFP Fin Pos | AA2: TCA Sch | AB2: Variance | AC2: =AD2 -> TCA Sch | AD2: TCA Sch | AE2: Variance | AF2: =AG2 -> TCA Sch | AG2: TCA Sch | AH2: Variance
H3: 39 | K3: =CONS_ACCSURPPR -> 0 | L3: =CONSREV_CLOSESURPPR -> 0 | M3: =CONSREV_OPENSURP -> 0 | N3: =K3-L3+K3-M3+L3-M3 -> 0 | O3: =OP_ACCSURPPR -> 0 | P3: =OPREV_CLOSESURPPR -> 0 | Q3: =OPREV_OPENSURP -> 0 | R3: =O3-P3+O3-Q3+P3-Q3 -> 0 | S3: =CAP_ACCSURPPR -> 0 | T3: =CAPREV_CLOSESURPPR -> 0 | U3: =CAPREV_OPENSURP -> 0 | V3: =S3-T3+S3-U3+T3-U3 -> 0 | W3: =SPF_ACCSURPPR -> 0 | X3: =SPFREV_CLOSESURPPR -> 0 | Y3: =W3-X3 -> 0 | Z3: =CAP_NETTCAPR -> 0 | AA3: =TCA_NETTCAPR -> 0 | AB3: =Z3-AA3 -> 0 | AC3: =TCA_ASSETOPEN -> 0 | AD3: =TCA_ASSETCLOSEPR -> 0 | AE3: =AC3-AD3 -> 0 | AF3: =TCA_AMORTOPEN -> 0 | AG3: =TCA_AMORTCLOSEPR -> 0 | AH3: =AF3-AG3 -> 0
A4: DIVNAME | B4: =IF(B33=1,"",VLOOKUP($B$33,$D$4:$H$42,2)) ->  | D4: 1 | E4: Press down arrow for School Division name -> | F4: Address1 | G4: Address2
A5: Address1 | B5: =VLOOKUP($B$33,$D$4:$H$42,3) -> Address1 | D5: 2 | E5: Beautiful Plains School Division | F5: P.O. BOX 700 | G5: NEEPAWA, MANITOBA R0J 1H0 | H5: BE | K5: 9010547.07 | L5: 9010546.84 | M5: 9010546.84 | N5: 0.459999986 | O5: 1607056.37 | P5: 1607056.68 | Q5: 1607056.68 | R5: -0.6200000141 | S5: 7109636.17 | T5: 7109636.16 | U5: 7109636.16 | V5: 0.02000000328 | W5: 293854 | X5: 293854 | Y5: 0 | Z5: 35997852.5 | AA5: 35997852.5 | AB5: 0 | AC5: 58469029.5 | AD5: 58469029.5 | AE5: 0 | AF5: 22471177 | AG5: 22471177 | AH5: 0
A6: Address2 | B6: =VLOOKUP($B$33,$D$4:$H$42,4) -> Address2 | D6: 3 | E6: Border Land School Division | F6: 120-9th Street NW | G6: Altona, MANITOBA R0G 0B1 | H6: BO | K6: 14544210.23 | L6: 14544209.19 | M6: 14544209.19 | N6: 2.080181006 | O6: 1175513 | P6: 1175513.27 | Q6: 1175513.27 | R6: -0.5398189984 | S6: 12961625.23 | T6: 12961625.36 | U6: 12961625.36 | V6: -0.2599999942 | W6: 407071 | X6: 407070.56 | Y6: 0.44 | Z6: 22637929.23 | AA6: 22637929.23 | AB6: 0 | AC6: 51469715.23 | AD6: 51469715.23 | AE6: 0 | AF6: 28831786 | AG6: 28831786 | AH6: 0
D7: 4 | E7: Brandon School Division | F7: 1031 - 6th STREET | G7: BRANDON, MANITOBA R7A 4K5 | H7: BR | K7: 26247217.67 | L7: 26247217.75 | M7: 26247217.75 | N7: -0.1600000411 | O7: 5440160 | P7: 5440160.08 | Q7: 5440160.08 | R7: -0.1600000262 | S7: 18416403.67 | T7: 18416403.67 | U7: 18416403.67 | V7: 0 | W7: 2390654 | X7: 2390654 | Y7: 0 | Z7: 66651850.67 | AA7: 66651850.67 | AB7: 0 | AC7: 127325004.6 | AD7: 127325004.6 | AE7: 0 | AF7: 60673153.95 | AG7: 60673153.95 | AH7: 0
A8: Title | B8: =IF(A40=1,"March 31, "&TEXT(B14,"0")&" Financial Information","États financiers Mars 31 "&TEXT(B14,"0")) -> March 31, 2021 Financial Information | D8: 5 | E8: la Division scolaire franco-manitobaine | F8: C.P. 204, 485, CHEMIN DAWSON | G8: LORETTE, MANITOBA R0A 0Y0 | H8: DI | K8: 49893738.45 | L8: 49893739.18 | M8: 49893739.18 | N8: -1.460000008 | O8: 4024956.45 | P8: 4024956.18 | Q8: 4024956.18 | R8: 0.5399999842 | S8: 44979037 | T8: 44979037 | U8: 44979037 | V8: 0 | W8: 889746 | X8: 889746 | Y8: 0 | Z8: 88524830 | AA8: 88524830 | AB8: 0 | AC8: 137484619 | AD8: 137484619 | AE8: 0 | AF8: 48959789 | AG8: 48959789 | AH8: 0
D9: 6 | E9: Evergreen School Division | F9: P.O. BOX 1200 | G9: GIMLI, MANITOBA R0C 1B0 | H9: EV | K9: 12071034 | L9: 12071034 | M9: 12071034 | N9: 0 | O9: 1553558 | P9: 1553558 | Q9: 1553558 | R9: 0 | S9: 10173546 | T9: 10173546 | U9: 10173546 | V9: 0 | W9: 343930 | X9: 343930 | Y9: 0 | Z9: 19296977 | AA9: 19296977 | AB9: 0 | AC9: 45067454 | AD9: 45067454 | AE9: 0 | AF9: 25770477 | AG9: 25770477 | AH9: 0
A10: FOR | B10: =IF(A40=1,"For the Year Ended March 31, "&TEXT(B14,"0"),"pour l'exercice se terminant le 31 Mars "&TEXT(B14,"0")) -> For the Year Ended March 31, 2021 | D10: 7 | E10: Flin Flon School Division | F10: 9 TERRACE AVENUE | G10: FLIN FLON, MANITOBA R8A 1S2 | H10: FL | K10: 2895797 | L10: 2895797.05 | M10: 2895797.05 | N10: -0.09999999963 | O10: 607283 | P10: 607283.43 | Q10: 607283.43 | R10: -0.8599999994 | S10: 2195160 | T10: 2195160 | U10: 2195160 | V10: 0 | W10: 93354 | X10: 93353.62 | Y10: 0.3800000001 | Z10: 8419353 | AA10: 8419353 | AB10: 0 | AC10: 18815449 | AD10: 18815449 | AE10: 0 | AF10: 10396096 | AG10: 10396096 | AH10: 0
A11: ForYr | B11: =B10 -> For the Year Ended March 31, 2021 | D11: 8 | E11: Fort La Bosse School Division | F11: P.O. BOX 1420 | G11: VIRDEN, MANITOBA R0M 2C0 | H11: FO | K11: 7696496 | L11: 7696495.54 | M11: 7696495.54 | N11: 0.9199999925 | O11: 1231012 | P11: 1231012 | Q11: 1231012 | R11: -7.450580597e-09 | S11: 6013622 | T11: 6013622 | U11: 6013622 | V11: 0 | W11: 451862 | X11: 451861.54 | Y11: 0.46 | Z11: 15679140 | AA11: 15679140 | AB11: 0 | AC11: 37133395 | AD11: 37133395 | AE11: 0 | AF11: 21454255 | AG11: 21454255 | AH11: 0
A12: Jun30 | B12: =IF(A40=1,"March 31, "&TEXT(B14,"0"),"Mars 31 "&TEXT(B14,"0")) -> March 31, 2021 | D12: 9 | E12: Frontier School Division | F12: 30 SPEERS ROAD | G12: WINNIPEG, MANITOBA R2J 1L9 | H12: FR | K12: 39694700.09 | L12: 39694699.75 | M12: 39694699.75 | N12: 0.6799999923 | O12: 4719398.11 | P12: 4719398.18 | Q12: 4719398.18 | R12: -0.1399999894 | S12: 34719995.98 | T12: 34719995.57 | U12: 34719995.57 | V12: 0.8200000077 | W12: 255306 | X12: 255306 | Y12: 0 | Z12: 78144349.98 | AA12: 78144349.98 | AB12: 0 | AC12: 180037786.7 | AD12: 180037786.7 | AE12: 0 | AF12: 101893436.7 | AG12: 101893436.7 | AH12: 0
D13: 10 | E13: Garden Valley School Division | F13: BOX 1330, 750 TRIPLE E. BLVD | G13: WINKLER, MANITOBA R6W 4B3 | H13: GA | K13: 27549690 | L13: 27549690 | M13: 27549690 | N13: 0 | O13: 3664474 | P13: 3664474 | Q13: 3664474 | R13: 0 | S13: 23690064 | T13: 23690064 | U13: 23690064 | V13: 0 | W13: 195152 | X13: 195152 | Y13: 0 | Z13: 104202596 | AA13: 104202596 | AB13: 0 | AC13: 163739714 | AD13: 163739714 | AE13: 0 | AF13: 59537118 | AG13: 59537118 | AH13: 0
A14: YREND | B14: 2021 | D14: 11 | E14: Hanover School Division | F14: 5 CHRYSLER GATE | G14: STEINBACH, MANITOBA R5G 0E2 | H14: HA | K14: 29719621 | L14: 29719621 | M14: 29719621 | N14: 0 | O14: 3224599 | P14: 3224599 | Q14: 3224599 | R14: 0 | S14: 26036217 | T14: 26036217 | U14: 26036217 | V14: 0 | W14: 458805 | X14: 458805 | Y14: 0 | Z14: 126602482 | AA14: 126602482 | AB14: 0 | AC14: 196431925 | AD14: 196431925 | AE14: 0 | AF14: 69829443 | AG14: 69829443 | AH14: 0
A15: THISYR | B15: =IF(A40=1,TEXT(B25,"0")&"/"&RIGHT(TEXT(B14,"0"),2),TEXT(B25,"0")&"-"&RIGHT(TEXT(B14,"0"),2)) -> 2020/21 | D15: 12 | E15: Interlake School Division | F15: 192 - 2nd AVENUE NORTH | G15: STONEWALL, MANITOBA R0C 2Z0 | H15: IN | K15: 7498656 | L15: 7498656 | M15: 7498656 | N15: 0 | O15: 1713620 | P15: 1713620 | Q15: 1713620 | R15: 0 | S15: 5616281 | T15: 5616281 | U15: 5616281 | V15: 0 | W15: 168755 | X15: 168755 | Y15: 0 | Z15: 22386538 | AA15: 22386538 | AB15: 0 | AC15: 47146933.21 | AD15: 47146933.21 | AE15: 0 | AF15: 24760395.21 | AG15: 24760395.21 | AH15: 0
A16: LASTYR | B16: =IF(A40=1,TEXT(B25-1,"0")&"/"&RIGHT(TEXT(B25,"0"),2),TEXT(B25-1,"0")&"-"&RIGHT(TEXT(B25,"0"),2)) -> 2019/20 | D16: 13 | E16: Kelsey School Division | F16: P.O. BOX 4700 | G16: THE PAS, MANITOBA R9A 1R4 | H16: KE | K16: 18712080 | L16: 18712080.41 | M16: 18712080.41 | N16: -0.8200000003 | O16: 275694 | P16: 275694.41 | Q16: 275694.41 | R16: -0.8200000003 | S16: 18203490 | T16: 18203490 | U16: 18203490 | V16: 0 | W16: 232896 | X16: 232896 | Y16: 0 | Z16: 36136781 | AA16: 36136781 | AB16: 0 | AC16: 54032273 | AD16: 54032273 | AE16: 0 | AF16: 17895492 | AG16: 17895492 | AH16: 0
D17: 14 | E17: Lakeshore School Division | F17: P.O. BOX 100 | G17: ERIKSDALE, MANITOBA R0C 0W0 | H17: LA | K17: 6937563 | L17: 6937563.21 | M17: 6937563.21 | N17: -0.4199999999 | O17: 920770 | P17: 920770 | Q17: 920770 | R17: 0 | S17: 5787811 | T17: 5787811.2 | U17: 5787811.2 | V17: -0.4000000004 | W17: 228982 | X17: 228982.01 | Y17: -0.01000000001 | Z17: 12518716 | AA17: 12518716 | AB17: 0 | AC17: 31142017 | AD17: 31142017 | AE17: 0 | AF17: 18623301 | AG17: 18623301 | AH17: 0
A18: DATE | B18: =IF(B29=TRUE,NOW(),"") -> 2021-03-18T15:02:31.610 | D18: 15 | E18: Lord Selkirk School Division | F18: 205 MERCY STREET | G18: SELKIRK, MANITOBA R1A 2C8 | H18: LO | K18: 14486810.47 | L18: 14486810.84 | M18: 14486810.84 | N18: -0.7339629531 | O18: 1804932 | P18: 1804932.3 | Q18: 1804932.3 | R18: -0.5999999996 | S18: 12252625.47 | T18: 12252625.54 | U18: 12252625.54 | V18: -0.1339629553 | W18: 429253 | X18: 429253 | Y18: 0 | Z18: 38093788.47 | AA18: 38093788.47 | AB18: 0 | AC18: 84831177.47 | AD18: 84831177.47 | AE18: 0 | AF18: 46737389 | AG18: 46737389 | AH18: 0
D19: 16 | E19: Louis Riel School Division | F19: 900 ST.MARY'S ROAD | G19: WINNIPEG, MANITOBA R2M 3R3 | H19: LR | K19: 31544352.06 | L19: 31544351.88 | M19: 31544351.88 | N19: 0.3599999771 | O19: 2200423.26 | P19: 2200422.8 | Q19: 2200422.8 | R19: 0.9200000204 | S19: 27220029.8 | T19: 27220029.89 | U19: 27220029.89 | V19: -0.180000037 | W19: 2123899 | X19: 2123899.19 | Y19: -0.1899999999 | Z19: 84057989.8 | AA19: 84057989.8 | AB19: 0 | AC19: 191639057.8 | AD19: 191639057.8 | AE19: 0 | AF19: 107581068 | AG19: 107581068 | AH19: 0
A20: ATSEP | B20: =IF(A40=1,"September 30, "&TEXT(B25,"0"),"Septembre 30 "&TEXT(B25,"0")) -> September 30, 2020 | D20: 17 | E20: Mountain View School Division | F20: BOX 715 | G20: DAUPHIN, MANITOBA R7N 3B3 | H20: MO | K20: 7298509 | L20: 7298509 | M20: 7298509 | N20: 0 | O20: 891524 | P20: 891524 | Q20: 891524 | R20: 0 | S20: 5888712 | T20: 5888712 | U20: 5888712 | V20: 0 | W20: 518273 | X20: 518273 | Y20: 0 | Z20: 46477520 | AA20: 46477520 | AB20: 0 | AC20: 90121479 | AD20: 90121479 | AE20: 0 | AF20: 43643959 | AG20: 43643959 | AH20: 0
A21: ATJUN1 | B21: =IF(A40=1,"at March 31, "&TEXT(B25,"0"),"au Mars 31 "&TEXT(B25,"0")) -> at March 31, 2020 | D21: 18 | E21: Mystery Lake School District | F21: 408 THOMPSON DRIVE N. | G21: THOMPSON, MANITOBA R8N 0C5 | H21: MY | K21: 13920847.23 | L21: 13920846.29 | M21: 13920846.29 | N21: 1.879999958 | O21: 5203160.29 | P21: 5203160.2 | Q21: 5203160.2 | R21: 0.1799999308 | S21: 8558081.04 | T21: 8558081.44 | U21: 8558081.44 | V21: -0.7999999821 | W21: 159605 | X21: 159604.65 | Y21: 0.35 | Z21: 18948135.03 | AA21: 18948135.03 | AB21: 0 | AC21: 49750242.03 | AD21: 49750242.03 | AE21: 0 | AF21: 30802107 | AG21: 30802107 | AH21: 0
A22: ATJUN2 | B22: =IF(A40=1,"at March 31, "&TEXT(B24,"0"),"au Mars 31, "&TEXT(B24,"0")) -> at March 31, 2021 | D22: 19 | E22: Park West School Division | F22: P.O. BOX 68, 1161 ST. CLAIRE STREET | G22: BIRTLE, MANITOBA R0M 0C0 | H22: PA | K22: 2426821.155 | L22: 2426821.005 | M22: 2426821.005 | N22: 0.3000000156 | O22: 618493 | P22: 618492.63 | Q22: 618492.63 | R22: 0.7400000133 | S22: 1321011.155 | T22: 1321011.375 | U22: 1321011.375 | V22: -0.4399999972 | W22: 487317 | X22: 487317 | Y22: 0 | Z22: 11986138.16 | AA22: 11986138.16 | AB22: 0 | AC22: 35718985.78 | AD22: 35718985.78 | AE22: 0 | AF22: 23732847.62 | AG22: 23732847.62 | AH22: 0
A23: ASAT | B23: =IF(A40=1,"as at March 31, "&TEXT(B24,"0"),"au 31 Mars "&TEXT(B24,"0")) -> as at March 31, 2021 | D23: 20 | E23: Pembina Trails School Division | F23: 181 HENLOW BAY | G23: WINNIPEG, MANITOBA R3Y 1M7 | H23: PE | K23: 46865571 | L23: 46865571 | M23: 46865571 | N23: 0 | O23: 4388061 | P23: 4388061 | Q23: 4388061 | R23: 0 | S23: 41932485 | T23: 41932485 | U23: 41932485 | V23: 0 | W23: 545025 | X23: 545025 | Y23: 0 | Z23: 114535880 | AA23: 114535880 | AB23: 0 | AC23: 204650667 | AD23: 204650667 | AE23: 0 | AF23: 90114787 | AG23: 90114787 | AH23: 0
A24: YEAR | B24: =B14 -> 2021 | D24: 21 | E24: Pine Creek School Division | F24: P.O. BOX 420 | G24: GLADSTONE, MANITOBA R0J 0T0 | H24: PI | K24: 3791134 | L24: 3791133.95 | M24: 3791133.95 | N24: 0.09999999497 | O24: 878711 | P24: 878711.06 | Q24: 878711.06 | R24: -0.1200000048 | S24: 2792219 | T24: 2792219 | U24: 2792219 | V24: 0 | W24: 120204 | X24: 120203.89 | Y24: 0.11 | Z24: 5425372 | AA24: 5425372 | AB24: 0 | AC24: 18921562 | AD24: 18921562 | AE24: 0 | AF24: 13496190 | AG24: 13496190 | AH24: 0
A25: YEAR_PR | B25: =VALUE(B24)-1 -> 2020 | D25: 22 | E25: Portage La Prairie School Division | F25: 535 - 3rd STREET N.W. | G25: PORTAGE LA PRAIRIE, MANITOBA R1N 2C4 | H25: PO | K25: 13405775.45 | L25: 13405775.64 | M25: 13405775.64 | N25: -0.3800000064 | O25: 2905674 | P25: 2905674.31 | Q25: 2905674.31 | R25: -0.6199999973 | S25: 10218226.45 | T25: 10218226.33 | U25: 10218226.33 | V25: 0.2399999909 | W25: 281875 | X25: 281875 | Y25: 0 | Z25: 23155560.45 | AA25: 23155560.45 | AB25: 0 | AC25: 54688695.45 | AD25: 54688695.45 | AE25: 0 | AF25: 31533135 | AG25: 31533135 | AH25: 0
D26: 23 | E26: Prairie Rose School Division | F26: 45 MAIN STREET S. | G26: CARMAN, MANITOBA R0G 0J0 | H26: PR | K26: 7725302 | L26: 7725302.87 | M26: 7725302.87 | N26: -1.740000002 | O26: 1885459 | P26: 1885459.46 | Q26: 1885459.46 | R26: -0.9200000018 | S26: 5632244 | T26: 5632244.41 | U26: 5632244.41 | V26: -0.8200000003 | W26: 207599 | X26: 207599 | Y26: 0 | Z26: 17659066 | AA26: 17659066 | AB26: 0 | AC26: 41322122 | AD26: 41322122 | AE26: 0 | AF26: 23663056 | AG26: 23663056 | AH26: 0
A27: YESNO | B27: FALSE | D27: 24 | E27: Prairie Spirit School Division | F27: Box 130 15 Lorne Avenue | G27: Swan Lake, Manitoba R0G 2S0 | H27: PS | K27: 9804601 | L27: 9804601 | M27: 9804601 | N27: 0 | O27: 2098320 | P27: 2098320 | Q27: 2098320 | R27: 0 | S27: 7394929 | T27: 7394929 | U27: 7394929 | V27: 0 | W27: 311352 | X27: 311352 | Y27: 0 | Z27: 10723772 | AA27: 10723772 | AB27: 0 | AC27: 42435062 | AD27: 42435062 | AE27: 0 | AF27: 31711290 | AG27: 31711290 | AH27: 0
A28: YESNO2 | B28: TRUE | D28: 25 | E28: Red River Valley School Division | F28: P.O. BOX 400 | G28: MORRIS, MANITOBA R0G 1K0 | H28: RE | K28: 9655655.36 | L28: 9655655.39 | M28: 9655655.39 | N28: -0.06000000983 | O28: 1633809 | P28: 1633808.84 | Q28: 1633808.84 | R28: 0.3199999928 | S28: 7840651.36 | T28: 7840651.37 | U28: 7840651.37 | V28: -0.02000000328 | W28: 181195 | X28: 181195.18 | Y28: -0.18 | Z28: 24875903.36 | AA28: 24875903.36 | AB28: 0 | AC28: 50314035.86 | AD28: 50314035.86 | AE28: 0 | AF28: 25438132.5 | AG28: 25438132.5 | AH28: 0
A29: YESNO3 | B29: TRUE | D29: 26 | E29: River East Transcona School Division | F29: 589 ROCH STREET | G29: WINNIPEG, MANITOBA R2K 2P7 | H29: RI | K29: 37512710 | L29: 37512710 | M29: 37512710 | N29: 0 | O29: 8811809 | P29: 8811809 | Q29: 8811809 | R29: 0 | S29: 28381123 | T29: 28381123 | U29: 28381123 | V29: 0 | W29: 319778 | X29: 319778 | Y29: 0 | Z29: 95605055 | AA29: 95605055 | AB29: 0 | AC29: 213967058 | AD29: 213967058 | AE29: 0 | AF29: 118362003 | AG29: 118362003 | AH29: 0
A30: YESNO4 | B30: FALSE | D30: 27 | E30: Rolling River School Division | F30: P.O. BOX 1170 | G30: MINNEDOSA, MANITOBA R0J 1E0 | H30: RO | K30: 9075461.83 | L30: 9075462 | M30: 9075462 | N30: -0.3399999999 | O30: 935290.83 | P30: 935291 | Q30: 935291 | R30: -0.3399999999 | S30: 7862561 | T30: 7862561 | U30: 7862561 | V30: 0 | W30: 277610 | X30: 277610 | Y30: 0 | Z30: 10808864 | AA30: 10808864 | AB30: 0 | AC30: 32794444 | AD30: 32794444 | AE30: 0 | AF30: 21985580 | AG30: 21985580 | AH30: 0
D31: 28 | E31: Seine River School Division | F31: 475-A SENEZ STREET | G31: LORETTE, MANITOBA R0A 0Y0 | H31: SE | K31: 14000470 | L31: 14000470 | M31: 14000470 | N31: 0 | O31: 1429916 | P31: 1429915.56 | Q31: 1429915.56 | R31: 0.8799999999 | S31: 12289226 | T31: 12289226.44 | U31: 12289226.44 | V31: -0.879999999 | W31: 281328 | X31: 281328 | Y31: 0 | Z31: 47819450 | AA31: 47819450 | AB31: 0 | AC31: 85672508 | AD31: 85672508 | AE31: 0 | AF31: 37853058 | AG31: 37853058 | AH31: 0
D32: 29 | E32: Seven Oaks School Division | F32: 830 POWERS STREET | G32: WINNIPEG, MANITOBA R2V 4E7 | H32: SO | K32: 54532454.33 | L32: 54532454.33 | M32: 54532454.33 | N32: 0 | O32: 1456297 | P32: 1456297 | Q32: 1456297 | R32: 0 | S32: 52917830.33 | T32: 52917830.33 | U32: 52917830.33 | V32: 0 | W32: 158327 | X32: 158327 | Y32: 0 | Z32: 179258148.8 | AA32: 179258148.8 | AB32: 0 | AC32: 259337551 | AD32: 259337551 | AE32: 0 | AF32: 80079402.17 | AG32: 80079402.17 | AH32: 0
A33: DIVNUM | B33: 1 | D33: 30 | E33: Southwest Horizon School Division | F33: P.O. BOX 370 | G33: MELITA, MANITOBA R0M 1L0 | H33: SR | K33: 10851721 | L33: 10851721 | M33: 10851721 | N33: 0 | O33: 1703294 | P33: 1703294 | Q33: 1703294 | R33: 0 | S33: 8890402 | T33: 8890402 | U33: 8890402 | V33: 0 | W33: 258025 | X33: 258025 | Y33: 0 | Z33: 20510409 | AA33: 20510409 | AB33: 0 | AC33: 44796542 | AD33: 44796542 | AE33: 0 | AF33: 24286133 | AG33: 24286133 | AH33: 0
D34: 31 | E34: St. James - Assiniboia School Division | F34: 2574 PORTAGE AVENUE | G34: WINNIPEG, MANITOBA R3J 0H8 | H34: ST | K34: 37028250.84 | L34: 37028250.84 | M34: 37028250.84 | N34: 0 | O34: 2567825 | P34: 2567825 | Q34: 2567825 | R34: 0 | S34: 33885335.84 | T34: 33885335.84 | U34: 33885335.84 | V34: 0 | W34: 575090 | X34: 575090 | Y34: 0 | Z34: 56884082.84 | AA34: 56884082.84 | AB34: 0 | AC34: 124604685 | AD34: 124604685 | AE34: 0 | AF34: 67720602.16 | AG34: 67720602.16 | AH34: 0
A35: DIVCODE | B35: =VLOOKUP(B33,D4:H42,5) -> 0 | D35: 32 | E35: Sunrise School Division | F35: P.O. BOX 1206 | G35: BEAUSEJOUR, MANITOBA R0E 0C0 | H35: SU | K35: 17276847 | L35: 17276847 | M35: 17276847 | N35: 0 | O35: 2708799 | P35: 2708799 | Q35: 2708799 | R35: 0 | S35: 13989173 | T35: 13989173 | U35: 13989173 | V35: 0 | W35: 578875 | X35: 578875 | Y35: 0 | Z35: 46849763 | AA35: 46849763 | AB35: 0 | AC35: 100742067 | AD35: 100742067 | AE35: 0 | AF35: 53892304 | AG35: 53892304 | AH35: 0
D36: 33 | E36: Swan Valley School Division | F36: P.O. BOX 995, 431 3rd STREET N. | G36: SWAN RIVER, MANITOBA R0L 1Z0 | H36: SW | K36: 8280017 | L36: 8280016.82 | M36: 8280016.82 | N36: 0.3599999994 | O36: 1460837 | P36: 1460836.92 | Q36: 1460836.92 | R36: 0.1599999992 | S36: 6521906 | T36: 6521905.9 | U36: 6521905.9 | V36: 0.1999999993 | W36: 297274 | X36: 297274 | Y36: 0 | Z36: 20300056 | AA36: 20300056 | AB36: 0 | AC36: 42312258 | AD36: 42312258 | AE36: 0 | AF36: 22012202 | AG36: 22012202 | AH36: 0
D37: 34 | E37: Turtle Mountain School Division | F37: P.O. BOX 280 | G37: KILLARNEY, MANITOBA R0K 1G0 | H37: TM | K37: 2683759 | L37: 2683759 | M37: 2683759 | N37: 0 | O37: 1703174 | P37: 1703174 | Q37: 1703174 | R37: 0 | S37: 887059 | T37: 887059 | U37: 887059 | V37: 0 | W37: 93526 | X37: 93526 | Y37: 0 | Z37: 12197352 | AA37: 12197352 | AB37: 0 | AC37: 22630646 | AD37: 22630646 | AE37: 0 | AF37: 10433294 | AG37: 10433294 | AH37: 0
A38: English | D38: 35 | E38: Turtle River School Division | F38: P.O. BOX 309 | G38: MC CREARY, MANITOBA R0J 1B0 | H38: TR | K38: 3988921 | L38: 3988921 | M38: 3988921 | N38: 0 | O38: 914430 | P38: 914430 | Q38: 914430 | R38: 0 | S38: 2895090 | T38: 2895090 | U38: 2895090 | V38: 0 | W38: 179401 | X38: 179401 | Y38: 0 | Z38: 6459749 | AA38: 6459749 | AB38: 0 | AC38: 17889500 | AD38: 17889500 | AE38: 0 | AF38: 11429751 | AG38: 11429751 | AH38: 0
A39: French | D39: 36 | E39: Western School Division | F39: UNIT 4-75 THORNHILL | G39: MORDEN, MANITOBA R6M 1P2 | H39: WE | K39: 5736855 | L39: 5736855 | M39: 5736855 | N39: 0 | O39: 895491 | P39: 895491 | Q39: 895491 | R39: 0 | S39: 4707937 | T39: 4707937 | U39: 4707937 | V39: 0 | W39: 133427 | X39: 133427 | Y39: 0 | Z39: 14457789 | AA39: 14457789 | AB39: 0 | AC39: 30045388 | AD39: 30045388 | AE39: 0 | AF39: 15587599 | AG39: 15587599 | AH39: 0
A40: 1 | D40: 37 | E40: Winnipeg School Division | F40: 1577 WALL STREET EAST | G40: WINNIPEG, MANITOBA R3E 2S5 | H40: WI | K40: 94809515 | L40: 94809515 | M40: 94809515 | N40: 0 | O40: 8003262 | P40: 8003262 | Q40: 8003262 | R40: 0 | S40: 84010839 | T40: 84010839 | U40: 84010839 | V40: 0 | W40: 2795414 | X40: 2795414 | Y40: 0 | Z40: 231368694 | AA40: 231368694 | AB40: 0 | AC40: 425733310 | AD40: 425733310 | AE40: 0 | AF40: 194364616 | AG40: 194364616 | AH40: 0
D41: 38 | E41: Manitoba Institute of Trades and Technology | F41: 130 HENLOW BAY | G41: WINNIPEG, MANITOBA R3Y 1G4 | H41: WT | K41: 13338464.71 | L41: 13338464.71 | M41: 13338464.71 | N41: 0 | O41: 8621251 | P41: 8621251 | Q41: 8621251 | R41: 0 | S41: 4717213.71 | T41: 4717213.71 | U41: 4717213.71 | V41: 0 | W41: 0 | X41: 0 | Y41: 0 | Z41: 9450142.71 | AA41: 9450142.71 | AB41: 0 | AC41: 23038176 | AD41: 23038176 | AE41: 0 | AF41: 13588033.29 | AG41: 13588033.29 | AH41: 0
D42: 39 | E42: Whiteshell School District | F42: P.O. BOX 130 | G42: PINAWA, MANITOBA R0E 1L0 | H42: XW | K42: 2076706 | L42: 2076706.67 | M42: 2076706.67 | N42: -1.34 | O42: 1169606 | P42: 1169606 | Q42: 1169606 | R42: 0 | S42: 896414 | T42: 896414 | U42: 896414 | V42: 0 | W42: 10687 | X42: 10686.67 | Y42: 0.33 | Z42: 779261 | AA42: 779261 | AB42: 0 | AC42: 3659545 | AD42: 3659545 | AE42: 0 | AF42: 2880284 | AG42: 2880284 | AH42: 0
D47: PAGE | E47: CONS Fin Pos
E50: MANITOBA PUBLIC SCHOOL DIVISIONS | K50: THE CELLS HIGH LITED IN YELLOW ARE REFERENCED TO SCHOOL DIVISION STATEMENT FILES.
E51: CONSOLIDATED FINANCIAL POSITION | K51: The cells high lited in yellow have been "copy - paste special - values" for this spreadsheet
E52: As at March 31, 2009 | I52: FORMULAS
I53: =B33 -> 1 | K53: 2 | L53: =K53+1 -> 3 | M53: =L53+1 -> 4 | N53: =M53+1 -> 5 | O53: 6 | P53: 7 | Q53: =P53+1 -> 8 | R53: 9 | S53: 10 | T53: =S53+1 -> 11 | U53: 12 | V53: 13 | W53: 14 | X53: 15 | Y53: 16 | Z53: 17 | AA53: 18 | AB53: 19 | AC53: 20 | AD53: 21 | AE53: 22 | AF53: 23 | AG53: 24 | AH53: 25 | AI53: 26 | AJ53: 27 | AK53: 28 | AL53: 29 | AM53: 30 | AN53: 31 | AO53: 32 | AP53: 33 | AQ53: 34 | AR53: 35 | AS53: 36 | AT53: 37 | AU53: 38 | AV53: 39 | AW53: 40
I54: =HLOOKUP(B33,$K$53:$AW$88,J54,FALSE) ->  | J54: 2 | K54: BE | L54: BO | M54: BR | N54: DI | O54: EV | P54: FL | Q54: FO | R54: FR | S54: GA | T54: HA | U54: IN | V54: KE | W54: LA | X54: LO | Y54: LR | Z54: MO | AA54: MY | AB54: PA | AC54: PE | AD54: PI | AE54: PO | AF54: PR | AG54: PS | AH54: RE | AI54: RI | AJ54: RO | AK54: SE | AL54: SO | AM54: SR | AN54: ST | AO54: SU | AP54: SW | AQ54: TM | AR54: TR | AS54: WE | AT54: WI | AU54: WT | AV54: XW | AW54: TOTAL
E55: Financial Assets | J55: =J54+1 -> 3
F56: Cash and Bank | I56: =IF($I$53=1,0,HLOOKUP($I$53,$K$53:$AW$88,J56,FALSE)) -> 0 | J56: 4 | K56: 1334617.72 | L56: 1345061 | M56: 21345439 | N56: 22417791 | O56: 1754882 | P56: 949244 | Q56: 175032 | R56: 1168640.25 | S56: 1485971 | T56: 0 | U56: 2174571 | V56: 570853 | W56: 1918996 | X56: 0 | Y56: 0 | Z56: 0 | AA56: 12809200.22 | AB56: 104675 | AC56: 3688181 | AD56: 1391001 | AE56: 6966700 | AF56: 417603 | AG56: 2132432 | AH56: 0 | AI56: 1801353 | AJ56: 0 | AK56: 0 | AL56: 4796581 | AM56: 3395940 | AN56: 5710546 | AO56: 0 | AP56: 4158990 | AQ56: 0 | AR56: 1652258 | AS56: 0 | AT56: 23627075 | AU56: 9161313 | AV56: 1160478 | AW56: =SUM($K56:AV56) -> 139615424.2
F57: Due from | G57: - Provincial Government | I57: 0 | J57: 5 | K57: 1137747.93 | L57: 1874020 | M57: 3834623 | N57: 3572620 | O57: 1569983 | P57: 551113 | Q57: 855266 | R57: 1752325.68 | S57: 2952038 | T57: 4594343 | U57: 1685095 | V57: 1074020 | W57: 721060 | X57: 3334109 | Y57: 9456740 | Z57: 1991797 | AA57: 1117269.53 | AB57: 964332 | AC57: 9273503 | AD57: 496259 | AE57: 1303665 | AF57: 1761529 | AG57: 969003 | AH57: 1408234 | AI57: 10199506 | AJ57: 1089514 | AK57: 2520198 | AL57: 7187201 | AM57: 1010554 | AN57: 2801688 | AO57: 3469021 | AP57: 1111496 | AQ57: 634074 | AR57: 325307 | AS57: 933982 | AT57: 15057924 | AU57: 637824 | AV57: 128622 | AW57: =SUM($K57:AV57) -> 105357606.1
G58: - Federal Government | I58: 0 | J58: 6 | K58: 89232.69 | L58: 42720 | M58: 145904 | N58: 627836 | O58: 88229 | P58: 18421 | Q58: 74794 | R58: 724900.4 | S58: 114466 | T58: 43909 | U58: 5358 | V58: 0 | W58: 21338 | X58: 76793 | Y58: 304378 | Z58: 91131 | AA58: 32933.73 | AB58: 31968 | AC58: 80353 | AD58: 76766 | AE58: 183062 | AF58: 77985 | AG58: 42019 | AH58: 39563 | AI58: 311412 | AJ58: 38504.83 | AK58: 311750 | AL58: 259709 | AM58: 31130 | AN58: 86095 | AO58: 109059 | AP58: 25996 | AQ58: 9532 | AR58: 15271 | AS58: 84142 | AT58: 1859647 | AU58: 325075 | AV58: 0 | AW58: =SUM($K58:AV58) -> 6501382.65
G59: - Municipal Government | I59: 0 | J59: 7 | K59: 1989701.9 | L59: 3775289 | M59: 11426590 | N59: 8225290 | O59: 2462366 | P59: 855841 | Q59: 2332060 | R59: 906973.7 | S59: 4130633 | T59: 8318605 | U59: 4297123 | V59: 1033780 | W59: 1154836 | X59: 7573413 | Y59: 23488913 | Z59: 4105099 | AA59: 2125743.3 | AB59: 2289081 | AC59: 26001493 | AD59: 1635078 | AE59: 4007714 | AF59: 3235548 | AG59: 3368306 | AH59: 4510357 | AI59: 20553203 | AJ59: 2845314 | AK59: 5152820 | AL59: 14392644 | AM59: 9605131 | AN59: 16677911 | AO59: 8676826 | AP59: 1738541 | AQ59: 1831547 | AR59: 722851 | AS59: 2228863 | AT59: 48974633 | AU59: 0 | AV59: 8345 | AW59: =SUM($K59:AV59) -> 266658462.9
G60: - Other School Divisions | I60: 0 | J60: 8 | K60: 0 | L60: 304545 | M60: 49709 | N60: 824877 | O60: 0 | P60: 0 | Q60: 0 | R60: 0 | S60: 318045 | T60: 30066 | U60: 0 | V60: 0 | W60: 2164 | X60: 35505 | Y60: 267312 | Z60: 15636 | AA60: 0 | AB60: 0 | AC60: 289499 | AD60: 0 | AE60: 0 | AF60: 0 | AG60: 0 | AH60: 151937 | AI60: 229190 | AJ60: 0 | AK60: 189618 | AL60: 107 | AM60: 0 | AN60: 0 | AO60: 910 | AP60: 3600 | AQ60: 0 | AR60: 0 | AS60: 0 | AT60: 327779 | AU60: 138339 | AV60: 0 | AW60: =SUM($K60:AV60) -> 3178838
G61: - First Nations | I61: 0 | J61: 9 | K61: 0 | L61: 297417 | M61: 35290 | N61: 0 | O61: 106500 | P61: 0 | Q61: 267638 | R61: 16609825.34 | S61: 0 | T61: 0 | U61: 0 | V61: 25800 | W61: 134732 | X61: 129800 | Y61: 0 | Z61: 159989 | AA61: -1214 | AB61: 0 | AC61: 0 | AD61: 0 | AE61: 225926 | AF61: 0 | AG61: 46805 | AH61: 0 | AI61: 35650 | AJ61: 408012 | AK61: 0 | AL61: 469100 | AM61: 0 | AN61: 57360 | AO61: 95803 | AP61: 0 | AQ61: 0 | AR61: 0 | AS61: 0 | AT61: 585597 | AU61: 0 | AV61: 0 | AW61: =SUM($K61:AV61) -> 19690030.34
F62: Accounts Receivable | I62: 0 | J62: 10 | K62: 46792 | L62: 134031 | M62: 39138 | N62: 296191 | O62: 45073 | P62: 256334 | Q62: 27425 | R62: 1793084.3 | S62: 65172 | T62: 155973 | U62: 67084 | V62: 144952 | W62: 39007 | X62: 246390 | Y62: 454569 | Z62: 189761 | AA62: 48738.7 | AB62: 1643182 | AC62: 235311 | AD62: 77532 | AE62: 27874 | AF62: 32162 | AG62: 129164 | AH62: 76609 | AI62: 613444 | AJ62: 37328 | AK62: 86874 | AL62: 332539 | AM62: 33341 | AN62: 106104 | AO62: 126100 | AP62: 48651 | AQ62: 9830 | AR62: 48084 | AS62: 11332 | AT62: 1903374 | AU62: 6029670 | AV62: 0 | AW62: =SUM($K62:AV62) -> 15658220
F63: Accrued Investment Income | I63: 0 | J63: 11 | K63: 0 | L63: 0 | M63: 0 | N63: 0 | O63: 345 | P63: 0 | Q63: 0 | R63: 0 | S63: 0 | T63: 0 | U63: 697 | V63: 0 | W63: 0 | X63: 0 | Y63: 0 | Z63: 0 | AA63: 0 | AB63: 0 | AC63: 0 | AD63: 0 | AE63: 0 | AF63: 0 | AG63: 0 | AH63: 0 | AI63: 0 | AJ63: 0 | AK63: 0 | AL63: 0 | AM63: 0 | AN63: 0 | AO63: 0 | AP63: 0 | AQ63: 0 | AR63: 0 | AS63: 0 | AT63: 170 | AU63: 79313 | AV63: 0 | AW63: =SUM($K63:AV63) -> 80525
F64: Portfolio Investments | I64: 0 | J64: =J63+1 -> 12 | K64: 0 | L64: 0 | M64: 0 | N64: 49473 | O64: 15000 | P64: 0 | Q64: 66951 | R64: 0 | S64: 0 | T64: 0 | U64: 966 | V64: 0 | W64: 0 | X64: 0 | Y64: 0 | Z64: 27808 | AA64: 0 | AB64: 0 | AC64: 0 | AD64: 0 | AE64: 0 | AF64: 0 | AG64: 0 | AH64: 0 | AI64: 0 | AJ64: 0 | AK64: 0 | AL64: 0 | AM64: 0 | AN64: 0 | AO64: 414773 | AP64: 0 | AQ64: 0 | AR64: 0 | AS64: 0 | AT64: 5406013 | AU64: 10819186 | AV64: 0 | AW64: =SUM($K64:AV64) -> 16800170
I65: 0 | J65: =J64+1 -> 13 | K65: =SUM(K56:K64) -> 4598092.24 | L65: =SUM(L56:L64) -> 7773083 | M65: =ROUND(SUM(M56:M64),0) -> 36876693 | N65: 36014078 | O65: 6042378 | P65: 2630953 | Q65: 3799166 | R65: 22955750 | S65: 9066325 | T65: 13142896 | U65: 8230894 | V65: =SUM(V56:V64) -> 2849405 | W65: 3992133 | X65: 11396010 | Y65: 33971912 | Z65: 6581221 | AA65: 16132671.48 | AB65: 5033238 | AC65: 39568340 | AD65: 3676636 | AE65: 12714941 | AF65: 5524827 | AG65: 6687729 | AH65: 6186700 | AI65: 33743758 | AJ65: 4418672.83 | AK65: 8261260 | AL65: 27437881 | AM65: 14076096 | AN65: 25439704 | AO65: 12892492 | AP65: 7087274 | AQ65: 2484983 | AR65: 2763771 | AS65: 3258319 | AT65: 97742212 | AU65: 27190720 | AV65: 1297445 | AW65: 573540659.2
E66: Liabilities | J66: 14
F67: Overdraft | I67: =IF($I$53=1,0,HLOOKUP($I$53,$K$53:$AW$88,J67,FALSE)) -> 0 | J67: 15 | K67: 0 | L67: 0 | M67: 0 | N67: 0 | O67: 0 | P67: 0 | Q67: 0 | R67: 0 | S67: 0 | T67: 54526 | U67: 0 | V67: 0 | W67: 0 | X67: 108020 | Y67: 9517415.62 | Z67: 514605 | AA67: 0 | AB67: 0 | AC67: 0 | AD67: 0 | AE67: 0 | AF67: 0 | AG67: 0 | AH67: 1153061 | AI67: 0 | AJ67: 468582 | AK67: 176673 | AL67: 0 | AM67: 0 | AN67: 0 | AO67: 4382812 | AP67: 0 | AQ67: 373906 | AR67: 0 | AS67: 1137412 | AT67: 0 | AU67: 0 | AV67: 0 | AW67: =SUM($K67:AV67) -> 17887012.62
F68: Accounts Payable | I68: 0 | J68: 16 | K68: 253712.5 | L68: 582451 | M68: 6269207 | N68: 4321317 | O68: 693182 | P68: 426949 | Q68: 273417 | R68: 6041009.5 | S68: 936031 | T68: 927717 | U68: 32009 | V68: 510007 | W68: 490177 | X68: 1759049 | Y68: 5798486 | Z68: 1024866 | AA68: 319299.58 | AB68: 2312933 | AC68: 3385017 | AD68: 600848 | AE68: 1011039 | AF68: 717252 | AG68: 2658491 | AH68: 470233 | AI68: 2077973 | AJ68: 26076 | AK68: 587798 | AL68: 3771278 | AM68: 2261958 | AN68: 4192630 | AO68: 1494832 | AP68: 472886 | AQ68: 169443 | AR68: 43124 | AS68: 107621 | AT68: 9098022 | AU68: 421031 | AV68: 0 | AW68: =SUM($K68:AV68) -> 66539371.58
F69: Accrued Liabilities | I69: 0 | J69: 17 | K69: 1716420.69 | L69: 2219920 | M69: 10886323 | N69: 3937759 | O69: 1388456 | P69: 1047932 | Q69: 171401 | R69: 9229203.95 | S69: 4262171 | T69: 6665973 | U69: 3358096 | V69: 1392213 | W69: 1103762 | X69: 3961147 | Y69: 20703547 | Z69: 2518023 | AA69: 5188975.92 | AB69: 0 | AC69: 15712493 | AD69: 965778 | AE69: 3012481 | AF69: 1880401 | AG69: 172755 | AH69: 2238375 | AI69: 18643749 | AJ69: 500746 | AK69: 4214018 | AL69: 17084642 | AM69: 520644 | AN69: 10527519 | AO69: 4243172 | AP69: 1539946 | AQ69: 158748 | AR69: 728467 | AS69: 1669293 | AT69: 43776950 | AU69: 1618407 | AV69: 0 | AW69: =SUM($K69:AV69) -> 208959907.6
F70: Employee Future Benefits | I70: 0 | J70: 18 | K70: 40548.31 | L70: 0 | M70: 0 | N70: 1311080.55 | O70: 136166 | P70: 161461 | Q70: 72067 | R70: 972379.02 | S70: 0 | T70: 719356 | U70: 1581294 | V70: 120356 | W70: 40495 | X70: 390109 | Y70: 1816035.67 | Z70: 510455 | AA70: 5113992.86 | AB70: 68014 | AC70: 2183267 | AD70: 153206 | AE70: 132729 | AF70: 221360 | AG70: 227108 | AH70: 137263 | AI70: 2089086 | AJ70: 145867 | AK70: 228654 | AL70: 632854 | AM70: 0 | AN70: 2048256 | AO70: 1047908 | AP70: 172092 | AQ70: 65255 | AR70: 58956 | AS70: 0 | AT70: 7510347 | AU70: 0 | AV70: 0 | AW70: =SUM($K70:AV70) -> 30108017.41
F71: Accrued Interest Payable | I71: 0 | J71: 19 | K71: 480530.19 | L71: 180866 | M71: 819797 | N71: 814298 | O71: 247325 | P71: 96314 | Q71: 230185 | R71: 838825 | S71: 1385373 | T71: 1544926 | U71: 317764 | V71: 318239 | W71: 182965 | X71: 518596 | Y71: 607860 | Z71: 623424 | AA71: 209191.5 | AB71: 241533 | AC71: 1189910 | AD71: 181015 | AE71: 145585 | AF71: 182819 | AG71: 111360 | AH71: 242646 | AI71: 1009987 | AJ71: 116199 | AK71: 598084 | AL71: 1288950.5 | AM71: 244340 | AN71: 414311 | AO71: 484395 | AP71: 275220 | AQ71: 160913 | AR71: 77258 | AS71: 212518 | AT71: 1881521 | AU71: 117321 | AV71: 0 | AW71: =SUM($K71:AV71) -> 18592364.19
F72: Due to | G72: - Provincial Government | I72: 0 | J72: 20 | K72: 13.38 | L72: 29934 | M72: 0 | N72: 254856 | O72: 0 | P72: 989 | Q72: 0 | R72: 311634.49 | S72: 75144 | T72: 0 | U72: 0 | V72: 0 | W72: 0 | X72: 0 | Y72: 7420.86 | Z72: 23815 | AA72: 28179.22 | AB72: 0 | AC72: 251326 | AD72: 0 | AE72: 99275 | AF72: 38274 | AG72: 0 | AH72: 2088 | AI72: 8687 | AJ72: 967 | AK72: 153767 | AL72: 210584 | AM72: 0 | AN72: 160366 | AO72: 0 | AP72: 0 | AQ72: 0 | AR72: 0 | AS72: 30479 | AT72: 3368054 | AU72: 0 | AV72: 0 | AW72: =SUM($K72:AV72) -> 5055852.95
G73: - Federal Government | I73: 0 | J73: 21 | K73: 0 | L73: 226987 | M73: 0 | N73: 2790823 | O73: 219474 | P73: 0 | Q73: 0 | R73: 0 | S73: 544630 | T73: 0 | U73: 0 | V73: 0 | W73: 0 | X73: 0 | Y73: 9448 | Z73: 0 | AA73: 94.67 | AB73: 0 | AC73: 1890863 | AD73: 0 | AE73: 444093 | AF73: 0 | AG73: 0 | AH73: 5272 | AI73: 0 | AJ73: 0 | AK73: 601620 | AL73: 1259331 | AM73: 0 | AN73: 0 | AO73: 0 | AP73: 213273 | AQ73: 0 | AR73: 0 | AS73: 3874 | AT73: 4101265 | AU73: 0 | AV73: 0 | AW73: =SUM($K73:AV73) -> 12311047.67
G74: - Municipal Government | I74: 0 | J74: 22 | K74: 0 | L74: 3568 | M74: 0 | N74: 12224 | O74: 0 | P74: 0 | Q74: 0 | R74: 0 | S74: 0 | T74: 0 | U74: 0 | V74: 0 | W74: 4399 | X74: 0 | Y74: 0 | Z74: 0 | AA74: 0 | AB74: 0 | AC74: 120588 | AD74: 0 | AE74: 0 | AF74: 20675 | AG74: 0 | AH74: 26400 | AI74: 0 | AJ74: 0 | AK74: 0 | AL74: 140076 | AM74: 0 | AN74: 0 | AO74: 0 | AP74: 30469 | AQ74: 0 | AR74: 0 | AS74: 0 | AT74: 374883 | AU74: 0 | AV74: 0 | AW74: =SUM($K74:AV74) -> 733282
G75: - Other School Divisions | I75: 0 | J75: 23 | K75: 0 | L75: 263878 | M75: 0 | N75: 0 | O75: 0 | P75: 78251 | Q75: 0 | R75: 0 | S75: 0 | T75: 0 | U75: 0 | V75: 0 | W75: 0 | X75: 0 | Y75: 0 | Z75: 0 | AA75: 0 | AB75: 0 | AC75: 0 | AD75: 0 | AE75: 0 | AF75: 0 | AG75: 0 | AH75: 206421 | AI75: 0 | AJ75: 0 | AK75: 0 | AL75: 4806 | AM75: 0 | AN75: 0 | AO75: 0 | AP75: 0 | AQ75: 0 | AR75: 0 | AS75: 0 | AT75: 0 | AU75: 0 | AV75: 0 | AW75: =SUM($K75:AV75) -> 553356
G76: - First Nations | I76: 0 | J76: 24 | K76: 0 | L76: 0 | M76: 0 | N76: 0 | O76: 0 | P76: 0 | Q76: 0 | R76: 0 | S76: 0 | T76: 0 | U76: 0 | V76: 0 | W76: 0 | X76: 0 | Y76: 0 | Z76: 0 | AA76: 0 | AB76: 0 | AC76: 0 | AD76: 0 | AE76: 0 | AF76: 0 | AG76: 0 | AH76: 0 | AI76: 0 | AJ76: 0 | AK76: 0 | AL76: 0 | AM76: 0 | AN76: 0 | AO76: 0 | AP76: 0 | AQ76: 0 | AR76: 0 | AS76: 0 | AT76: 0 | AU76: 0 | AV76: 0 | AW76: =SUM($K76:AV76) -> 0
F77: Deferred Revenue | I77: 0 | J77: 25 | K77: 49792.89 | L77: 301367 | M77: 194360 | N77: 766349 | O77: 137197 | P77: 52933 | Q77: 17635 | R77: 1150602.7 | S77: 139921 | T77: 111941 | U77: 10000 | V77: 0 | W77: 0 | X77: 396063 | Y77: 989860 | Z77: 703492 | AA77: 117874 | AB77: 9100 | AC77: 2006999 | AD77: 115998 | AE77: 95396 | AF77: 0 | AG77: 17967 | AH77: 11697 | AI77: 2077756 | AJ77: 0 | AK77: 121369 | AL77: 812122 | AM77: 6834577 | AN77: 954271 | AO77: 180773 | AP77: 375411 | AQ77: 2532 | AR77: 0 | AS77: 374130 | AT77: 3399058 | AU77: 17493232 | AV77: 0 | AW77: =SUM($K77:AV77) -> 40021775.59
F78: Debenture Debt | I78: 0 | J78: 26 | K78: 29352561 | L78: 12239020 | M78: 59499621 | N78: 60306284 | O78: 10544925 | P78: 6364977 | Q78: 9996440 | R78: 40721130 | S78: 78430214 | T78: 101372862 | U78: 17916414 | V78: 17933291 | W78: 7831780 | X78: 28035284 | Y78: 47661147 | Z78: 39058988 | AA78: 10287815 | AB78: 8419753 | AC78: 79409751 | AD78: 3364929 | AE78: 17523965 | AF78: 11643220 | AG78: 4584806 | AH78: 13957820 | AI78: 59700832 | AJ78: 5029097 | AK78: 35514892 | AL78: 104101479 | AM78: 14101069 | AN78: 27230472 | AO78: 29769520 | AP78: 16153806 | AQ78: 11341933 | AR78: 4439157 | AS78: 8584615 | AT78: 158458199 | AU78: 3852877 | AV78: 0 | AW78: =SUM($K78:AV78) -> 1194734945
F79: Other Borrowings | I79: 0 | J79: 27 | K79: 0 | L79: 0 | M79: 0 | N79: 1164308 | O79: 0 | P79: 0 | Q79: 1000000 | R79: 2225016 | S79: 88335 | T79: 0 | U79: 0 | V79: 0 | W79: 0 | X79: 0 | Y79: 0 | Z79: 1980520 | AA79: 0 | AB79: 3756933 | AC79: 0 | AD79: 0 | AE79: 0 | AF79: 711243 | AG79: 0 | AH79: 3165058 | AI79: 4487163 | AJ79: 0 | AK79: 0 | AL79: 22728658 | AM79: 274970 | AN79: 0 | AO79: 1752761 | AP79: 0 | AQ79: 0 | AR79: 0 | AS79: 0 | AT79: 0 | AU79: 2783 | AV79: 0 | AW79: =SUM($K79:AV79) -> 43337748
F80: School Generated Funds Liability | I80: 0 | J80: 28 | K80: 14793 | L80: 0 | M80: 253910 | N80: 273405 | O80: 39933 | P80: 0 | Q80: 30657 | R80: 609554 | S80: 0 | T80: 0 | U80: 103496 | V80: 0 | W80: 0 | X80: 85901 | Y80: 219461 | Z80: 94422 | AA80: 193813 | AB80: 0 | AC80: 1990850 | AD80: 0 | AE80: 126734 | AF80: 43347 | AG80: 45969 | AH80: 76399 | AI80: 2539757 | AJ80: 0 | AK80: 110356 | AL80: 474886 | AM80: 0 | AN80: 529044 | AO80: 65596 | AP80: 0 | AQ80: 0 | AR80: 0 | AS80: 0 | AT80: 4326884 | AU80: 0 | AV80: 0 | AW80: =SUM($K80:AV80) -> 12249167
I81: 0 | J81: 29 | K81: =SUM(K67:K80) -> 31908371.96 | L81: =SUM(L67:L80) -> 16047991 | M81: =ROUND(SUM(M67:M80),0) -> 77923218 | N81: 75952703.55 | O81: 13406658 | P81: 8229806 | Q81: 11791802 | R81: 62099354.66 | S81: 85861819 | T81: 111397301 | U81: 23319073 | V81: 20274106 | W81: 9653578 | X81: 35254169 | Y81: 87330681.15 | Z81: 47052610 | AA81: 21459235.75 | AB81: 14808266 | AC81: 108141064 | AD81: 5381774 | AE81: 22591297 | AF81: 15458591 | AG81: 7818456 | AH81: 21692733 | AI81: 92634990 | AJ81: 6287534 | AK81: 42307231 | AL81: 152509666.5 | AM81: 24237558 | AN81: 46056869 | AO81: 43421769 | AP81: 19233103 | AQ81: 12272730 | AR81: 5346962 | AS81: 12119942 | AT81: 236295183 | AU81: 23505651 | AV81: 0 | AW81: =SUM(AW67:AW80) -> 1651083848
E82: Net Debt | I82: 0 | J82: 30 | K82: =ROUND(K65-K81,0) -> -27310280 | L82: -8274908 | M82: -41046525 | N82: -39938626 | O82: -7364280 | P82: -5598853 | Q82: -7992636 | R82: -39143605 | S82: -76795494 | T82: -98254405 | U82: -15088179 | V82: =ROUND(V65-V81,0) -> -17424701 | W82: -5661445 | X82: -23858159 | Y82: -53358769 | Z82: -40471389 | AA82: -5326564 | AB82: -9775028 | AC82: -68572724 | AD82: -1705138 | AE82: -9876356 | AF82: -9933764 | AG82: -1130727 | AH82: -15506033 | AI82: -58891232 | AJ82: -1868861 | AK82: -34045971 | AL82: -125071786 | AM82: -10161462 | AN82: -20617165 | AO82: -30529277 | AP82: -12145829 | AQ82: -9787747 | AR82: -2583191 | AS82: -8861623 | AT82: -138552971 | AU82: 3685069 | AV82: 1297445 | AW82: =AW65-AW81 -> -1077543188
E83: Non-Financial Assets | J83: 31
F84: Net Tangible Capital Assets (TCA Schedule) | I84: =IF($I$53=1,0,HLOOKUP($I$53,$K$53:$AW$88,J84,FALSE)) -> 0 | J84: 32 | K84: 35997852.5 | L84: 22637929.23 | M84: 66651850.67 | N84: 88524830 | O84: 19296977 | P84: 8419353 | Q84: 15679140 | R84: 78144349.98 | S84: 104202596 | T84: 126602482 | U84: 22386538 | V84: 36136781 | W84: 12518716 | X84: 38093788.47 | Y84: 84057989.8 | Z84: 46477520 | AA84: 18948135.03 | AB84: 11986138.16 | AC84: 114535880 | AD84: 5425372 | AE84: 23155560.45 | AF84: 17659066 | AG84: 10723772 | AH84: 24875903.36 | AI84: 95605055 | AJ84: 10808864 | AK84: 47819450 | AL84: 179258148.8 | AM84: 20510409 | AN84: 56884082.84 | AO84: 46849763 | AP84: 20300056 | AQ84: 12197352 | AR84: 6459749 | AS84: 14457789 | AT84: 231368694 | AU84: 9450142.71 | AV84: 779261 | AW84: =SUM($K84:AV84) -> 1785887337
F85: Inventories | I85: =IF($I$53=1,0,HLOOKUP($I$53,$K$53:$AW$88,J85,FALSE)) -> 0 | J85: 33 | K85: 0 | L85: 141605 | M85: 113611 | N85: 0 | O85: 0 | P85: 0 | Q85: 0 | R85: 0 | S85: 0 | T85: 300102 | U85: 135154 | V85: 0 | W85: 0 | X85: 59572 | Y85: 35727.78 | Z85: 354513 | AA85: 119540.01 | AB85: 144031 | AC85: 0 | AD85: 0 | AE85: 27740 | AF85: 0 | AG85: 0 | AH85: 180375 | AI85: 0 | AJ85: 0 | AK85: 0 | AL85: 0 | AM85: 146625 | AN85: 0 | AO85: 476015 | AP85: 29494 | AQ85: 5734 | AR85: 112363 | AS85: 34907 | AT85: 996970 | AU85: 0 | AV85: 0 | AW85: =SUM($K85:AV85) -> 3414078.79
F86: Prepaid Expenses | I86: =IF($I$53=1,0,HLOOKUP($I$53,$K$53:$AW$88,J86,FALSE)) -> 0 | J86: 34 | K86: 322974.29 | L86: 39584 | M86: 528281 | N86: 1307534 | O86: 138337 | P86: 75297 | Q86: 9992 | R86: 693955.1 | S86: 142588 | T86: 1071442 | U86: 65143 | V86: 0 | W86: 80292 | X86: 191609 | Y86: 809403.63 | Z86: 937865 | AA86: 179736.46 | AB86: 71680 | AC86: 902415 | AD86: 70900 | AE86: 98831 | AF86: 0 | AG86: 211556 | AH86: 105410 | AI86: 798887 | AJ86: 135459 | AK86: 226991 | AL86: 346091 | AM86: 356149 | AN86: 761333 | AO86: 480346 | AP86: 96296 | AQ86: 268420 | AR86: 0 | AS86: 105782 | AT86: 996822 | AU86: 203253 | AV86: 0 | AW86: =SUM($K86:AV86) -> 12830654.48
I87: =IF($I$53=1,0,HLOOKUP($I$53,$K$53:$AW$88,J87,FALSE)) -> 0 | J87: 35 | K87: =SUM(K84:K86) -> 36320826.79 | L87: =SUM(L84:L86) -> 22819118.23 | M87: =ROUND(SUM(M84:M86),0) -> 67293743 | N87: 89832364 | O87: 19435314 | P87: 8494650 | Q87: 15689132 | R87: 78838305.08 | S87: 104345184 | T87: 127974026 | U87: =ROUND(SUM(U84:U86),0) -> 22586835 | V87: 36136781 | W87: 12599008 | X87: 38344969.47 | Y87: 84903121.21 | Z87: 47769898 | AA87: 19247411.5 | AB87: 12201849.16 | AC87: 115438295 | AD87: 5496272 | AE87: 23282131.45 | AF87: 17659066 | AG87: 10935328 | AH87: 25161688.36 | AI87: 96403942 | AJ87: 10944323 | AK87: 48046441 | AL87: 179604239.8 | AM87: 21013183 | AN87: 57645415.84 | AO87: 47806124 | AP87: 20425846 | AQ87: 12471506 | AR87: 6572112 | AS87: 14598478 | AT87: 233362486 | AU87: 9653395.71 | AV87: 779261 | AW87: =SUM(AW84:AW86) -> 1802132070
E88: Accumulated Surplus | I88: =IF($I$53=1,0,HLOOKUP($I$53,$K$53:$AW$88,J88,FALSE)) -> 0 | J88: 36 | K88: =SUM(K82,K87) -> 9010546.79 | L88: =SUM(L82,L87) -> 14544210.23 | M88: 26247218 | N88: 49893738 | O88: 12071034 | P88: 2895797 | Q88: 7696496 | R88: 39694700.08 | S88: 27549690 | T88: 29719621 | U88: 7498656 | V88: 18712080 | W88: 6937563 | X88: 14486810.47 | Y88: 31544352.21 | Z88: 7298509 | AA88: 13920847.5 | AB88: 2426821.155 | AC88: 46865571 | AD88: 3791134 | AE88: 13405775.45 | AF88: 7725302 | AG88: 9804601 | AH88: 9655655.36 | AI88: 37512710 | AJ88: 9075462 | AK88: 14000470 | AL88: 54532453.83 | AM88: 10851721 | AN88: 37028250.84 | AO88: 17276847 | AP88: 8280017 | AQ88: 2683759 | AR88: 3988921 | AS88: 5736855 | AT88: 94809515 | AU88: 13338464.71 | AV88: 2076706 | AW88: =SUM(AW82,AW87) -> 724588881.9
D94: PAGE | E94: CONS Rev Exp
E97: MANITOBA PUBLIC SCHOOL DIVISIONS | K97: THE CELLS HIGH LITED IN YELLOW ARE REFERENCED TO SCHOOL DIVISION STATEMENT FILES.
E98: CONSOLIDATED STATEMENT | K98: The cells high lited in yellow have been "copy - paste special - values" for this spreadsheet
E99: OF REVENUE, EXPENSES
E100: AND ACCUMULATED SURPLUS
E101: For the Year Ended March 31, 2009 | I101: FORMULAS | K101: 0 | L101: 0 | M101: 0 | N101: 0 | O101: 0 | P101: 0 | Q101: 0 | R101: 0 | S101: 0 | T101: 0 | U101: 0 | V101: 0 | W101: 0 | X101: 0 | Y101: 0 | Z101: 0 | AA101: 0 | AB101: 0 | AC101: 0 | AD101: 0 | AE101: 0 | AF101: 0 | AG101: 0 | AH101: 0 | AI101: 0 | AJ101: 0 | AK101: 0 | AL101: 0 | AM101: 0 | AN101: 0 | AO101: 0 | AP101: 0 | AQ101: 0 | AR101: 0 | AS101: 0 | AT101: 0 | AU101: 0 | AV101: 0
I102: =$I$53 -> 1 | K102: 2 | L102: =K102+1 -> 3 | M102: =L102+1 -> 4 | N102: =M102+1 -> 5 | O102: 6 | P102: 7 | Q102: =P102+1 -> 8 | R102: 9 | S102: 10 | T102: =S102+1 -> 11 | U102: 12 | V102: 13 | W102: 14 | X102: 15 | Y102: 16 | Z102: 17 | AA102: 18 | AB102: 19 | AC102: 20 | AD102: 21 | AE102: 22 | AF102: 23 | AG102: 24 | AH102: 25 | AI102: 26 | AJ102: 27 | AK102: 28 | AL102: 29 | AM102: 30 | AN102: 31 | AO102: 32 | AP102: 33 | AQ102: 34 | AR102: 35 | AS102: 36 | AT102: 37 | AU102: 38 | AV102: 39 | AW102: 40
I103: =HLOOKUP(B33,$K$102:$AW$131,J103,FALSE) ->  | J103: 2 | K103: BE | L103: BO | M103: BR | N103: DI | O103: EV | P103: FL | Q103: FO | R103: FR | S103: GA | T103: HA | U103: IN | V103: KE | W103: LA | X103: LO | Y103: LR | Z103: MO | AA103: MY | AB103: PA | AC103: PE | AD103: PI | AE103: PO | AF103: PR | AG103: PS | AH103: RE | AI103: RI | AJ103: RO | AK103: SE | AL103: SO | AM103: SR | AN103: ST | AO103: SU | AP103: SW | AQ103: TM | AR103: TR | AS103: WE | AT103: WI | AU103: WT | AV103: XW | AW103: TOTAL
E104: Revenue | J104: 3
F105: Provincial Government | I105: =IF($I$102=1,0,HLOOKUP($B$33,$K$102:$AW$133,J105,FALSE)) -> 0 | J105: 4 | K105: 16143853.44 | L105: 22746492 | M105: 67163128 | N105: 75519970 | O105: 14762936 | P105: 11298268 | Q105: 11141636 | R105: 54998448.17 | S105: 41472308 | T105: 73730739 | U105: 24440647 | V105: 19183567 | W105: 12814406 | X105: 36564023 | Y105: 118019431.5 | Z105: 30005057 | AA105: 35626438.96 | AB105: 14513828 | AC105: 94439343 | AD105: 9440657.29 | AE105: 24622853 | AF105: 18305545 | AG105: 17639303 | AH105: 17506072 | AI105: 134987684 | AJ105: 14301281 | AK105: 41381459 | AL105: 108809658 | AM105: 13971974 | AN105: 59223947 | AO105: 40719900 | AP105: 15993204 | AQ105: 8680601 | AR105: 9032794 | AS105: 14798526 | AT105: 257394513.7 | AU105: 10694599 | AV105: 1273534 | AW105: =SUM($K105:AV105) -> 1593362625
F106: Federal Government | I106: 0 | J106: 5 | K106: 0 | L106: 1400 | M106: 66804 | N106: 278789 | O106: 0 | P106: 36477 | Q106: 0 | R106: 1177118 | S106: 0 | T106: 0 | U106: 16706 | V106: 0 | W106: 303154 | X106: 0 | Y106: 215383 | Z106: 0 | AA106: 19639.69 | AB106: 0 | AC106: 0 | AD106: 81250 | AE106: 16375 | AF106: 0 | AG106: 46725 | AH106: 7851 | AI106: 472500 | AJ106: 28435 | AK106: 26339 | AL106: 1187928 | AM106: 0 | AN106: 15904 | AO106: 0 | AP106: 6983 | AQ106: 429 | AR106: 0 | AS106: 25000 | AT106: 4347208 | AU106: 2275239 | AV106: 0 | AW106: =SUM($K106:AV106) -> 10653636.69
F107: Municipal Government | I107: 0 | J107: 6 | K107: 7536218.58 | L107: 12434654 | M107: 39464643.31 | N107: 26126108 | O107: 8432260 | P107: 3625588 | Q107: 8114340 | R107: 3179511.69 | S107: 16321513 | T107: 27476634 | U107: 15790975 | V107: 2755126 | W107: 3811476 | X107: 24963249 | Y107: 77059628.13 | Z107: 13484532 | AA107: 6960463.2 | AB107: 8270640 | AC107: 85577803 | AD107: 6557172.13 | AE107: 15295211 | AF107: 14392784 | AG107: 11641251 | AH107: 14897458 | AI107: 68019303 | AJ107: 9959515 | AK107: 17104659 | AL107: 47065309 | AM107: 11728524 | AN107: 51313777 | AO107: 29364865 | AP107: 6328858 | AQ107: 5713562 | AR107: 2866529 | AS107: 7287157 | AT107: 161118519 | AU107: 0 | AV107: 1660894 | AW107: =SUM($K107:AV107) -> 873700710
F108: Other School Divisions | I108: 0 | J108: 7 | K108: 30225 | L108: 604335 | M108: 417911.5 | N108: 2113668 | O108: 30745 | P108: 264229 | Q108: 36850 | R108: 16250 | S108: 468901 | T108: 112220 | U108: 47112 | V108: 5128 | W108: 47668 | X108: 172580 | Y108: 520393.21 | Z108: 465507 | AA108: 129802 | AB108: 18350 | AC108: 508362 | AD108: 43095 | AE108: 170004 | AF108: 111150 | AG108: 54600 | AH108: 1487034 | AI108: 606425 | AJ108: 59800 | AK108: 384486 | AL108: 1482926 | AM108: 109610 | AN108: 351810 | AO108: 136801 | AP108: 13909 | AQ108: 31200 | AR108: 52650 | AS108: 57200 | AT108: 2302893 | AU108: 2000529 | AV108: 40300 | AW108: =SUM($K108:AV108) -> 15506658.71
F109: First Nations | I109: 0 | J109: 8 | K109: 0 | L109: 1095318 | M109: 391294 | N109: 0 | O109: 79500 | P109: 56389 | Q109: 982082 | R109: 82005128 | S109: 0 | T109: 0 | U109: 0 | V109: 39000 | W109: 243892 | X109: 513150 | Y109: 37400 | Z109: 833453 | AA109: 361972 | AB109: 8603206 | AC109: 89100 | AD109: 0 | AE109: 2878286 | AF109: 0 | AG109: 259814 | AH109: 40 | AI109: 150075 | AJ109: 1280825 | AK109: 0 | AL109: 678900 | AM109: 0 | AN109: 264240 | AO109: 301869 | AP109: 248535 | AQ109: 0 | AR109: 4669 | AS109: 0 | AT109: 1414464 | AU109: 0 | AV109: 0 | AW109: =SUM($K109:AV109) -> 102812601
F110: Private Organizations and Individuals | I110: 0 | J110: 9 | K110: 15856 | L110: 150522 | M110: 870124.4 | N110: 185401 | O110: 190162 | P110: 176219 | Q110: 0 | R110: 5024969 | S110: 27600 | T110: 404600 | U110: 339057 | V110: 0 | W110: 119626 | X110: 210809 | Y110: 9101460.64 | Z110: 468390 | AA110: 327245.9 | AB110: 84023 | AC110: 2705595 | AD110: 0 | AE110: 24800 | AF110: 11335 | AG110: 211870 | AH110: 303548 | AI110: 2451930 | AJ110: 53275 | AK110: 91790 | AL110: 1849404 | AM110: 0 | AN110: 2847340 | AO110: 116255 | AP110: 286076 | AQ110: 4489 | AR110: 15835 | AS110: 244159 | AT110: 2801754 | AU110: 19065597 | AV110: 104990 | AW110: =SUM($K110:AV110) -> 50886106.94
F111: Other Sources | I111: 0 | J111: 10 | K111: 152509.62 | L111: 466699 | M111: 383503.87 | N111: 298225 | O111: 29679 | P111: 70172.94 | Q111: 137668 | R111: 1777497 | S111: 1027688 | T111: -444259 | U111: 111484 | V111: 83782 | W111: 258428 | X111: 623075.97 | Y111: 2444547.7 | Z111: 245402 | AA111: 381135.74 | AB111: -33803 | AC111: 4149500 | AD111: 69885 | AE111: 250078 | AF111: 113393 | AG111: 143576 | AH111: 154277 | AI111: 850159 | AJ111: 104008 | AK111: 168856 | AL111: 4483581.5 | AM111: 114609 | AN111: 911352 | AO111: 86794 | AP111: 318801 | AQ111: 28850 | AR111: 53832 | AS111: 91820 | AT111: 1246849 | AU111: 797616 | AV111: 103849 | AW111: =SUM($K111:AV111) -> 22255121.34
F112: School Generated Funds | I112: 0 | J112: 11 | K112: 542672 | L112: 531651 | M112: 2169253 | N112: 1143054 | O112: 351695 | P112: 268942 | Q112: 829258 | R112: 599505 | S112: 123907 | T112: 2157496 | U112: 325205 | V112: 408473 | W112: 235389 | X112: 969887 | Y112: 5362730 | Z112: 635085 | AA112: 236555 | AB112: 1140801 | AC112: 905301 | AD112: 323160 | AE112: 1002729 | AF112: 576806 | AG112: 598014 | AH112: 524991 | AI112: 728680 | AJ112: 646028 | AK112: 671085 | AL112: 80938 | AM112: 481522 | AN112: 857654 | AO112: 910159 | AP112: 528005 | AQ112: 359197 | AR112: 287202 | AS112: 333315 | AT112: 3448954 | AU112: 0 | AV112: 0 | AW112: =SUM($K112:AV112) -> 31295298
F113: Other Special Purpose Funds | I113: 0 | J113: 12 | K113: 0 | L113: 0 | M113: 241200 | N113: 40663 | O113: 30516 | P113: 0 | Q113: 56808 | R113: 0 | S113: 0 | T113: 0 | U113: 1267 | V113: 0 | W113: 0 | X113: 0 | Y113: 5011 | Z113: 0 | AA113: 0 | AB113: 0 | AC113: 0 | AD113: 0 | AE113: 0 | AF113: 42218 | AG113: 0 | AH113: 0 | AI113: 0 | AJ113: 0 | AK113: 0 | AL113: 0 | AM113: 0 | AN113: 0 | AO113: 20750 | AP113: 29141 | AQ113: 0 | AR113: 0 | AS113: 0 | AT113: 291112 | AU113: 0 | AV113: 0 | AW113: =SUM($K113:AV113) -> 758686
I114: 0 | J114: 13 | K114: =ROUND(SUM(K105:K113),0) -> 24421335 | L114: =ROUND(SUM(L105:L113),0) -> 38031071 | M114: =ROUND(SUM(M105:M113),0) -> 111167862 | N114: =ROUND(SUM(N105:N113),0) -> 105705878 | O114: 23907493 | P114: 15796285 | Q114: 21298642 | R114: 148778427 | S114: 59441917 | T114: 103437430 | U114: 41072453 | V114: 22475076 | W114: 17834039 | X114: 64016774 | Y114: 212765985 | Z114: 46137426 | AA114: 44043252 | AB114: 32597045 | AC114: 188375004 | AD114: 16515219 | AE114: 44260336 | AF114: 33553231 | AG114: 30595153 | AH114: 34881271 | AI114: 208266756 | AJ114: 26433167 | AK114: 59828674 | AL114: 165638645 | AM114: 26406239 | AN114: 115786024 | AO114: 71657393 | AP114: 23753512 | AQ114: 14818328 | AR114: 12313511 | AS114: 22837177 | AT114: 434366267 | AU114: 34833580 | AV114: 3183567 | AW114: =SUM(AW105:AW113) -> 2701231444
E115: Expenses | I115: 0 | J115: 14
F116: Salaries | I116: 0 | J116: 15 | K116: 15874119.69 | L116: 25371619 | M116: 82243694 | N116: 64240521 | O116: 14893682 | P116: 10737037 | Q116: 14344185 | R116: 88502301.21 | S116: 37982085 | T116: 69955884 | U116: 29786941 | V116: 15877127 | W116: 11442231 | X116: 45283192 | Y116: 155946469 | Z116: 30820582 | AA116: 32450324.87 | AB116: 21564165 | AC116: 137648918 | AD116: 11458291.13 | AE116: 31467401 | AF116: 23485709 | AG116: 20835189 | AH116: 23925479 | AI116: 156023419 | AJ116: 18384863 | AK116: 41952363 | AL116: 116844997 | AM116: 17002179 | AN116: 86397145 | AO116: 50119694 | AP116: 15166018 | AQ116: 10125912 | AR116: 8083953 | AS116: 16358858 | AT116: 330569598 | AU116: 19088142 | AV116: 1987168 | AW116: =SUM($K116:AV116) -> 1904241456
F117: Employees Benefits and Allowances | I117: 0 | J117: 16 | K117: 1245716.15 | L117: 2152132 | M117: 5788338 | N117: 4843729 | O117: 1168283 | P117: 952312 | Q117: 1011370 | R117: 8620454.81 | S117: 3291875 | T117: 5129314 | U117: 2243198 | V117: 1489662 | W117: 1157172 | X117: 3933960 | Y117: 11917101 | Z117: 3058076 | AA117: 4003210.9 | AB117: 1476700 | AC117: 9903509 | AD117: 850117.53 | AE117: 2209975 | AF117: 2080455 | AG117: 2062350 | AH117: 1817295 | AI117: 11425230 | AJ117: 1452799 | AK117: 2979363 | AL117: 12460220 | AM117: 1273118 | AN117: 6533715 | AO117: 3725020 | AP117: 1357921 | AQ117: 747993 | AR117: 651436 | AS117: 1126000 | AT117: 29076967 | AU117: 2145574 | AV117: 181200 | AW117: =SUM($K117:AV117) -> 157542861.4
F118: Services | I118: 0 | J118: 17 | K118: 1689843.14 | L118: 3287319 | M118: 6988965 | N118: 18742970 | O118: 1874308 | P118: 1907242 | Q118: 1341712.8 | R118: 22385348.64 | S118: 4180504 | T118: 4856178 | U118: 2429749 | V118: 1938782 | W118: 1537949 | X118: 3852092 | Y118: 20609874 | Z118: 3808397 | AA118: 2687210.94 | AB118: 3238979 | AC118: 17407943 | AD118: 1503573.18 | AE118: 2601131 | AF118: 2642862 | AG118: 2648862 | AH118: 2872213 | AI118: 14728311 | AJ118: 2009154 | AK118: 4834077 | AL118: 10434537 | AM118: 1972648 | AN118: 9783861 | AO118: 6424858 | AP118: 2005128 | AQ118: 1327123 | AR118: 1060137 | AS118: 1886621 | AT118: 27438788 | AU118: 6594255 | AV118: 647282 | AW118: =SUM($K118:AV118) -> 228180787.7
F119: Supplies, Materials and Minor Equipment | I119: 0 | J119: 18 | K119: 1273558.58 | L119: 3376215 | M119: 8309711 | N119: 4196037 | O119: 1539940 | P119: 1268929 | Q119: 1261924.2 | R119: 14993711.34 | S119: 3851067 | T119: 7217160 | U119: 2372142 | V119: 900305 | W119: 1268445 | X119: 3659722 | Y119: 9327737 | Z119: 2952262 | AA119: 1703460.2 | AB119: 1827141 | AC119: 9672241 | AD119: 1212175.02 | AE119: 2449273 | AF119: 2226740 | AG119: 2055099 | AH119: 2086618 | AI119: 7944093 | AJ119: 1876249 | AK119: 3604617 | AL119: 7683109 | AM119: 1724353 | AN119: 4788509 | AO119: 3738797 | AP119: 1810819 | AQ119: 912879 | AR119: 901106 | AS119: 1412990 | AT119: 19682863 | AU119: 2468897 | AV119: 227423 | AW119: =SUM($K119:AV119) -> 149778317.3
F120: Interest, Bank Charges and Bad Debt Expense | I120: 0 | J120: 19 | K120: 1104749.66 | L120: 614405 | M120: 1657490 | N120: 2087245 | O120: 626102 | P120: 302272 | Q120: 529350 | R120: 2142740.16 | S120: 2991766 | T120: 4124900 | U120: 766123 | V120: 760430 | W120: 439206 | X120: 1283089 | Y120: 2277871 | Z120: 1606064 | AA120: 426107.8 | AB120: 516688 | AC120: 2989378 | AD120: 179352.67 | AE120: 541524.49 | AF120: 565730 | AG120: 285171 | AH120: 812769 | AI120: 2668325 | AJ120: 283013 | AK120: 1462482 | AL120: 4772961 | AM120: 694664 | AN120: 1151005 | AO120: 1528798 | AP120: 650873 | AQ120: 499662 | AR120: 162537 | AS120: 407006 | AT120: 5844164.69 | AU120: 710943 | AV120: 2019 | AW120: =SUM($K120:AV120) -> 50468976.47
F121: Transfers | I121: 0 | J121: 20 | K121: 416999.9 | L121: 1119264 | M121: 1825395 | N121: 2080795 | O121: 326422 | P121: 233572 | Q121: 417009 | R121: 6673025.59 | S121: 1435711 | T121: 3675694 | U121: 1118474 | V121: 375886 | W121: 336267 | X121: 1356101 | Y121: 3997761.46 | Z121: 676507 | AA121: 801501.78 | AB121: 535685 | AC121: 4530445 | AD121: 289995.83 | AE121: 803047 | AF121: 719285 | AG121: 559220 | AH121: 911116 | AI121: 3953254 | AJ121: 710144 | AK121: 1354107 | AL121: 3526569 | AM121: 625306 | AN121: 2379236 | AO121: 1701848 | AP121: 382446 | AQ121: 259924 | AR121: 311223 | AS121: 463058 | AT121: 9076139 | AU121: 636456 | AV121: 158345 | AW121: =SUM($K121:AV121) -> 60753234.56
F122: Amortization | I122: 0 | J122: 21 | K122: 1240037 | L122: 2339799 | M122: 3361503 | N122: 3317493 | O122: 1652745 | P122: 394195 | Q122: 1084976 | R122: 4449651 | S122: 4292166 | T122: 5018213 | U122: 1543067 | V122: 1223306 | W122: 822584 | X122: 2914614 | Y122: 5457179 | Z122: 2075211 | AA122: 1168047 | AB122: 995448 | AC122: 5072270 | AD122: 617390 | AE122: 1569820 | AF122: 1201172 | AG122: 1464136 | AH122: 1564848 | AI122: 7320517 | AJ122: 1080722 | AK122: 2371302 | AL122: 6556200.17 | AM122: 1477678 | AN122: 3961870 | AO122: 3047366 | AP122: 1427526 | AQ122: 750097 | AR122: 526951 | AS122: 830101 | AT122: 11144188 | AU122: 1291258.29 | AV122: 92035 | AW122: =SUM($K122:AV122) -> 96717681.46
F123: Other Capital Items | I123: 0 | J123: 22 | K123: 20000 | L123: 0 | M123: 18109 | N123: 0 | O123: 0 | P123: 0 | Q123: 0 | R123: 0 | S123: 0 | T123: 987124 | U123: 16724 | V123: 0 | W123: 0 | X123: 151184 | Y123: 542238 | Z123: 0 | AA123: 0 | AB123: -70003 | AC123: 2410000 | AD123: 1336 | AE123: -13477 | AF123: 0 | AG123: 0 | AH123: 0 | AI123: 150256 | AJ123: 0 | AK123: 0 | AL123: 22944 | AM123: 0 | AN123: 0 | AO123: 0 | AP123: 58376 | AQ123: 0 | AR123: 0 | AS123: 0 | AT123: 0 | AU123: 0 | AV123: 0 | AW123: =SUM($K123:AV123) -> 4294811
F124: School Generated Funds | I124: 0 | J124: 23 | K124: 504776 | L124: 511261 | M124: 2286519 | N124: 1118598 | O124: 344956 | P124: 275259 | Q124: 802461 | R124: 531084 | S124: 87784 | T124: 2396145 | U124: 311716 | V124: 421573 | W124: 256002 | X124: 931170 | Y124: 4630590 | Z124: 613695 | AA124: 251449 | AB124: 1131032 | AC124: 972527 | AD124: 290262.11 | AE124: 1042023 | AF124: 556213 | AG124: 578124 | AH124: 552823 | AI124: 684541 | AJ124: 638351 | AK124: 698304 | AL124: 67625 | AM124: 462898 | AN124: 836673 | AO124: 892372 | AP124: 486294 | AQ124: 378745 | AR124: 287540 | AS124: 325092 | AT124: 3472386 | AU124: 0 | AV124: 2438 | AW124: =SUM($K124:AV124) -> 30631301.11
F125: Other Special Purpose Funds | I125: 0 | J125: 24 | K125: 0 | L125: 0 | M125: 205413 | N125: 22962 | O125: 25576 | P125: 0 | Q125: 48458 | R125: 0 | S125: 0 | T125: 0 | U125: 1267 | V125: 0 | W125: 0 | X125: 0 | Y125: 810 | Z125: 0 | AA125: 0 | AB125: 0 | AC125: 0 | AD125: 0 | AE125: 0 | AF125: 27003 | AG125: 0 | AH125: 0 | AI125: 0 | AJ125: 0 | AK125: 0 | AL125: 0 | AM125: 0 | AN125: 0 | AO125: 0 | AP125: 29141 | AQ125: 0 | AR125: 0 | AS125: 0 | AT125: 880364 | AU125: 0 | AV125: 0 | AW125: =SUM($K125:AV125) -> 1240994
I126: 0 | J126: 25 | K126: =ROUND(SUM(K116:K125),0) -> 23369800 | L126: =ROUND(SUM(L116:L125),0) -> 38772014 | M126: =ROUND(SUM(M116:M125),0) -> 112685137 | N126: =ROUND(SUM(N116:N125),0) -> 100650350 | O126: 22452014 | P126: 16070818 | Q126: 20841446 | R126: 148298317 | S126: 58112958 | T126: 103360612 | U126: 40589401 | V126: 22987071 | W126: 17259856 | X126: 63365124 | Y126: 214707630 | Z126: 45610794 | AA126: 43491312 | AB126: 31215835 | AC126: 190607231 | AD126: 16402493 | AE126: 42670717 | AF126: 33505169 | AG126: 30488151 | AH126: 34543161 | AI126: 204897946 | AJ126: 26435295 | AK126: 59256615 | AL126: 162369162 | AM126: 25232844 | AN126: 115832014 | AO126: 71178753 | AP126: 23374542 | AQ126: 15002335 | AR126: 11984883 | AS126: 22809726 | AT126: 437185458 | AU126: 32935525 | AV126: 3297910 | AW126: =SUM($K126:AV126) -> 2683850419
E127: Current Year Surplus (Deficit) | I127: 0 | J127: 26 | K127: =K114-K126 -> 1051535 | L127: =L114-L126 -> -740943 | M127: -1517275 | N127: 5055528 | O127: 1455479 | P127: -274533 | Q127: 457196 | R127: 480110 | S127: 1328959 | T127: 76818 | U127: 483052 | V127: -511995 | W127: 574183 | X127: 651650 | Y127: -1941645 | Z127: 526632 | AA127: 551940 | AB127: 1381210 | AC127: -2232227 | AD127: 112726 | AE127: 1589619 | AF127: 48062 | AG127: 107002 | AH127: 338110 | AI127: 3368810 | AJ127: -2128 | AK127: 572059 | AL127: 3269483 | AM127: 1173395 | AN127: -45990 | AO127: 478640 | AP127: 378970 | AQ127: -184007 | AR127: 328628 | AS127: 27451 | AT127: -2819191 | AU127: 1898055 | AV127: -114343 | AW127: =SUM($K127:AV127) -> 17381025
E128: Less: Non-vested Sick Leave Expense (Recovery) | I128: 0 | J128: 27 | K128: -13539 | L128: 0 | M128: 94238 | N128: 170533 | O128: 0 | P128: 0 | Q128: 8 | R128: 0 | S128: 0 | T128: 0 | U128: 7801 | V128: 57836 | W128: 0 | X128: -3245 | Y128: 203278 | Z128: 25566 | AA128: -31182.23 | AB128: -1981.92 | AC128: 26615 | AD128: -14192 | AE128: -47925 | AF128: 117305 | AG128: 21968 | AH128: 34283 | AI128: 94267 | AJ128: 19320 | AK128: 12876 | AL128: -29276 | AM128: -7588 | AN128: 82709 | AO128: 98121 | AP128: 30883 | AQ128: 23335 | AR128: 6207 | AS128: -8937 | AT128: 485555 | AU128: 0 | AV128: 0 | AW128: =SUM($K128:AV128) -> 1454837.85
E129: Net Current Year Surplus (Deficit) | I129: 0 | J129: 28 | K129: =K127-K128 -> 1065074 | L129: =L127-L128 -> -740943 | M129: -1611513 | N129: 4884995 | O129: 1455479 | P129: -274533 | Q129: 457188 | R129: 480110 | S129: 1328959 | T129: 76818 | U129: 475251 | V129: -569831 | W129: 574183 | X129: 654895 | Y129: -2144923 | Z129: 501066 | AA129: 583122.23 | AB129: 1383191.92 | AC129: -2258842 | AD129: 126918 | AE129: 1637544 | AF129: -69243 | AG129: 85034 | AH129: 303827 | AI129: 3274543 | AJ129: -21448 | AK129: 559183 | AL129: 3298759 | AM129: 1180983 | AN129: -128699 | AO129: 380519 | AP129: 348087 | AQ129: -207342 | AR129: 322421 | AS129: 36388 | AT129: -3304746 | AU129: 1898055 | AV129: -114343 | AW129: =SUM($K129:AV129) -> 15926187.15
E130: Opening Accumulated Surplus | I130: 0 | J130: 29 | K130: 7945473.32 | L130: 15285152.19 | M130: 27858730.67 | N130: 45008744.18 | O130: 10615555 | P130: 3170330.11 | Q130: 7239307.54 | R130: 39214589.64 | S130: 26220731 | T130: 29642803 | U130: 7023405 | V130: 19281911.41 | W130: 6363380.21 | X130: 13831915.87 | Y130: 33689275.15 | Z130: 6797443 | AA130: 13337724.06 | AB130: 1043629.085 | AC130: 49124413 | AD130: 3664216 | AE130: 11768232.13 | AF130: 7794545.87 | AG130: 9719567 | AH130: 9351828.39 | AI130: 34238167 | AJ130: 9096910 | AK130: 13441287 | AL130: 51233696 | AM130: 9670738 | AN130: 37156949.84 | AO130: 16896328 | AP130: 7931929.82 | AQ130: 2891101 | AR130: 3666500 | AS130: 5700467 | AT130: 98114261 | AU130: 11440410 | AV130: 2191049.67 | AW130: =SUM($K130:AV130) -> 708662697.2
E131: Adjustments to Opening Accumulated Surplus | I131: 0 | J131: 30 | K131: 0 | L131: 0 | M131: 0 | N131: 0 | O131: 0 | P131: 0 | Q131: 0 | R131: 0 | S131: 0 | T131: 0 | U131: 0 | V131: 0 | W131: 0 | X131: 0 | Y131: 0 | Z131: 0 | AA131: 0 | AB131: 0 | AC131: 0 | AD131: 0 | AE131: 0 | AF131: 0 | AG131: 0 | AH131: 0 | AI131: 0 | AJ131: 0 | AK131: 0 | AL131: 0 | AM131: 0 | AN131: 0 | AO131: 0 | AP131: 0 | AQ131: 0 | AR131: 0 | AS131: 0 | AT131: 0 | AU131: 0 | AV131: 0 | AW131: =SUM($K131:AV131) -> 0
E132: Opening Accumulated Surplus, as restated | I132: 0 | J132: 31 | K132: =K130+K131 -> 7945473.32 | L132: =L130+L131 -> 15285152.19 | M132: 27858730.67 | N132: 45008744.18 | O132: 10615555 | P132: 3170330.11 | Q132: 7239307.54 | R132: 39214589.64 | S132: 26220731 | T132: 29642803 | U132: 7023405 | V132: 19281911.41 | W132: 6363380.21 | X132: 13831915.87 | Y132: 33689275.15 | Z132: 6797443 | AA132: 13337724.06 | AB132: 1043629.085 | AC132: 49124413 | AD132: 3664216 | AE132: 11768232.13 | AF132: 7794545.87 | AG132: 9719567 | AH132: 9351828.39 | AI132: 34238167 | AJ132: 9096910 | AK132: 13441287 | AL132: 51233696 | AM132: 9670738 | AN132: 37156949.84 | AO132: 16896328 | AP132: 7931929.82 | AQ132: 2891101 | AR132: 3666500 | AS132: 5700467 | AT132: 98114261 | AU132: 11440410 | AV132: 2191049.67 | AW132: =SUM($K132:AV132) -> 708662697.2
E133: Closing Accumulated Surplus | I133: 0 | J133: 32 | K133: =K132+K129 -> 9010547.32 | L133: =L132+L129 -> 14544209.19 | M133: 26247217.67 | N133: 49893739.18 | O133: 12071034 | P133: 2895797.11 | Q133: 7696495.54 | R133: 39694699.64 | S133: 27549690 | T133: 29719621 | U133: 7498656 | V133: 18712080.41 | W133: 6937563.21 | X133: 14486810.87 | Y133: 31544352.15 | Z133: 7298509 | AA133: 13920846.29 | AB133: 2426821.005 | AC133: 46865571 | AD133: 3791134 | AE133: 13405776.13 | AF133: 7725302.87 | AG133: 9804601 | AH133: 9655655.39 | AI133: 37512710 | AJ133: 9075462 | AK133: 14000470 | AL133: 54532455 | AM133: 10851721 | AN133: 37028250.84 | AO133: 17276847 | AP133: 8280016.82 | AQ133: 2683759 | AR133: 3988921 | AS133: 5736855 | AT133: 94809515 | AU133: 13338465 | AV133: 2076706.67 | AW133: =SUM($K133:AV133) -> 724588884.3
D135: PAGE | E135: OP Fin Pos
E137: MANITOBA PUBLIC SCHOOL DIVISIONS | K137: THE CELLS HIGH LITED IN YELLOW ARE REFERENCED TO SCHOOL DIVISION STATEMENT FILES.
E138: OPERATING FUND | K138: The cells high lited in yellow have been "copy - paste special - values" for this spreadsheet
E139: STATEMENT OF FINANCIAL POSITION
I140: FORMULAS | K140: 0 | L140: 0 | M140: 0 | N140: 0 | O140: 0 | P140: 0 | Q140: 0 | R140: 0 | S140: 0 | T140: 0 | U140: 0 | V140: 0 | W140: 0 | X140: 0 | Y140: 0 | Z140: 0 | AA140: 0 | AB140: 0 | AC140: 0 | AD140: 0 | AE140: 0 | AF140: 0 | AG140: 0 | AH140: 0 | AI140: 0 | AJ140: 0 | AK140: 0 | AL140: 0 | AM140: 0 | AN140: 0 | AO140: 0 | AP140: 0 | AQ140: 0 | AR140: 0 | AS140: 0 | AT140: 0 | AU140: 0 | AV140: 0
I141: =$I$53 -> 1 | K141: 2 | L141: =K141+1 -> 3 | M141: =L141+1 -> 4 | N141: =M141+1 -> 5 | O141: 6 | P141: 7 | Q141: =P141+1 -> 8 | R141: 9 | S141: 10 | T141: =S141+1 -> 11 | U141: 12 | V141: 13 | W141: 14 | X141: 15 | Y141: 16 | Z141: 17 | AA141: 18 | AB141: 19 | AC141: 20 | AD141: 21 | AE141: 22 | AF141: 23 | AG141: 24 | AH141: 25 | AI141: 26 | AJ141: 27 | AK141: 28 | AL141: 29 | AM141: 30 | AN141: 31 | AO141: 32 | AP141: 33 | AQ141: 34 | AR141: 35 | AS141: 36 | AT141: 37 | AU141: 38 | AV141: 39 | AW141: 40
I142: =HLOOKUP($I$141,$K$141:$AW$175,J142,FALSE) ->  | J142: 2 | K142: BE | L142: BO | M142: BR | N142: DI | O142: EV | P142: FL | Q142: FO | R142: FR | S142: GA | T142: HA | U142: IN | V142: KE | W142: LA | X142: LO | Y142: LR | Z142: MO | AA142: MY | AB142: PA | AC142: PE | AD142: PI | AE142: PO | AF142: PR | AG142: PS | AH142: RE | AI142: RI | AJ142: RO | AK142: SE | AL142: SO | AM142: SR | AN142: ST | AO142: SU | AP142: SW | AQ142: TM | AR142: TR | AS142: WE | AT142: WI | AU142: WT | AV142: XW | AW142: TOTAL
E143: Financial Assets | J143: 3
F144: Cash and Bank | I144: =IF($I$141=1,0,HLOOKUP($B$33,$K$141:$AW$175,J144,FALSE)) -> 0 | J144: 4 | K144: 1549407.25 | L144: 92478 | M144: 11729297 | N144: 19405520 | O144: 1386364 | P144: 715696 | Q144: 221556 | R144: 303780.25 | S144: 3151124 | T144: 4243 | U144: 715861 | V144: 337957 | W144: 1690014 | X144: 38270 | Y144: 0 | Z144: 0 | AA144: 12455782.22 | AB144: 90019 | AC144: 0 | AD144: 1270797 | AE144: 6558091 | AF144: 166657 | AG144: 1775111 | AH144: 0 | AI144: 2271254 | AJ144: 2950 | AK144: 1631 | AL144: 1032943 | AM144: 3137915 | AN144: 0 | AO144: 31712 | AP144: 3761667 | AQ144: 4987 | AR144: 1472857 | AS144: 1150 | AT144: 0 | AU144: 8744923 | AV144: 512850 | AW144: =SUM($K144:AV144) -> 84634863.72
F145: Due from | I145: 0 | J145: 5 | K145: 657217.74 | L145: 1647410 | M145: 3014826 | N145: 2758322 | O145: 1322658 | P145: 454799 | Q145: 625081 | R145: 913500.68 | S145: 1566665 | T145: 3049417 | U145: 1367331 | V145: 755781 | W145: 538095 | X145: 2815513 | Y145: 8848880 | Z145: 1435693 | AA145: 908077.77 | AB145: 804960 | AC145: 8083593 | AD145: 434612 | AE145: 1174356 | AF145: 1578710 | AG145: 857643 | AH145: 1165588 | AI145: 9189519 | AJ145: 973315 | AK145: 1922114 | AL145: 5825765 | AM145: 766214 | AN145: 2387377 | AO145: 2984626 | AP145: 836276 | AQ145: 473161 | AR145: 248048 | AS145: 721464 | AT145: 13176403 | AU145: 640007 | AV145: 128622 | AW145: =SUM($K145:AV145) -> 87051640.19
G146: - Provincial Government | I146: 0 | J146: 6 | K146: 27014.96 | L146: 35921 | M146: 69653 | N146: 627836 | O146: 88229 | P146: 18421 | Q146: 74794 | R146: 724900.4 | S146: 50537 | T146: 36949 | U146: 5358 | V146: 0 | W146: 21338 | X146: 66986 | Y146: 261507 | Z146: 91131 | AA146: 32933.73 | AB146: 31968 | AC146: 80353 | AD146: 76766 | AE146: 183062 | AF146: 77985 | AG146: 42019 | AH146: 39563 | AI146: 270804 | AJ146: 38504.83 | AK146: 294456 | AL146: 259709 | AM146: 31130 | AN146: 86095 | AO146: 82689 | AP146: 25996 | AQ146: 9532 | AR146: 15271 | AS146: 84142 | AT146: 1859647 | AU146: 324689 | AV146: 0 | AW146: =SUM($K146:AV146) -> 6147889.92
G147: - Federal Government | I147: 0 | J147: 7 | K147: 1989701.9 | L147: 3775289 | M147: 11426590 | N147: 8225290 | O147: 2462366 | P147: 855841 | Q147: 2332060 | R147: 906973.7 | S147: 4130633 | T147: 8318605 | U147: 4297123 | V147: 1033780 | W147: 1154836 | X147: 7573413 | Y147: 23488913 | Z147: 4105099 | AA147: 2125743.3 | AB147: 2289081 | AC147: 26001493 | AD147: 1635078 | AE147: 4007714 | AF147: 3235548 | AG147: 3368306 | AH147: 4510357 | AI147: 20553203 | AJ147: 2845314 | AK147: 5152820 | AL147: 14392644 | AM147: 9605131 | AN147: 16677911 | AO147: 8676826 | AP147: 1738541 | AQ147: 1831547 | AR147: 722851 | AS147: 2228863 | AT147: 48974633 | AU147: 0 | AV147: 8345 | AW147: =SUM($K147:AV147) -> 266658462.9
G148: - Municipal Government | I148: 0 | J148: 8 | K148: 0 | L148: 304545 | M148: 49709 | N148: 824877 | O148: 0 | P148: 0 | Q148: 0 | R148: 0 | S148: 318045 | T148: 30066 | U148: 0 | V148: 0 | W148: 2164 | X148: 35505 | Y148: 267312 | Z148: 15636 | AA148: 0 | AB148: 0 | AC148: 289499 | AD148: 0 | AE148: 0 | AF148: 0 | AG148: 0 | AH148: 151937 | AI148: 229190 | AJ148: 0 | AK148: 189618 | AL148: 107 | AM148: 0 | AN148: 0 | AO148: 910 | AP148: 3600 | AQ148: 0 | AR148: 0 | AS148: 0 | AT148: 327779 | AU148: 138339 | AV148: 0 | AW148: =SUM($K148:AV148) -> 3178838
G149: - Other School Divisions | I149: 0 | J149: 9 | K149: 0 | L149: 297417 | M149: 35290 | N149: 0 | O149: 106500 | P149: 0 | Q149: 267638 | R149: 16609825.34 | S149: 0 | T149: 0 | U149: 0 | V149: 25800 | W149: 134732 | X149: 129800 | Y149: 0 | Z149: 159989 | AA149: -1214 | AB149: 0 | AC149: 0 | AD149: 0 | AE149: 225926 | AF149: 0 | AG149: 46805 | AH149: 0 | AI149: 35650 | AJ149: 408012 | AK149: 0 | AL149: 469100 | AM149: 0 | AN149: 57360 | AO149: 95803 | AP149: 0 | AQ149: 0 | AR149: 0 | AS149: 0 | AT149: 585597 | AU149: 0 | AV149: 0 | AW149: =SUM($K149:AV149) -> 19690030.34
G150: - First Nations | I150: 0 | J150: 10 | K150: 224588.19 | L150: 411993 | M150: 0 | N150: 0 | O150: 418015 | P150: 0 | Q150: 271099 | R150: 0 | S150: 337326 | T150: 2663419 | U150: 78894 | V150: 0 | W150: 0 | X150: 0 | Y150: 6327672 | Z150: 0 | AA150: 290751.1 | AB150: 0 | AC150: 7631531 | AD150: 118743 | AE150: -961328 | AF150: 0 | AG150: 0 | AH150: 326272 | AI150: 0 | AJ150: 0 | AK150: 305832 | AL150: 864205 | AM150: 218406 | AN150: 1319233 | AO150: 70643 | AP150: 206761 | AQ150: 25127 | AR150: 318721 | AS150: 1047837 | AT150: 9945252 | AU150: 656561 | AV150: 519789 | AW150: =SUM($K150:AV150) -> 33637342.29
F151: Accounts Receivable | G151: - Capital and Special Purpose Fund | I151: 0 | J151: 11 | K151: 46792 | L151: 134031 | M151: 39138 | N151: 296191 | O151: 45073 | P151: 256334 | Q151: 27425 | R151: 1793084.3 | S151: 65172 | T151: 155973 | U151: 67084 | V151: 144952 | W151: 39007 | X151: 246390 | Y151: 454569 | Z151: 189761 | AA151: 48738.7 | AB151: 61395 | AC151: 235311 | AD151: 77532 | AE151: 27874 | AF151: 32162 | AG151: 129164 | AH151: 76609 | AI151: 613444 | AJ151: 37328 | AK151: 86874 | AL151: 332539 | AM151: 33341 | AN151: 106104 | AO151: 126100 | AP151: 31907 | AQ151: 9830 | AR151: 48084 | AS151: 11332 | AT151: 1903374 | AU151: 6029155 | AV151: 0 | AW151: =SUM($K151:AV151) -> 14059174
F152: Accrued Investment Income | I152: 0 | J152: 12 | K152: 0 | L152: 0 | M152: 0 | N152: 0 | O152: 0 | P152: 0 | Q152: 0 | R152: 0 | S152: 0 | T152: 0 | U152: 0 | V152: 0 | W152: 0 | X152: 0 | Y152: 0 | Z152: 0 | AA152: 0 | AB152: 0 | AC152: 0 | AD152: 0 | AE152: 0 | AF152: 0 | AG152: 0 | AH152: 0 | AI152: 0 | AJ152: 0 | AK152: 0 | AL152: 0 | AM152: 0 | AN152: 0 | AO152: 0 | AP152: 0 | AQ152: 0 | AR152: 0 | AS152: 0 | AT152: 0 | AU152: 79313 | AV152: 0 | AW152: =SUM($K152:AV152) -> 79313
F153: Portfolio Investments | I153: 0 | J153: 13 | K153: 0 | L153: 0 | M153: 0 | N153: 0 | O153: 0 | P153: 0 | Q153: 0 | R153: 0 | S153: 0 | T153: 0 | U153: 0 | V153: 0 | W153: 0 | X153: 0 | Y153: 0 | Z153: 0 | AA153: 0 | AB153: 0 | AC153: 0 | AD153: 0 | AE153: 0 | AF153: 0 | AG153: 0 | AH153: 0 | AI153: 0 | AJ153: 0 | AK153: 0 | AL153: 0 | AM153: 0 | AN153: 0 | AO153: 0 | AP153: 0 | AQ153: 0 | AR153: 0 | AS153: 0 | AT153: 1953549 | AU153: 10819186 | AV153: 0 | AW153: =SUM($K153:AV153) -> 12772735
I154: 0 | J154: 14 | K154: =SUM(K144:K153) -> 4494722.04 | L154: =SUM(L144:L153) -> 6699084 | M154: 26364503 | N154: 32138036 | O154: 5829205 | P154: 2301091 | Q154: 3819653 | R154: 21252064.67 | S154: 9619502 | T154: 14258672 | U154: 6531651 | V154: 2298270 | W154: 3580186 | X154: 10905877 | Y154: 39648853 | Z154: 5997309 | AA154: 15860812.82 | AB154: 3277423 | AC154: 42321780 | AD154: 3613528 | AE154: 11215695 | AF154: 5091062 | AG154: 6219048 | AH154: 6270326 | AI154: 33163064 | AJ154: 4305423.83 | AK154: 7953345 | AL154: 23177012 | AM154: 13792137 | AN154: 20634080 | AO154: 12069309 | AP154: 6604748 | AQ154: 2354184 | AR154: 2825832 | AS154: 4094788 | AT154: 78726234 | AU154: 27432173 | AV154: 1169606 | AW154: =SUM(AW144:AW153) -> 527910289.4
E155: Liabilities | I155: 0 | J155: 15
F156: Overdraft | I156: 0 | J156: 16 | K156: 0 | L156: 458471 | M156: 0 | N156: 0 | O156: 0 | P156: 0 | Q156: 462092 | R156: 0 | S156: 0 | T156: 3980630 | U156: 0 | V156: 0 | W156: 0 | X156: 1740167 | Y156: 8825365.62 | Z156: 1099492 | AA156: 0 | AB156: 472661 | AC156: 14268909 | AD156: 0 | AE156: 0 | AF156: 0 | AG156: 0 | AH156: 1414487 | AI156: 0 | AJ156: 749142 | AK156: 552694 | AL156: 0 | AM156: 0 | AN156: 1294328 | AO156: 3729795 | AP156: 0 | AQ156: 625019 | AR156: 0 | AS156: 757717 | AT156: 1656304 | AU156: 0 | AV156: 0 | AW156: =SUM($K156:AV156) -> 42087273.62
F157: Accounts Payable | I157: 0 | J157: 17 | K157: 233712.5 | L157: 582451 | M157: 6049680 | N157: 4140588 | O157: 693182 | P157: 286755 | Q157: 273417 | R157: 6041009.5 | S157: 932881 | T157: 927717 | U157: 31312 | V157: 510007 | W157: 490177 | X157: 1485035 | Y157: 5523114 | Z157: 1024866 | AA157: 319299.58 | AB157: 2470403 | AC157: 3148309 | AD157: 600848 | AE157: 805275 | AF157: 717252 | AG157: 2658491 | AH157: 470233 | AI157: 1078917 | AJ157: 26076 | AK157: 587798 | AL157: 2604227 | AM157: 2261958 | AN157: 4192630 | AO157: 1017318 | AP157: 402144 | AQ157: 73610 | AR157: 43124 | AS157: 107621 | AT157: 9098022 | AU157: 337505 | AV157: 0 | AW157: =SUM($K157:AV157) -> 62246964.58
F158: Accrued Liabilities | I158: 0 | J158: 18 | K158: 1623934.69 | L158: 2219920 | M158: 9776831 | N158: 3936559 | O158: 1388456 | P158: 1047932 | Q158: 171401 | R158: 9229203.95 | S158: 4257491 | T158: 6665973 | U158: 3325107 | V158: 1392213 | W158: 1103762 | X158: 3961147 | Y158: 19834519 | Z158: 2518023 | AA158: 5188975.92 | AB158: 0 | AC158: 15712493 | AD158: 965778 | AE158: 3012481 | AF158: 1880401 | AG158: 172755 | AH158: 2238375 | AI158: 18488352 | AJ158: 500746 | AK158: 4214018 | AL158: 16089053 | AM158: 520644 | AN158: 10527519 | AO158: 4118758 | AP158: 1539946 | AQ158: 158748 | AR158: 728467 | AS158: 1669293 | AT158: 43776950 | AU158: 1618407 | AV158: 0 | AW158: =SUM($K158:AV158) -> 205574632.6
F159: Employee Future Benefits | I159: 0 | J159: 19 | K159: 40548.31 | L159: 0 | M159: 0 | N159: 1311080.55 | O159: 136166 | P159: 161461 | Q159: 72067 | R159: 972379.02 | S159: 0 | T159: 719356 | U159: 1581294 | V159: 120356 | W159: 40495 | X159: 390109 | Y159: 1816035.67 | Z159: 510455 | AA159: 5113992.86 | AB159: 68014 | AC159: 2183267 | AD159: 153206 | AE159: 132729 | AF159: 221360 | AG159: 227108 | AH159: 137263 | AI159: 2089086 | AJ159: 145867 | AK159: 228654 | AL159: 632854 | AM159: 0 | AN159: 2048256 | AO159: 1047908 | AP159: 172092 | AQ159: 65255 | AR159: 58956 | AS159: 0 | AT159: 7510347 | AU159: 0 | AV159: 0 | AW159: =SUM($K159:AV159) -> 30108017.41
F160: Accrued Interest Payable | I160: 0 | J160: 20 | K160: 0 | L160: 0 | M160: 0 | N160: 0 | O160: 0 | P160: 0 | Q160: 0 | R160: 0 | S160: 0 | T160: 0 | U160: 0 | V160: 0 | W160: 0 | X160: 0 | Y160: 0 | Z160: 2160 | AA160: 0 | AB160: 0 | AC160: 0 | AD160: 119368 | AE160: 0 | AF160: 0 | AG160: 0 | AH160: 0 | AI160: 0 | AJ160: 0 | AK160: 0 | AL160: 0 | AM160: 0 | AN160: 0 | AO160: 0 | AP160: 0 | AQ160: 0 | AR160: 0 | AS160: 0 | AT160: 0 | AU160: 0 | AV160: 0 | AW160: =SUM($K160:AV160) -> 121528
F161: Due to | G161: - Provincial Government | I161: 0 | J161: 21 | K161: 13.38 | L161: 29934 | M161: 0 | N161: 254856 | O161: 0 | P161: 989 | Q161: 0 | R161: 311634.49 | S161: 72319 | T161: 0 | U161: 0 | V161: 0 | W161: 0 | X161: 0 | Y161: 7420.86 | Z161: 23815 | AA161: 28179.22 | AB161: 0 | AC161: 251326 | AD161: 0 | AE161: 99275 | AF161: 38274 | AG161: 0 | AH161: 2088 | AI161: 8687 | AJ161: 967 | AK161: 153767 | AL161: 210584 | AM161: 0 | AN161: 160366 | AO161: 0 | AP161: 0 | AQ161: 0 | AR161: 0 | AS161: 30479 | AT161: 3368054 | AU161: 0 | AV161: 0 | AW161: =SUM($K161:AV161) -> 5053027.95
G162: - Federal Government | I162: 0 | J162: 22 | K162: 0 | L162: 226987 | M162: 0 | N162: 2790823 | O162: 219474 | P162: 0 | Q162: 0 | R162: 0 | S162: 544630 | T162: 0 | U162: 0 | V162: 0 | W162: 0 | X162: 0 | Y162: 9448 | Z162: 0 | AA162: 94.67 | AB162: 0 | AC162: 1890863 | AD162: 0 | AE162: 444093 | AF162: 0 | AG162: 0 | AH162: 5272 | AI162: 0 | AJ162: 0 | AK162: 601620 | AL162: 1259331 | AM162: 0 | AN162: 0 | AO162: 0 | AP162: 213273 | AQ162: 0 | AR162: 0 | AS162: 3874 | AT162: 4101265 | AU162: 0 | AV162: 0 | AW162: =SUM($K162:AV162) -> 12311047.67
G163: - Municipal Government | I163: 0 | J163: 23 | K163: 0 | L163: 3568 | M163: 0 | N163: 12224 | O163: 0 | P163: 0 | Q163: 0 | R163: 0 | S163: 0 | T163: 0 | U163: 0 | V163: 0 | W163: 4399 | X163: 0 | Y163: 0 | Z163: 0 | AA163: 0 | AB163: 0 | AC163: 120588 | AD163: 0 | AE163: 0 | AF163: 20675 | AG163: 0 | AH163: 26400 | AI163: 0 | AJ163: 0 | AK163: 0 | AL163: 140076 | AM163: 0 | AN163: 0 | AO163: 0 | AP163: 30469 | AQ163: 0 | AR163: 0 | AS163: 0 | AT163: 374883 | AU163: 0 | AV163: 0 | AW163: =SUM($K163:AV163) -> 733282
G164: - Other School Divisions | I164: 0 | J164: 24 | K164: 0 | L164: 263878 | M164: 0 | N164: 0 | O164: 0 | P164: 78251 | Q164: 0 | R164: 0 | S164: 0 | T164: 0 | U164: 0 | V164: 0 | W164: 0 | X164: 0 | Y164: 0 | Z164: 0 | AA164: 0 | AB164: 0 | AC164: 0 | AD164: 0 | AE164: 0 | AF164: 0 | AG164: 0 | AH164: 206421 | AI164: 0 | AJ164: 0 | AK164: 0 | AL164: 4806 | AM164: 0 | AN164: 0 | AO164: 0 | AP164: 0 | AQ164: 0 | AR164: 0 | AS164: 0 | AT164: 0 | AU164: 0 | AV164: 0 | AW164: =SUM($K164:AV164) -> 553356
G165: - First Nations | I165: 0 | J165: 25 | K165: 0 | L165: 0 | M165: 0 | N165: 0 | O165: 0 | P165: 0 | Q165: 0 | R165: 0 | S165: 0 | T165: 0 | U165: 0 | V165: 0 | W165: 0 | X165: 0 | Y165: 0 | Z165: 0 | AA165: 0 | AB165: 0 | AC165: 0 | AD165: 0 | AE165: 0 | AF165: 0 | AG165: 0 | AH165: 0 | AI165: 0 | AJ165: 0 | AK165: 0 | AL165: 0 | AM165: 0 | AN165: 0 | AO165: 0 | AP165: 0 | AQ165: 0 | AR165: 0 | AS165: 0 | AT165: 0 | AU165: 0 | AV165: 0 | AW165: =SUM($K165:AV165) -> 0
G166: - Capital and Special Purpose Fund | I166: 0 | J166: 26 | K166: 1299102.19 | L166: 1618184 | M166: 5545364 | N166: 15120726 | O166: 1839509 | P166: 140784 | Q166: 1619656 | R166: 62975 | S166: 150374 | T166: 0 | U166: 70615 | V166: 0 | W166: 1100875 | X166: 1455699 | Y166: 1287798 | Z166: 279545 | AA166: 306386.75 | AB166: -145537 | AC166: 0 | AD166: 953062 | AE166: 3847343 | AF166: 327641 | AG166: 1255963 | AH166: 410066 | AI166: 1853935 | AJ166: 2082794 | AK166: 290500 | AL166: 313753 | AM166: 2699468 | AN166: 0 | AO166: 222319 | AP166: 2792009 | AQ166: 0 | AR166: 1193218 | AS166: 396872 | AT166: 0 | AU166: 0 | AV166: 0 | AW166: =SUM($K166:AV166) -> 50390998.94
F167: Deferred Revenue | I167: 0 | J167: 27 | K167: 13328.89 | L167: 301367 | M167: 194360 | N167: 766349 | O167: 137197 | P167: 52933 | Q167: 0 | R167: 609419.7 | S167: 139921 | T167: 111941 | U167: 10000 | V167: 0 | W167: 0 | X167: 319969 | Y167: 989860 | Z167: 334848 | AA167: 0 | AB167: 9100 | AC167: 1260379 | AD167: 13455 | AE167: 95396 | AF167: 0 | AG167: 17967 | AH167: 11697 | AI167: 1631165 | AJ167: 0 | AK167: 121369 | AL167: 812122 | AM167: 6834577 | AN167: 604489 | AO167: 180773 | AP167: 119768 | AQ167: 2532 | AR167: 0 | AS167: 374130 | AT167: 2830939 | AU167: 17055480 | AV167: 0 | AW167: =SUM($K167:AV167) -> 35956831.59
F168: Other Borrowings | I168: 0 | J168: 28 | K168: 0 | L168: 0 | M168: 0 | N168: 1087408 | O168: 0 | P168: 0 | Q168: 0 | R168: 0 | S168: 0 | T168: 0 | U168: 0 | V168: 0 | W168: 0 | X168: 0 | Y168: 0 | Z168: 604959 | AA168: 0 | AB168: 0 | AC168: 0 | AD168: 0 | AE168: 0 | AF168: 0 | AG168: 0 | AH168: 0 | AI168: 0 | AJ168: 0 | AK168: 0 | AL168: 0 | AM168: 274970 | AN168: 0 | AO168: 0 | AP168: 0 | AQ168: 0 | AR168: 0 | AS168: 0 | AT168: 0 | AU168: 2783 | AV168: 0 | AW168: =SUM($K168:AV168) -> 1970120
I169: 0 | J169: 29 | K169: =SUM(K156:K168) -> 3210639.96 | L169: =SUM(L156:L168) -> 5704760 | M169: 21566235 | N169: 29420613.55 | O169: 4413984 | P169: 1769105 | Q169: 2598633 | R169: 17226621.66 | S169: 6097616 | T169: 12405617 | U169: 5018328 | V169: 2022576 | W169: 2739708 | X169: 9352126 | Y169: 38293561.15 | Z169: 6398163 | AA169: 10956929 | AB169: 2874641 | AC169: 38836134 | AD169: 2805717 | AE169: 8436592 | AF169: 3205603 | AG169: 4332284 | AH169: 4922302 | AI169: 25150142 | AJ169: 3505592 | AK169: 6750420 | AL169: 22066806 | AM169: 12591617 | AN169: 18827588 | AO169: 10316871 | AP169: 5269701 | AQ169: 925164 | AR169: 2023765 | AS169: 3339986 | AT169: 72716764 | AU169: 19014175 | AV169: 0 | AW169: =SUM($K169:AV169) -> 447107080.3
E170: Net Financial Assets (Net Debt) | I170: 0 | J170: 30 | K170: =K154-K169 -> 1284082.08 | L170: =L154-L169 -> 994324 | M170: 4798268 | N170: 2717422.45 | O170: 1415221 | P170: 531986 | Q170: 1221020 | R170: 4025443.01 | S170: 3521886 | T170: 1853055 | U170: 1513323 | V170: 275694 | W170: 840478 | X170: 1553751 | Y170: 1355291.85 | Z170: -400854 | AA170: 4903883.82 | AB170: 402782 | AC170: 3485646 | AD170: 807811 | AE170: 2779103 | AF170: 1885459 | AG170: 1886764 | AH170: 1348024 | AI170: 8012922 | AJ170: 799831.83 | AK170: 1202925 | AL170: 1110206 | AM170: 1200520 | AN170: 1806492 | AO170: 1752438 | AP170: 1335047 | AQ170: 1429020 | AR170: 802067 | AS170: 754802 | AT170: 6009470 | AU170: 8417998 | AV170: 1169606 | AW170: =SUM($K170:AV170) -> 80803209.04
E171: Non-Financial Assets | I171: 0 | J171: 31
F172: Inventories | I172: 0 | J172: 32 | K172: 0 | L172: 141605 | M172: 113611 | N172: 0 | O172: 0 | P172: 0 | Q172: 0 | R172: 0 | S172: 0 | T172: 300102 | U172: 135154 | V172: 0 | W172: 0 | X172: 59572 | Y172: 35727.78 | Z172: 354513 | AA172: 119540.01 | AB172: 144031 | AC172: 0 | AD172: 0 | AE172: 27740 | AF172: 0 | AG172: 0 | AH172: 180375 | AI172: 0 | AJ172: 0 | AK172: 0 | AL172: 0 | AM172: 146625 | AN172: 0 | AO172: 476015 | AP172: 29494 | AQ172: 5734 | AR172: 112363 | AS172: 34907 | AT172: 996970 | AU172: 0 | AV172: 0 | AW172: =SUM($K172:AV172) -> 3414078.79
F173: Prepaid Expenses | I173: 0 | J173: 33 | K173: 322974.29 | L173: 39584 | M173: 528281 | N173: 1307534 | O173: 138337 | P173: 75297 | Q173: 9992 | R173: 693955.1 | S173: 142588 | T173: 1071442 | U173: 65143 | V173: 0 | W173: 80292 | X173: 191609 | Y173: 809403.63 | Z173: 937865 | AA173: 179736.46 | AB173: 71680 | AC173: 902415 | AD173: 70900 | AE173: 98831 | AF173: 0 | AG173: 211556 | AH173: 105410 | AI173: 798887 | AJ173: 135459 | AK173: 226991 | AL173: 346091 | AM173: 356149 | AN173: 761333 | AO173: 480346 | AP173: 96296 | AQ173: 268420 | AR173: 0 | AS173: 105782 | AT173: 996822 | AU173: 203253 | AV173: 0 | AW173: =SUM($K173:AV173) -> 12830654.48
I174: 0 | J174: 34 | K174: =SUM(K172:K173) -> 322974.29 | L174: =SUM(L172:L173) -> 181189 | M174: 641892 | N174: 1307534 | O174: 138337 | P174: 75297 | Q174: 9992 | R174: 693955.1 | S174: 142588 | T174: 1371544 | U174: 200297 | V174: 0 | W174: 80292 | X174: 251181 | Y174: 845131.41 | Z174: 1292378 | AA174: 299276.47 | AB174: 215711 | AC174: 902415 | AD174: 70900 | AE174: 126571 | AF174: 0 | AG174: 211556 | AH174: 285785 | AI174: 798887 | AJ174: 135459 | AK174: 226991 | AL174: 346091 | AM174: 502774 | AN174: 761333 | AO174: 956361 | AP174: 125790 | AQ174: 274154 | AR174: 112363 | AS174: 140689 | AT174: 1993792 | AU174: 203253 | AV174: 0 | AW174: =SUM($K174:AV174) -> 16244733.27
E175: Accumulated Surplus (Deficit) | I175: 0 | J175: 35 | K175: =SUM(K170,K174) -> 1607056.37 | L175: =SUM(L170,L174) -> 1175513 | M175: 5440160 | N175: 4024956.45 | O175: 1553558 | P175: 607283 | Q175: 1231012 | R175: 4719398.11 | S175: 3664474 | T175: 3224599 | U175: 1713620 | V175: 275694 | W175: 920770 | X175: 1804932 | Y175: 2200423.26 | Z175: 891524 | AA175: 5203160.29 | AB175: 618493 | AC175: 4388061 | AD175: 878711 | AE175: 2905674 | AF175: 1885459 | AG175: 2098320 | AH175: 1633809 | AI175: 8811809 | AJ175: 935290.83 | AK175: 1429916 | AL175: 1456297 | AM175: 1703294 | AN175: 2567825 | AO175: 2708799 | AP175: 1460837 | AQ175: 1703174 | AR175: 914430 | AS175: 895491 | AT175: 8003262 | AU175: 8621251 | AV175: 1169606 | AW175: =SUM($K175:AV175) -> 97047942.31
D180: PAGE | E180: OP Rev Exp
E182: MANITOBA PUBLIC SCHOOL DIVISIONS | K182: THE CELLS HIGH LITED IN YELLOW ARE REFERENCED TO SCHOOL DIVISION STATEMENT FILES.
E183: OPERATING FUND | K183: The cells high lited in yellow have been "copy - paste special - values" for this spreadsheet
E184: STATEMENT OF REVENUE, EXPENSES
E185: AND ACCUMULATED SURPLUS
I186: FORMULAS | K186: 0 | L186: 0 | M186: 0 | N186: 0 | O186: 0 | P186: 0 | Q186: 0 | R186: 0 | S186: 0 | T186: 0 | U186: 0 | V186: 0 | W186: 0 | X186: 0 | Y186: 0 | Z186: 0 | AA186: 0 | AB186: 0 | AC186: 0 | AD186: 0 | AE186: 0 | AF186: 0 | AG186: 0 | AH186: 0 | AI186: 0 | AJ186: 0 | AK186: 0 | AL186: 0 | AM186: 0 | AN186: 0 | AO186: 0 | AP186: 0 | AQ186: 0 | AR186: 0 | AS186: 0 | AT186: 0 | AU186: 0 | AV186: 0
I187: =$I$53 -> 1 | K187: 2 | L187: 3 | M187: 4 | N187: 5 | O187: 6 | P187: 7 | Q187: 8 | R187: 9 | S187: 10 | T187: 11 | U187: 12 | V187: 13 | W187: 14 | X187: 15 | Y187: 16 | Z187: 17 | AA187: 18 | AB187: 19 | AC187: 20 | AD187: 21 | AE187: 22 | AF187: 23 | AG187: 24 | AH187: 25 | AI187: 26 | AJ187: 27 | AK187: 28 | AL187: 29 | AM187: 30 | AN187: 31 | AO187: 32 | AP187: 33 | AQ187: 34 | AR187: 35 | AS187: 36 | AT187: 37 | AU187: 38 | AV187: 39 | AW187: 40
I188: =HLOOKUP($I$187,$K$187:$AW$244,J188,FALSE) ->  | J188: 2 | K188: BE | L188: BO | M188: BR | N188: DI | O188: EV | P188: FL | Q188: FO | R188: FR | S188: GA | T188: HA | U188: IN | V188: KE | W188: LA | X188: LO | Y188: LR | Z188: MO | AA188: MY | AB188: PA | AC188: PE | AD188: PI | AE188: PO | AF188: PR | AG188: PS | AH188: RE | AI188: RI | AJ188: RO | AK188: SE | AL188: SO | AM188: SR | AN188: ST | AO188: SU | AP188: SW | AQ188: TM | AR188: TR | AS188: WE | AT188: WI | AU188: WT | AV188: XW | AW188: TOTAL
E189: Revenue | J189: 3
F190: Provincial Government | J190: 4
F191: Department of Education, Citizenship and Youth | J191: 5
F192: Funding of Schools Program | I192: =IF($I$187=1,0,HLOOKUP($I$187,$K$187:$AW$246,J192,FALSE)) -> 0 | J192: 6 | K192: 10658425 | L192: 14558191 | M192: 51441734 | N192: 37213835 | O192: 7844186 | P192: 8806123 | Q192: 7060594 | R192: 37491232 | S192: 29176607 | T192: 53397755 | U192: 16705656 | V192: 14699775 | W192: 9278864 | X192: 22929826 | Y192: 80676515 | Z192: 21949865 | AA192: 30962517 | AB192: 10180735 | AC192: 58667127 | AD192: 7199087 | AE192: 19012220 | AF192: 12291191 | AG192: 13409256 | AH192: 11956320 | AI192: 96033470 | AJ192: 9711627 | AK192: 29885422 | AL192: 77529194 | AM192: 8645388 | AN192: 38031092 | AO192: 25058120 | AP192: 11165569 | AQ192: 5744690 | AR192: 7134943 | AS192: 11090759 | AT192: 184720717 | AU192: 0 | AV192: 799774 | AW192: =SUM($K192:AV192) -> 1093118401
F193: Education Property Tax Credit | I193: =IF($I$187=1,0,HLOOKUP($I$187,$K$187:$AW$246,J193,FALSE)) -> 0 | J193: 7 | K193: 1767677.18 | L193: 2440549 | M193: 7823397 | N193: 6583133 | O193: 2893749 | P193: 886459 | Q193: 1444520 | R193: 551827.66 | S193: 3513829 | T193: 6806854 | U193: 3719203 | V193: 1221970 | W193: 1150490 | X193: 6036173 | Y193: 22285288.41 | Z193: 3646542 | AA193: 1620431.48 | AB193: 1731748 | AC193: 21938961 | AD193: 1058271.87 | AE193: 3362698 | AF193: 2485697 | AG193: 1917975 | AH193: 2354477 | AI193: 23758771 | AJ193: 2303846 | AK193: 5198820 | AL193: 12553009 | AM193: 1698788 | AN193: 12867060 | AO193: 7504870 | AP193: 1610064 | AQ193: 1318462 | AR193: 723992 | AS193: 2109634 | AT193: 30612319 | AU193: 0 | AV193: 406152 | AW193: =SUM($K193:AV193) -> 211907707.6
F194: Tax Incentive Grant | I194: 0 | J194: 8 | K194: 310869 | L194: 2598389 | M194: 1126601 | N194: 1311882 | O194: 1523411 | P194: 464173 | Q194: 465702 | R194: 196392.5 | S194: 367852 | T194: 920950 | U194: 1030336 | V194: 181204 | W194: 420058 | X194: 2570430 | Y194: 3591018.87 | Z194: 425722 | AA194: 578451.85 | AB194: 757913 | AC194: 2963629 | AD194: 318527 | AE194: 327297 | AF194: 1072715 | AG194: 775324 | AH194: 666982 | AI194: 897709 | AJ194: 727120 | AK194: 1205314 | AL194: 3297057 | AM194: 726201 | AN194: 2283729 | AO194: 1956464 | AP194: 1038691 | AQ194: 0 | AR194: 274199 | AS194: 0 | AT194: 5365293 | AU194: 0 | AV194: 23049 | AW194: =SUM($K194:AV194) -> 42760655.22
F195: General Support Grant | I195: 0 | J195: 9 | K195: 221572.14 | L195: 492406 | M195: 1604691 | N195: 1221781 | O195: 325513 | P195: 191759 | Q195: 283105 | R195: 1535628 | S195: 743080 | T195: 1362109 | U195: 571317 | V195: 309566 | W195: 248047 | X195: 887360 | Y195: 2939144.22 | Z195: 605545 | AA195: 643103.18 | AB195: 409519 | AC195: 2432306 | AD195: 182067.5 | AE195: 622666 | AF195: 436200 | AG195: 420347 | AH195: 454528 | AI195: 2992466 | AJ195: 364571 | AK195: 818015 | AL195: 2191003 | AM195: 331539 | AN195: 1705136 | AO195: 993432 | AP195: 299966 | AQ195: 210352 | AR195: 163001 | AS195: 316038 | AT195: 6558922 | AU195: 311162 | AV195: 44559 | AW195: =SUM($K195:AV195) -> 36443522.04
F196: Other Funding | I196: 0 | J196: 10 | K196: 590166.12 | L196: 643812 | M196: 1350813 | N196: 21808761 | O196: 195419 | P196: 335353 | Q196: 336844 | R196: 8347862.45 | S196: 422786 | T196: 1440816 | U196: 338693 | V196: 383163 | W196: 120869 | X196: 447977 | Y196: 3076009.07 | Z196: 369840 | AA196: 582492.3 | AB196: 337613 | AC196: 1496024 | AD196: 208252.92 | AE196: 295436 | AF196: 349046 | AG196: 287635 | AH196: 370385 | AI196: 3077625 | AJ196: 149233 | AK196: 568319 | AL196: 1394852 | AM196: 360170 | AN196: 1477181 | AO196: 817688 | AP196: 286327 | AQ196: 199261 | AR196: 321717 | AS196: 136557 | AT196: 13562585 | AU196: 7407310 | AV196: 0 | AW196: =SUM($K196:AV196) -> 73894892.86
F197: All Other Provincial Government Departments | I197: 0 | J197: 11 | K197: 0 | L197: 368180 | M197: 0 | N197: 250726 | O197: 0 | P197: 94000 | Q197: 0 | R197: 1444971.08 | S197: 0 | T197: 0 | U197: 52938 | V197: 529500 | W197: 299079 | X197: 470871 | Y197: 203882.94 | Z197: 0 | AA197: 19759.31 | AB197: 0 | AC197: 100900 | AD197: 0 | AE197: 0 | AF197: 273230 | AG197: 0 | AH197: -78 | AI197: 1958593 | AJ197: 291863 | AK197: 355586 | AL197: 2820381 | AM197: 0 | AN197: 4220 | AO197: 960177 | AP197: 0 | AQ197: 186553 | AR197: 0 | AS197: 399329 | AT197: 1793006 | AU197: 2713647 | AV197: 0 | AW197: =SUM($K197:AV197) -> 15591314.33
F198: Other Government Reporting Entities | I198: 0 | J198: 12 | K198: 0 | L198: 0 | M198: 0 | N198: 0 | O198: 0 | P198: 0 | Q198: 239456 | R198: 80092.48 | S198: 5923 | T198: 4500 | U198: 5150 | V198: 0 | W198: 0 | X198: 0 | Y198: 0 | Z198: 0 | AA198: 21195.08 | AB198: 0 | AC198: 0 | AD198: 0 | AE198: 0 | AF198: 0 | AG198: 5507 | AH198: 0 | AI198: 30616 | AJ198: 0 | AK198: 0 | AL198: 6957 | AM198: 0 | AN198: 32158 | AO198: 213136 | AP198: 34965 | AQ198: 0 | AR198: 5000 | AS198: 0 | AT198: 30000 | AU198: 0 | AV198: 0 | AW198: =SUM($K198:AV198) -> 714655.56
F199: Total Provincial Government | I199: 0 | J199: 13 | K199: =SUM(K192:K198) -> 13548709.44 | L199: =SUM(L192:L198) -> 21101527 | M199: 63347236 | N199: 68390118 | O199: 12782278 | P199: 10777867 | Q199: 9830221 | R199: 49648006.17 | S199: 34230077 | T199: 63932984 | U199: 22423293 | V199: 17325178 | W199: 11517407 | X199: 33342637 | Y199: 112771858.5 | Z199: 26997514 | AA199: 34427950.2 | AB199: 13417528 | AC199: 87598947 | AD199: 8966206.29 | AE199: 23620317 | AF199: 16908079 | AG199: 16816044 | AH199: 15802614 | AI199: 128749250 | AJ199: 13548260 | AK199: 38031476 | AL199: 99792453 | AM199: 11762086 | AN199: 56400576 | AO199: 37503887 | AP199: 14435582 | AQ199: 7659318 | AR199: 8622852 | AS199: 14052317 | AT199: 242642842 | AU199: 10432119 | AV199: 1273534 | AW199: =SUM(AW192:AW198) -> 1474431149
I200: 0 | J200: 14
F201: Federal Government | I201: 0 | J201: 15 | K201: 0 | L201: 1400 | M201: 66804 | N201: 278789 | O201: 0 | P201: 36477 | Q201: 0 | R201: 540145 | S201: 0 | T201: 0 | U201: 16706 | V201: 0 | W201: 303154 | X201: 0 | Y201: 215383 | Z201: 0 | AA201: 19639.69 | AB201: 0 | AC201: 0 | AD201: 81250 | AE201: 16375 | AF201: 0 | AG201: 46725 | AH201: 7851 | AI201: 472500 | AJ201: 28435 | AK201: 26339 | AL201: 1187928 | AM201: 0 | AN201: 15904 | AO201: 0 | AP201: 6983 | AQ201: 429 | AR201: 0 | AS201: 25000 | AT201: 4347208 | AU201: 2275239 | AV201: 0 | AW201: =SUM($K201:AV201) -> 10016663.69
F202: Municipal Government | I202: 0 | J202: 16 | K202: 7536218.58 | L202: 12434654 | M202: 39464643.31 | N202: 26126108 | O202: 8432260 | P202: 3625588 | Q202: 8114340 | R202: 3179511.69 | S202: 16321513 | T202: 27476634 | U202: 15790975 | V202: 2755126 | W202: 3811476 | X202: 24963249 | Y202: 77059628.13 | Z202: 13484532 | AA202: 6960463.2 | AB202: 8270640 | AC202: 85577803 | AD202: 6557172.13 | AE202: 15295211 | AF202: 14392784 | AG202: 11641251 | AH202: 14897458 | AI202: 68019303 | AJ202: 9959515 | AK202: 17104659 | AL202: 47065309 | AM202: 11728524 | AN202: 51313777 | AO202: 29364865 | AP202: 6328858 | AQ202: 5713562 | AR202: 2866529 | AS202: 7287157 | AT202: 160852614 | AU202: 0 | AV202: 1660894 | AW202: =SUM($K202:AV202) -> 873434805
F203: Other School Divisions | I203: 0 | J203: 17 | K203: 30225 | L203: 604335 | M203: 417911.5 | N203: 2113668 | O203: 30745 | P203: 264229 | Q203: 36850 | R203: 16250 | S203: 468901 | T203: 112220 | U203: 47112 | V203: 5128 | W203: 47668 | X203: 172580 | Y203: 520393.21 | Z203: 465507 | AA203: 129802 | AB203: 18350 | AC203: 508362 | AD203: 43095 | AE203: 170004 | AF203: 111150 | AG203: 54600 | AH203: 1487034 | AI203: 606425 | AJ203: 59800 | AK203: 384486 | AL203: 1482926 | AM203: 109610 | AN203: 351810 | AO203: 136801 | AP203: 13909 | AQ203: 31200 | AR203: 52650 | AS203: 57200 | AT203: 2302893 | AU203: 2000529 | AV203: 40300 | AW203: =SUM($K203:AV203) -> 15506658.71
F204: First Nations | I204: 0 | J204: 18 | K204: 0 | L204: 1095318 | M204: 391294 | N204: 0 | O204: 79500 | P204: 56389 | Q204: 982082 | R204: 82005128 | S204: 0 | T204: 0 | U204: 0 | V204: 39000 | W204: 243892 | X204: 513150 | Y204: 37400 | Z204: 833453 | AA204: 361972 | AB204: 8603206 | AC204: 89100 | AD204: 0 | AE204: 2878286 | AF204: 0 | AG204: 259814 | AH204: 40 | AI204: 150075 | AJ204: 1280825 | AK204: 0 | AL204: 678900 | AM204: 0 | AN204: 264240 | AO204: 301869 | AP204: 248535 | AQ204: 0 | AR204: 4669 | AS204: 0 | AT204: 1414464 | AU204: 0 | AV204: 0 | AW204: =SUM($K204:AV204) -> 102812601
F205: Private Organizations & Individuals | I205: 0 | J205: 19 | K205: 15856 | L205: 150522 | M205: 870124.4 | N205: 185401 | O205: 190162 | P205: 176219 | Q205: 0 | R205: 5024969 | S205: 27600 | T205: 404600 | U205: 339057 | V205: 0 | W205: 119626 | X205: 210809 | Y205: 9101460.64 | Z205: 468390 | AA205: 327245.9 | AB205: 84023 | AC205: 2705595 | AD205: 0 | AE205: 24800 | AF205: 11335 | AG205: 211870 | AH205: 303548 | AI205: 2451930 | AJ205: 53275 | AK205: 91790 | AL205: 1849404 | AM205: 0 | AN205: 2847340 | AO205: 116255 | AP205: 286076 | AQ205: 4489 | AR205: 15835 | AS205: 244159 | AT205: 2801754 | AU205: 19065597 | AV205: 104990 | AW205: =SUM($K205:AV205) -> 50886106.94
F206: Other Sources | I206: 0 | J206: 20 | K206: 151330.62 | L206: 409529 | M206: 357659.87 | N206: 248948 | O206: 29679 | P206: 70172.94 | Q206: 48635 | R206: 751631 | S206: 1027688 | T206: 235189 | U206: 87526 | V206: 234046 | W206: 258428 | X206: 517744 | Y206: 1141758.7 | Z206: 211723 | AA206: 354486.74 | AB206: 51172 | AC206: 1375053 | AD206: 69885 | AE206: 250078 | AF206: 113393 | AG206: 143026 | AH206: 113465 | AI206: 651789 | AJ206: 104008 | AK206: 168856 | AL206: 619674 | AM206: 110509 | AN206: 840465 | AO206: 63693 | AP206: 244339 | AQ206: 26264 | AR206: 43780 | AS206: 91820 | AT206: 1278770 | AU206: 702357 | AV206: 103849 | AW206: =SUM($K206:AV206) -> 13302419.87
G207: Total Revenue | I207: 0 | J207: 21 | K207: =ROUND(SUM(K199:K206),0) -> 21282340 | L207: =ROUND(SUM(L199:L206),0) -> 35797285 | M207: =ROUND(SUM(M199:M206),0) -> 104915673 | N207: =ROUND(SUM(N199:N206),0) -> 97343032 | O207: 21544624 | P207: 15006942 | Q207: 19012128 | R207: 141165641 | S207: 52075779 | T207: 92161627 | U207: 38704669 | V207: 20358478 | W207: 16301651 | X207: 59720169 | Y207: 200847882 | Z207: 42461119 | AA207: 42581560 | AB207: 30444919 | AC207: 177854860 | AD207: 15717608 | AE207: 42255071 | AF207: 31536741 | AG207: 29173330 | AH207: 32612010 | AI207: 201101272 | AJ207: 25034118 | AK207: 55807606 | AL207: 152676594 | AM207: 23710729 | AN207: 112034112 | AO207: 67487370 | AP207: 21564282 | AQ207: 13435262 | AR207: 11606315 | AS207: 21757653 | AT207: 415640545 | AU207: 34475841 | AV207: 3183567 | AW207: =SUM(AW199:AW206) -> 2540390404
E208: Expenses | I208: 0 | J208: 22
F209: 300 Salaries | I209: 0 | J209: 23 | K209: 15874119.69 | L209: 25371619 | M209: 82243694 | N209: 64240521 | O209: 14893682 | P209: 10737037 | Q209: 14344185 | R209: 88502301.21 | S209: 37982085 | T209: 69955884 | U209: 29786941 | V209: 15877127 | W209: 11442231 | X209: 45283192 | Y209: 155946469 | Z209: 30820582 | AA209: 32450324.87 | AB209: 21564165 | AC209: 137648918 | AD209: 11458291.13 | AE209: 31467401 | AF209: 23485709 | AG209: 20835189 | AH209: 23925479 | AI209: 156023419 | AJ209: 18384863 | AK209: 41952363 | AL209: 116844997 | AM209: 17002179 | AN209: 86397145 | AO209: 50119694 | AP209: 15166018 | AQ209: 10125912 | AR209: 8083953 | AS209: 16358858 | AT209: 330569598 | AU209: 19088142 | AV209: 1987168 | AW209: =SUM($K209:AV209) -> 1904241456
F210: 400 Employee Benefits And Allowances | I210: 0 | J210: 24 | K210: 1245716.15 | L210: 2152132 | M210: 5788338 | N210: 4843729 | O210: 1168283 | P210: 952312 | Q210: 1011370 | R210: 8620454.81 | S210: 3291875 | T210: 5129314 | U210: 2243198 | V210: 1489662 | W210: 1157172 | X210: 3933960 | Y210: 11917101 | Z210: 3058076 | AA210: 4003210.9 | AB210: 1476700 | AC210: 9903509 | AD210: 850117.53 | AE210: 2209975 | AF210: 2080455 | AG210: 2062350 | AH210: 1817295 | AI210: 11425230 | AJ210: 1452799 | AK210: 2979363 | AL210: 12460220 | AM210: 1273118 | AN210: 6533715 | AO210: 3725020 | AP210: 1357921 | AQ210: 747993 | AR210: 651436 | AS210: 1126000 | AT210: 29076967 | AU210: 2145574 | AV210: 181200 | AW210: =SUM($K210:AV210) -> 157542861.4
F211: 510 Professional, Technical and Specialized | I211: 0 | J211: 25 | K211: 87149.99 | L211: 601498 | M211: 890493 | N211: 2208990 | O211: 184748 | P211: 133349 | Q211: 23189 | R211: 1415732.97 | S211: 104963 | T211: 477170 | U211: 307214 | V211: 160245 | W211: 308958 | X211: 431018 | Y211: 3453187 | Z211: 625269 | AA211: 331803.65 | AB211: 198262 | AC211: 1656781 | AD211: 535155.95 | AE211: 549795 | AF211: 226828 | AG211: 205193 | AH211: 381126 | AI211: 2457995 | AJ211: 115441 | AK211: 325832 | AL211: 2482213 | AM211: 265742 | AN211: 1653066 | AO211: 638873 | AP211: 166574 | AQ211: 73790 | AR211: 112119 | AS211: 221846 | AT211: 5965000 | AU211: 217769 | AV211: 117433 | AW211: =SUM($K211:AV211) -> 30311811.56
F212: 520 Communications | I212: 0 | J212: 26 | K212: 68574.24 | L212: 87132 | M212: 230306 | N212: 305652 | O212: 64099 | P212: 78253 | Q212: 66058.325 | R212: 610403.11 | S212: 99729 | T212: 180814 | U212: 103329 | V212: 44299 | W212: 33797 | X212: 157238 | Y212: 374555 | Z212: 112737 | AA212: 76536.76 | AB212: 102211 | AC212: 383340 | AD212: 69181.09 | AE212: 140207 | AF212: 110378 | AG212: 141455 | AH212: 106024 | AI212: 506398 | AJ212: 101048 | AK212: 256584 | AL212: 259276 | AM212: 115553 | AN212: 157209 | AO212: 280008 | AP212: 102938 | AQ212: 86428 | AR212: 39901 | AS212: 57861 | AT212: 907384 | AU212: 1935938 | AV212: 27882 | AW212: =SUM($K212:AV212) -> 8580716.525
F213: 530 Utility Services | I213: 0 | J213: 27 | K213: 360488.69 | L213: 594962 | M213: 1380754 | N213: 1507033 | O213: 475837 | P213: 481368 | Q213: 336282 | R213: 5811708.13 | S213: 852492 | T213: 1425472 | U213: 696089 | V213: 464322 | W213: 392999 | X213: 956734 | Y213: 4012223 | Z213: 1111389 | AA213: 768184.44 | AB213: 838991 | AC213: 3156589 | AD213: 292932.53 | AE213: 641061 | AF213: 643661 | AG213: 754277 | AH213: 543340 | AI213: 3783674 | AJ213: 571925 | AK213: 870581 | AL213: 2158061 | AM213: 495408 | AN213: 1994125 | AO213: 1390903 | AP213: 443465 | AQ213: 175571 | AR213: 325275 | AS213: 302569 | AT213: 6481917 | AU213: 442747 | AV213: 158609 | AW213: =SUM($K213:AV213) -> 48094018.79
F214: 540 Travel and Meetings | I214: 0 | J214: 28 | K214: 104953.88 | L214: 418238 | M214: 223982 | N214: 1112772 | O214: 72673 | P214: 84484 | Q214: 170239 | R214: 3977734.36 | S214: 175509 | T214: 318269 | U214: 141723 | V214: 28138 | W214: 75152 | X214: 151334 | Y214: 460306 | Z214: 294596 | AA214: 105561.94 | AB214: 105872 | AC214: 607883 | AD214: 80893.98 | AE214: 109516 | AF214: 170244 | AG214: 181094 | AH214: 150078 | AI214: 352941 | AJ214: 118249 | AK214: 161781 | AL214: 248040 | AM214: 234452 | AN214: 199323 | AO214: 183117 | AP214: 52959 | AQ214: 42089 | AR214: 71574 | AS214: 116761 | AT214: 433219 | AU214: 320456 | AV214: 15894 | AW214: =SUM($K214:AV214) -> 11872101.16
F215: 550 Transportation of Pupils | I215: 0 | J215: 29 | K215: 12927.16 | L215: 0 | M215: 4672 | N215: 9785360 | O215: 2072 | P215: 406092 | Q215: 305 | R215: 1125565.23 | S215: 26963 | T215: 0 | U215: 1814 | V215: 98252 | W215: 74369 | X215: 42433 | Y215: 2811844 | Z215: 11178 | AA215: 315911.82 | AB215: 582399 | AC215: 2390556 | AD215: -3102.13 | AE215: 53002 | AF215: 76508 | AG215: 0 | AH215: 4637 | AI215: -8571 | AJ215: 5835 | AK215: 5926 | AL215: 487653 | AM215: 11967 | AN215: 1787847 | AO215: -23739 | AP215: 0 | AQ215: 89763 | AR215: 0 | AS215: 20073 | AT215: 1791347 | AU215: 4701 | AV215: 49830 | AW215: =SUM($K215:AV215) -> 22046390.08
F216: 560 Tuition | I216: 0 | J216: 30 | K216: 169913.37 | L216: 67863 | M216: 34363 | N216: 7761 | O216: 0 | P216: 0 | Q216: 1649 | R216: 10100.74 | S216: 0 | T216: 1721 | U216: 7500 | V216: 0 | W216: 0 | X216: 164791 | Y216: 76463 | Z216: 78073 | AA216: 2656 | AB216: 11479 | AC216: 629917 | AD216: 3492.3 | AE216: 31125 | AF216: 1022 | AG216: 25138 | AH216: 103699 | AI216: 4400 | AJ216: 25251 | AK216: 130 | AL216: 265362 | AM216: 6484 | AN216: 0 | AO216: 115277 | AP216: 0 | AQ216: 4494 | AR216: 68010 | AS216: 0 | AT216: 0 | AU216: 0 | AV216: 41899 | AW216: =SUM($K216:AV216) -> 1960033.41
F217: 570 Printing and Binding | I217: 0 | J217: 31 | K217: 5353.23 | L217: 9140 | M217: 0 | N217: 0 | O217: 0 | P217: 0 | Q217: 1393 | R217: 41861.64 | S217: 0 | T217: 0 | U217: 7439 | V217: 1277 | W217: 0 | X217: 24668 | Y217: 233891 | Z217: 0 | AA217: 68775.83 | AB217: 41373 | AC217: 30469 | AD217: 0 | AE217: 0 | AF217: 0 | AG217: 0 | AH217: 0 | AI217: 12747 | AJ217: 640 | AK217: 0 | AL217: 26492 | AM217: 0 | AN217: 24992 | AO217: 0 | AP217: 0 | AQ217: 29089 | AR217: 0 | AS217: 0 | AT217: 54083 | AU217: 89807 | AV217: 97 | AW217: =SUM($K217:AV217) -> 703587.7
F218: 580 Insurance and Bond Premiums | I218: 0 | J218: 32 | K218: 142669.61 | L218: 337478 | M218: 380405 | N218: 389815 | O218: 236438 | P218: 112189 | Q218: 155721 | R218: 2101664.35 | S218: 241563 | T218: 624234 | U218: 317017 | V218: 200685 | W218: 153827 | X218: 259700 | Y218: 594011 | Z218: 428177 | AA218: 261028.38 | AB218: 264484 | AC218: 494308 | AD218: 134245.76 | AE218: 231946 | AF218: 237435 | AG218: 340216 | AH218: 263111 | AI218: 632843 | AJ218: 231187 | AK218: 326967 | AL218: 346866 | AM218: 41335 | AN218: 360835 | AO218: 352336 | AP218: 189699 | AQ218: 108351 | AR218: 132040 | AS218: 103782 | AT218: 828733 | AU218: 78788 | AV218: 42914 | AW218: =SUM($K218:AV218) -> 12679044.1
F219: 590 Maintenance and Repair Services | I219: 0 | J219: 33 | K219: 253869.38 | L219: 527113 | M219: 1623234 | N219: 1648322 | O219: 442569 | P219: 141281 | Q219: 266236.975 | R219: 2668887.65 | S219: 1323991 | T219: 120802 | U219: 356963 | V219: 184680 | W219: 188866 | X219: 548379 | Y219: 5343657 | Z219: 128564 | AA219: 262249.01 | AB219: 285099 | AC219: 4695563 | AD219: 35539.15 | AE219: 153421 | AF219: 683535 | AG219: 331326 | AH219: 604961 | AI219: 4421965 | AJ219: 224368 | AK219: 1193595 | AL219: 1461198 | AM219: 316664 | AN219: 1577781 | AO219: 1461946 | AP219: 553958 | AQ219: 324343 | AR219: 150263 | AS219: 641878 | AT219: 3587714 | AU219: 513656 | AV219: 82547 | AW219: =SUM($K219:AV219) -> 39330984.16
F220: 610 Rentals | I220: 0 | J220: 34 | K220: 45789.56 | L220: 51447 | M220: 248045 | N220: 136636 | O220: 25260 | P220: 39007 | Q220: 834 | R220: 2807644.21 | S220: 29244 | T220: 107140 | U220: 57525 | V220: 411576 | W220: 35969 | X220: 63122 | Y220: 562131 | Z220: 71916 | AA220: 34276.6 | AB220: 147944 | AC220: 143131 | AD220: 17791.73 | AE220: 61708 | AF220: 54124 | AG220: 68174 | AH220: 93256 | AI220: 219545 | AJ220: 20570 | AK220: 129719 | AL220: 701445 | AM220: 184328 | AN220: 126690 | AO220: 640372 | AP220: 8896 | AQ220: 43411 | AR220: 11364 | AS220: 90765 | AT220: 1741218 | AU220: 1817845 | AV220: 31239 | AW220: =SUM($K220:AV220) -> 11081098.1
... 665 more rows
